Workbook

Sheet Main
B10: 2018-10-09
B12: Sheet No. | C12: Template Name | D12: Summary
B13: 1 | C13: Future Intra | D13: For Intraday trading in F&O segment
B14: 2 | C14: Cash Intra | D14: For Intraday trading in cash market segment
B15: 3 | C15: Mid-cap Intra | D15: For Intraday trading in Mid-cap stocks
B16: 4 | C16: Bulk Deals | D16: Reveals Bulk Deals carried on NSE & BSE
B17: 5 | C17: Call Tracker

Sheet Future Intra
M5: Back to Main Page
A6: FOR INTRA DAY TRADING | L6: =Main!B10 -> 2018-10-09
A9: Sr.no | B9: Sector | C9: Scrip | D9: CLOSE RATE | E9: Pivot Point | F9: Supports | I9: Resistances
B10: Sector | D10: Point | E10: Point | F10: S1 | G10: S2 | H10: S3 | I10: R1 | J10: R2 | K10: R3 | L10: HIGH | M10: LOW | N10: OI | O10: % Change in OI
A11: 1 | B11: Index | C11: BANKNIFTY | D11: 24712.65 | E11: 24604.82 | F11: 24392.83 | G11: 24073.02 | H11: 23861.03 | I11: 24924.63 | J11: 25136.62 | K11: 25456.43 | L11: 24816.8 | M11: 24285 | N11: 1508720 | O11: -3.65%
A12: 2 | B12: Index | C12: NIFTY | D12: 10379.00 | E12: 10336.43 | F12: 10254.92 | G12: 10130.83 | H12: 10049.32 | I12: 10460.52 | J12: 10542.03 | K12: 10666.12 | L12: 10417.95 | M12: 10212.35 | N12: 22110075 | O12: 0.97%
A13: 3 | B13: Index | C13: NIFTYCPSE | D13: 2315.55 | E13: 771.85 | F13: 1543.70 | G13: 771.85 | H13: 1543.70 | I13: 1543.70 | J13: 771.85 | K13: 1543.70 | L13: 0 | M13: 0 | N13: 0 | O13: 0.00%
A14: 4 | B14: Index | C14: NIFTYINFRA | D14: 3177.55 | E14: 1059.18 | F14: 2118.37 | G14: 1059.18 | H14: 2118.37 | I14: 2118.37 | J14: 1059.18 | K14: 2118.37 | L14: 0 | M14: 0 | N14: 0 | O14: 0.00%
A15: 5 | B15: Index | C15: NIFTYIT | D15: 15377.00 | E15: 15435.67 | F15: 15191.33 | G15: 15005.67 | H15: 14761.33 | I15: 15621.33 | J15: 15865.67 | K15: 16051.33 | L15: 15680 | M15: 15250 | N15: 37850 | O15: -2.32%
A16: 6 | B16: Index | C16: NIFTYMID50 | D16: 4450.00 | E16: 4450.00 | F16: 4450.00 | G16: 4450.00 | H16: 4450.00 | I16: 4450.00 | J16: 4450.00 | K16: 4450.00 | L16: 4450 | M16: 4450 | N16: 725890 | O16: 0.00%
A17: 7 | B17: Index | C17: NIFTYPSE | D17: 3599.05 | E17: 1199.68 | F17: 2399.37 | G17: 1199.68 | H17: 2399.37 | I17: 2399.37 | J17: 1199.68 | K17: 2399.37 | L17: 0 | M17: 0 | N17: 0 | O17: 0.00%
A18: 8 | B18: Cement | C18: ACC | D18: 1478.85 | E18: 1468.37 | F18: 1448.73 | G18: 1418.62 | H18: 1398.98 | I18: 1498.48 | J18: 1518.12 | K18: 1548.23 | L18: 1488 | M18: 1438.25 | N18: 1266400 | O18: -4.12%
A19: 9 | B19: Others | C19: ADANIENT | D19: 133.85 | E19: 130.67 | F19: 125.68 | G19: 117.52 | H19: 112.53 | I19: 138.83 | J19: 143.82 | K19: 151.98 | L19: 135.65 | M19: 122.5 | N19: 39204000 | O19: 0.12%
A20: 10 | B20: Others | C20: ADANIPORTS | D20: 305.70 | E20: 302.63 | F20: 298.62 | G20: 291.53 | H20: 287.52 | I20: 309.72 | J20: 313.73 | K20: 320.82 | L20: 306.65 | M20: 295.55 | N20: 12322500 | O20: 5.77%
A21: 11 | B21: Power | C21: ADANIPOWER | D21: 23.65 | E21: 23.07 | F21: 21.78 | G21: 19.92 | H21: 18.63 | I21: 24.93 | J21: 26.22 | K21: 28.08 | L21: 24.35 | M21: 21.2 | N21: 164820000 | O21: 2.59%
A22: 12 | B22: Pharma | C22: AJANTPHARM | D22: 999.80 | E22: 1007.43 | F22: 971.87 | G22: 943.93 | H22: 908.37 | I22: 1035.37 | J22: 1070.93 | K22: 1098.87 | L22: 1043 | M22: 979.5 | N22: 556000 | O22: -8.18%
A23: 13 | B23: Banking | C23: ALBK | D23: 33.75 | E23: 33.92 | F23: 32.78 | G23: 31.82 | H23: 30.68 | I23: 34.88 | J23: 36.02 | K23: 36.98 | L23: 35.05 | M23: 32.95 | N23: 19052000 | O23: 3.40%
A24: 14 | B24: Automobile | C24: AMARAJABAT | D24: 723.95 | E24: 718.02 | F24: 706.93 | G24: 689.92 | H24: 678.83 | I24: 735.03 | J24: 746.12 | K24: 763.13 | L24: 729.1 | M24: 701 | N24: 1106000 | O24: 7.41%
A25: 15 | B25: Cement | C25: AMBUJACEM | D25: 209.30 | E25: 208.13 | F25: 204.52 | G25: 199.73 | H25: 196.12 | I25: 212.92 | J25: 216.53 | K25: 221.32 | L25: 211.75 | M25: 203.35 | N25: 12515000 | O25: -4.21%
A26: 17 | B26: Others | C26: APOLLOHOSP | D26: 1078.40 | E26: 1067.13 | F26: 1049.27 | G26: 1020.13 | H26: 1002.27 | I26: 1096.27 | J26: 1114.13 | K26: 1143.27 | L26: 1085 | M26: 1038 | N26: 1082500 | O26: -3.18%
A27: 18 | B27: Automobile | C27: APOLLOTYRE | D27: 205.50 | E27: 202.12 | F27: 196.93 | G27: 188.37 | H27: 183.18 | I27: 210.68 | J27: 215.87 | K27: 224.43 | L27: 207.3 | M27: 193.55 | N27: 11313000 | O27: -3.13%
A28: 19 | B28: Textile | C28: ARVIND | D28: 302.50 | E28: 304.45 | F28: 294.35 | G28: 286.20 | H28: 276.10 | I28: 312.60 | J28: 322.70 | K28: 330.85 | L28: 314.55 | M28: 296.3 | N28: 7554000 | O28: 1.83%
A29: 20 | B29: Automobile | C29: ASHOKLEY | D29: 109.40 | E29: 108.65 | F29: 104.95 | G29: 100.50 | H29: 96.80 | I29: 113.10 | J29: 116.80 | K29: 121.25 | L29: 112.35 | M29: 104.2 | N29: 59428000 | O29: 2.89%
A30: 21 | B30: FMCG | C30: ASIANPAINT | D30: 1247.20 | E30: 1233.43 | F30: 1214.82 | G30: 1182.43 | H30: 1163.82 | I30: 1265.82 | J30: 1284.43 | K30: 1316.82 | L30: 1252.05 | M30: 1201.05 | N30: 5073000 | O30: -0.34%
A31: 22 | B31: Pharma | C31: AUROPHARMA | D31: 738.05 | E31: 735.48 | F31: 722.87 | G31: 707.68 | H31: 695.07 | I31: 750.67 | J31: 763.28 | K31: 778.47 | L31: 748.1 | M31: 720.3 | N31: 20912000 | O31: 0.72%
A32: 23 | B32: Banking | C32: AXISBANK | D32: 559.45 | E32: 561.67 | F32: 546.28 | G32: 533.12 | H32: 517.73 | I32: 574.83 | J32: 590.22 | K32: 603.38 | L32: 577.05 | M32: 548.5 | N32: 37959600 | O32: 2.96%
A33: 24 | B33: Automobile | C33: BAJAJ-AUTO | D33: 2588.35 | E33: 2565.10 | F33: 2523.25 | G33: 2458.15 | H33: 2416.30 | I33: 2630.20 | J33: 2672.05 | K33: 2737.15 | L33: 2606.95 | M33: 2500 | N33: 2567000 | O33: -4.63%
A34: 25 | B34: Others | C34: BAJAJFINSV | D34: 5401.30 | E34: 5382.85 | F34: 5266.55 | G34: 5131.80 | H34: 5015.50 | I34: 5517.60 | J34: 5633.90 | K34: 5768.65 | L34: 5499.15 | M34: 5248.1 | N34: 765625 | O34: -0.18%
A35: 26 | B35: Finance | C35: BAJFINANCE | D35: 1982.90 | E35: 1998.63 | F35: 1899.47 | G35: 1816.03 | H35: 1716.87 | I35: 2082.07 | J35: 2181.23 | K35: 2264.67 | L35: 2097.8 | M35: 1915.2 | N35: 7869000 | O35: 0.46%
A36: 27 | B36: Others | C36: BALKRISIND | D36: 986.15 | E36: 994.95 | F36: 962.10 | G36: 938.05 | H36: 905.20 | I36: 1019.00 | J36: 1051.85 | K36: 1075.90 | L36: 1027.8 | M36: 970.9 | N36: 2204000 | O36: 2.84%
A37: 29 | B37: Banking | C37: BANKBARODA | D37: 97.95 | E37: 98.03 | F37: 95.27 | G37: 92.58 | H37: 89.82 | I37: 100.72 | J37: 103.48 | K37: 106.17 | L37: 100.8 | M37: 95.35 | N37: 77212000 | O37: 1.26%
A38: 30 | B38: Banking | C38: BANKINDIA | D38: 76.30 | E38: 75.98 | F38: 74.27 | G38: 72.23 | H38: 70.52 | I38: 78.02 | J38: 79.73 | K38: 81.77 | L38: 77.7 | M38: 73.95 | N38: 19518000 | O38: -3.01%
A39: 31 | B39: FMCG | C39: BATAINDIA | D39: 896.55 | E39: 881.95 | F39: 862.90 | G39: 829.25 | H39: 810.20 | I39: 915.60 | J39: 934.65 | K39: 968.30 | L39: 901 | M39: 848.3 | N39: 1853500 | O39: 6.58%
A40: 32 | B40: Capital_Goods | C40: BEL | D40: 77.40 | E40: 77.60 | F40: 75.20 | G40: 73.00 | H40: 70.60 | I40: 79.80 | J40: 82.20 | K40: 84.40 | L40: 80 | M40: 75.4 | N40: 33135300 | O40: -0.79%
A41: 33 | B41: Infrastructure | C41: BEML | D41: 562.00 | E41: 562.95 | F41: 547.55 | G41: 533.10 | H41: 517.70 | I41: 577.40 | J41: 592.80 | K41: 607.25 | L41: 578.35 | M41: 548.5 | N41: 1554500 | O41: -4.72%
A42: 34 | B42: Others | C42: BERGEPAINT | D42: 274.10 | E42: 271.10 | F42: 265.80 | G42: 257.50 | H42: 252.20 | I42: 279.40 | J42: 284.70 | K42: 293.00 | L42: 276.4 | M42: 262.8 | N42: 1878800 | O42: -0.93%
A43: 35 | B43: Finance | C43: BHARATFIN | D43: 995.05 | E43: 993.97 | F43: 980.48 | G43: 965.92 | H43: 952.43 | I43: 1008.53 | J43: 1022.02 | K43: 1036.58 | L43: 1007.45 | M43: 979.4 | N43: 5138000 | O43: 9.02%
A44: 36 | B44: Automobile | C44: BHARATFORG | D44: 569.80 | E44: 570.23 | F44: 558.47 | G44: 547.13 | H44: 535.37 | I44: 581.57 | J44: 593.33 | K44: 604.67 | L44: 582 | M44: 558.9 | N44: 7477200 | O44: -1.89%
A45: 37 | B45: Telecom | C45: BHARTIARTL | D45: 296.75 | E45: 296.38 | F45: 292.97 | G45: 289.18 | H45: 285.77 | I45: 300.17 | J45: 303.58 | K45: 307.37 | L45: 299.8 | M45: 292.6 | N45: 50121100 | O45: 1.08%
A46: 38 | B46: Capital_Goods | C46: BHEL | D46: 69.60 | E46: 69.53 | F46: 68.02 | G46: 66.43 | H46: 64.92 | I46: 71.12 | J46: 72.63 | K46: 74.22 | L46: 71.05 | M46: 67.95 | N46: 37927500 | O46: 3.44%
A47: 39 | B47: Pharma | C47: BIOCON | D47: 598.30 | E47: 598.57 | F47: 581.88 | G47: 565.47 | H47: 548.78 | I47: 614.98 | J47: 631.67 | K47: 648.08 | L47: 615.25 | M47: 582.15 | N47: 7750800 | O47: 2.30%
A48: 40 | B48: Automobile | C48: BOSCHLTD | D48: 18464.40 | E48: 18631.53 | F48: 18113.07 | G48: 17761.73 | H48: 17243.27 | I48: 18982.87 | J48: 19501.33 | K48: 19852.67 | L48: 19150 | M48: 18280.2 | N48: 120750 | O48: 4.25%
A49: 41 | B49: Oil_Gas | C49: BPCL | D49: 266.20 | E49: 268.33 | F49: 256.07 | G49: 245.93 | H49: 233.67 | I49: 278.47 | J49: 290.73 | K49: 300.87 | L49: 280.6 | M49: 258.2 | N49: 14819400 | O49: 19.30%
A50: 42 | B50: FMCG | C50: BRITANNIA | D50: 5553.85 | E50: 5494.92 | F50: 5414.83 | G50: 5275.82 | H50: 5195.73 | I50: 5633.93 | J50: 5714.02 | K50: 5853.03 | L50: 5575 | M50: 5355.9 | N50: 1362800 | O50: -1.35%
A51: 43 | B51: Pharma | C51: CADILAHC | D51: 377.95 | E51: 376.93 | F51: 372.37 | G51: 366.78 | H51: 362.22 | I51: 382.52 | J51: 387.08 | K51: 392.67 | L51: 381.5 | M51: 371.35 | N51: 9390400 | O51: -3.98%
A52: 44 | B52: Banking | C52: CANBK | D52: 217.75 | E52: 216.60 | F52: 212.20 | G52: 206.65 | H52: 202.25 | I52: 222.15 | J52: 226.55 | K52: 232.10 | L52: 221 | M52: 211.05 | N52: 8696000 | O52: -0.62%
A53: 45 | B53: Others | C53: CANFINHOME | D53: 225.70 | E53: 227.63 | F53: 216.62 | G53: 207.53 | H53: 196.52 | I53: 236.72 | J53: 247.73 | K53: 256.82 | L53: 238.65 | M53: 218.55 | N53: 5126250 | O53: -3.28%
A54: 46 | B54: Finance | C54: CAPF | D54: 455.15 | E54: 458.73 | F54: 436.47 | G54: 417.78 | H54: 395.52 | I54: 477.42 | J54: 499.68 | K54: 518.37 | L54: 481 | M54: 440.05 | N54: 6356000 | O54: 3.79%
A55: 47 | B55: Oil_Gas | C55: CASTROLIND | D55: 136.45 | E55: 136.42 | F55: 134.03 | G55: 131.62 | H55: 129.23 | I55: 138.83 | J55: 141.22 | K55: 143.63 | L55: 138.8 | M55: 134 | N55: 9520000 | O55: -0.03%
A56: 48 | B56: Automobile | C56: CEATLTD | D56: 1064.10 | E56: 1061.43 | F56: 1040.17 | G56: 1016.23 | H56: 994.97 | I56: 1085.37 | J56: 1106.63 | K56: 1130.57 | L56: 1082.7 | M56: 1037.5 | N56: 1041250 | O56: -1.62%
A57: 49 | B57: Textile | C57: CENTURYTEX | D57: 751.90 | E57: 750.22 | F57: 731.63 | G57: 711.37 | H57: 692.78 | I57: 770.48 | J57: 789.07 | K57: 809.33 | L57: 768.8 | M57: 729.95 | N57: 6516950 | O57: -1.79%
A58: 50 | B58: Power | C58: CESC | D58: 831.85 | E58: 825.78 | F58: 811.07 | G58: 790.28 | H58: 775.57 | I58: 846.57 | J58: 861.28 | K58: 882.07 | L58: 840.5 | M58: 805 | N58: 6001050 | O58: 1.35%
A59: 51 | B59: Power | C59: CGPOWER | D59: 40.95 | E59: 40.67 | F59: 39.58 | G59: 38.22 | H59: 37.13 | I59: 42.03 | J59: 43.12 | K59: 44.48 | L59: 41.75 | M59: 39.3 | N59: 34308000 | O59: -0.59%
A60: 52 | B60: Others | C60: CHENNPETRO | D60: 232.75 | E60: 238.33 | F60: 217.67 | G60: 202.58 | H60: 181.92 | I60: 253.42 | J60: 274.08 | K60: 289.17 | L60: 259 | M60: 223.25 | N60: 1084500 | O60: 21.72%
A61: 53 | B61: Others | C61: CHOLAFIN | D61: 1056.90 | E61: 1072.95 | F61: 1020.95 | G61: 985.00 | H61: 933.00 | I61: 1108.90 | J61: 1160.90 | K61: 1196.85 | L61: 1124.95 | M61: 1037 | N61: 910000 | O61: 8.40%
A62: 54 | B62: Pharma | C62: CIPLA | D62: 638.25 | E62: 636.22 | F62: 629.63 | G62: 621.02 | H62: 614.43 | I62: 644.83 | J62: 651.42 | K62: 660.03 | L62: 642.8 | M62: 627.6 | N62: 10542000 | O62: 2.93%
A63: 55 | B63: Others | C63: COALINDIA | D63: 268.75 | E63: 268.28 | F63: 263.67 | G63: 258.58 | H63: 253.97 | I63: 273.37 | J63: 277.98 | K63: 283.07 | L63: 272.9 | M63: 263.2 | N63: 18796800 | O63: 2.25%
A64: 56 | B64: FMCG | C64: COLPAL | D64: 1045.40 | E64: 1051.93 | F64: 1030.47 | G64: 1015.53 | H64: 994.07 | I64: 1066.87 | J64: 1088.33 | K64: 1103.27 | L64: 1073.4 | M64: 1037 | N64: 1605800 | O64: 1.15%
A65: 57 | B65: Others | C65: CONCOR | D65: 600.25 | E65: 604.75 | F65: 587.50 | G65: 574.75 | H65: 557.50 | I65: 617.50 | J65: 634.75 | K65: 647.50 | L65: 622 | M65: 592 | N65: 2852500 | O65: 3.87%
A66: 58 | B66: Capital_Goods | C66: CUMMINSIND | D66: 659.25 | E66: 658.13 | F66: 647.12 | G66: 634.98 | H66: 623.97 | I66: 670.27 | J66: 681.28 | K66: 693.42 | L66: 669.15 | M66: 646 | N66: 1188600 | O66: 1.07%
A67: 59 | B67: FMCG | C67: DABUR | D67: 411.85 | E67: 413.35 | F67: 403.70 | G67: 395.55 | H67: 385.90 | I67: 421.50 | J67: 431.15 | K67: 439.30 | L67: 423 | M67: 405.2 | N67: 15525000 | O67: -3.39%
A68: 60 | B68: Cement | C68: DALMIABHA | D68: 2076.45 | E68: 2088.15 | F68: 2038.30 | G68: 2000.15 | H68: 1950.30 | I68: 2126.30 | J68: 2176.15 | K68: 2214.30 | L68: 2138 | M68: 2050 | N68: 429300 | O68: 0.42%
A69: 61 | B69: Banking | C69: DCBBANK | D69: 141.75 | E69: 141.53 | F69: 137.97 | G69: 134.18 | H69: 130.62 | I69: 145.32 | J69: 148.88 | K69: 152.67 | L69: 145.1 | M69: 137.75 | N69: 6048000 | O69: -1.32%
A70: 62 | B70: Finance | C70: DHFL | D70: 224.00 | E70: 233.53 | F70: 196.32 | G70: 168.63 | H70: 131.42 | I70: 261.22 | J70: 298.43 | K70: 326.12 | L70: 270.75 | M70: 205.85 | N70: 11977500 | O70: 6.07%
A71: 63 | B71: Media | C71: DISHTV | D71: 52.60 | E71: 51.48 | F71: 50.12 | G71: 47.63 | H71: 46.27 | I71: 53.97 | J71: 55.33 | K71: 57.82 | L71: 52.85 | M71: 49 | N71: 37616000 | O71: -0.57%
A72: 64 | B72: Pharma | C72: DIVISLAB | D72: 1284.90 | E72: 1279.27 | F72: 1258.88 | G72: 1232.87 | H72: 1212.48 | I72: 1305.28 | J72: 1325.67 | K72: 1351.68 | L72: 1299.65 | M72: 1253.25 | N72: 2770400 | O72: 2.00%
A73: 65 | B73: Realty | C73: DLF | D73: 152.85 | E73: 151.97 | F73: 147.33 | G73: 141.82 | H73: 137.18 | I73: 157.48 | J73: 162.12 | K73: 167.63 | L73: 156.6 | M73: 146.45 | N73: 31587500 | O73: -5.36%
A74: 66 | B74: Pharma | C74: DRREDDY | D74: 2349.95 | E74: 2369.82 | F74: 2321.68 | G74: 2293.42 | H74: 2245.28 | I74: 2398.08 | J74: 2446.22 | K74: 2474.48 | L74: 2417.95 | M74: 2341.55 | N74: 4255250 | O74: 1.41%
A75: 67 | B75: Automobile | C75: EICHERMOT | D75: 22180.25 | E75: 21748.42 | F75: 21156.83 | G75: 20133.42 | H75: 19541.83 | I75: 22771.83 | J75: 23363.42 | K75: 24386.83 | L75: 22340 | M75: 20725 | N75: 299275 | O75: -2.17%
A76: 68 | B76: Infrastructure | C76: ENGINERSIN | D76: 106.40 | E76: 105.33 | F76: 102.97 | G76: 99.53 | H76: 97.17 | I76: 108.77 | J76: 111.13 | K76: 114.57 | L76: 107.7 | M76: 101.9 | N76: 9530500 | O76: -7.51%
A77: 69 | B77: Finance | C77: EQUITAS | D77: 108.40 | E77: 109.50 | F77: 104.80 | G77: 101.20 | H77: 96.50 | I77: 113.10 | J77: 117.80 | K77: 121.40 | L77: 114.2 | M77: 105.9 | N77: 14952000 | O77: 1.14%
A78: 70 | B78: Automobile | C78: ESCORTS | D78: 559.25 | E78: 567.02 | F78: 536.18 | G78: 513.12 | H78: 482.28 | I78: 590.08 | J78: 620.92 | K78: 643.98 | L78: 597.85 | M78: 543.95 | N78: 5540700 | O78: 1.61%
A79: 71 | B79: Automobile | C79: EXIDEIND | D79: 249.40 | E79: 247.30 | F79: 243.90 | G79: 238.40 | H79: 235.00 | I79: 252.80 | J79: 256.20 | K79: 261.70 | L79: 250.7 | M79: 241.8 | N79: 5260000 | O79: -5.40%
A80: 72 | B80: Banking | C80: FEDERALBNK | D80: 70.30 | E80: 69.72 | F80: 68.63 | G80: 66.97 | H80: 65.88 | I80: 71.38 | J80: 72.47 | K80: 74.13 | L80: 70.8 | M80: 68.05 | N80: 44627000 | O80: -5.34%
A81: 73 | B81: Oil_Gas | C81: GAIL | D81: 345.50 | E81: 342.00 | F81: 336.35 | G81: 327.20 | H81: 321.55 | I81: 351.15 | J81: 356.80 | K81: 365.95 | L81: 347.65 | M81: 332.85 | N81: 19055715 | O81: -4.00%
A82: 74 | B82: Pharma | C82: GLENMARK | D82: 598.55 | E82: 592.03 | F82: 581.42 | G82: 564.28 | H82: 553.67 | I82: 609.17 | J82: 619.78 | K82: 636.92 | L82: 602.65 | M82: 574.9 | N82: 3846000 | O82: -1.38%
A83: 75 | B83: Infrastructure | C83: GMRINFRA | D83: 15.80 | E83: 15.85 | F83: 15.20 | G83: 14.60 | H83: 13.95 | I83: 16.45 | J83: 17.10 | K83: 17.70 | L83: 16.5 | M83: 15.25 | N83: 186030000 | O83: -1.99%
A84: 76 | B84: Others | C84: GODFRYPHLP | D84: 674.50 | E84: 672.02 | F84: 642.33 | G84: 610.17 | H84: 580.48 | I84: 704.18 | J84: 733.87 | K84: 766.03 | L84: 701.7 | M84: 639.85 | N84: 566300 | O84: -3.92%
A85: 77 | B85: FMCG | C85: GODREJCP | D85: 703.40 | E85: 703.08 | F85: 685.57 | G85: 667.73 | H85: 650.22 | I85: 720.92 | J85: 738.43 | K85: 756.27 | L85: 720.6 | M85: 685.25 | N85: 4776000 | O85: 1.79%
A86: 78 | B86: FMCG | C86: GODREJIND | D86: 480.75 | E86: 478.42 | F86: 468.88 | G86: 457.02 | H86: 447.48 | I86: 490.28 | J86: 499.82 | K86: 511.68 | L86: 487.95 | M86: 466.55 | N86: 2013000 | O86: -5.56%
A87: 79 | B87: Pharma | C87: GRANULES | D87: 92.90 | E87: 93.10 | F87: 90.45 | G87: 88.00 | H87: 85.35 | I87: 95.55 | J87: 98.20 | K87: 100.65 | L87: 95.75 | M87: 90.65 | N87: 13925000 | O87: -3.80%
A88: 80 | B88: Cement | C88: GRASIM | D88: 925.80 | E88: 920.03 | F88: 911.12 | G88: 896.43 | H88: 887.52 | I88: 934.72 | J88: 943.63 | K88: 958.32 | L88: 928.95 | M88: 905.35 | N88: 3702000 | O88: -1.61%
A89: 81 | B89: Others | C89: GSFC | D89: 90.05 | E89: 89.92 | F89: 86.78 | G89: 83.52 | H89: 80.38 | I89: 93.18 | J89: 96.32 | K89: 99.58 | L89: 93.05 | M89: 86.65 | N89: 13810500 | O89: 2.13%
A90: 82 | B90: Others | C90: HAVELLS | D90: 572.50 | E90: 578.48 | F90: 556.97 | G90: 541.43 | H90: 519.92 | I90: 594.02 | J90: 615.53 | K90: 631.07 | L90: 600 | M90: 562.95 | N90: 4183000 | O90: 0.24%
A91: 83 | B91: Others | C91: HCC | D91: 11.45 | E91: 11.28 | F91: 11.02 | G91: 10.58 | H91: 10.32 | I91: 11.72 | J91: 11.98 | K91: 12.42 | L91: 11.55 | M91: 10.85 | N91: 34794000 | O91: -4.35%
A92: 84 | B92: Technology | C92: HCLTECH | D92: 1077.05 | E92: 1073.67 | F92: 1056.38 | G92: 1035.72 | H92: 1018.43 | I92: 1094.33 | J92: 1111.62 | K92: 1132.28 | L92: 1090.95 | M92: 1053 | N92: 7127400 | O92: -0.70%
A93: 85 | B93: Finance | C93: HDFC | D93: 1673.85 | E93: 1681.67 | F93: 1643.68 | G93: 1613.52 | H93: 1575.53 | I93: 1711.83 | J93: 1749.82 | K93: 1779.98 | L93: 1719.65 | M93: 1651.5 | N93: 26714500 | O93: -0.19%
A94: 86 | B94: Banking | C94: HDFCBANK | D94: 1955.65 | E94: 1955.72 | F94: 1937.53 | G94: 1919.42 | H94: 1901.23 | I94: 1973.83 | J94: 1992.02 | K94: 2010.13 | L94: 1973.9 | M94: 1937.6 | N94: 12591500 | O94: -0.08%
A95: 88 | B95: Automobile | C95: HEROMOTOCO | D95: 2870.00 | E95: 2824.63 | F95: 2769.32 | G95: 2668.63 | H95: 2613.32 | I95: 2925.32 | J95: 2980.63 | K95: 3081.32 | L95: 2879.95 | M95: 2723.95 | N95: 1323800 | O95: -7.14%
A96: 89 | B96: Technology | C96: HEXAWARE | D96: 408.10 | E96: 407.78 | F96: 397.37 | G96: 386.63 | H96: 376.22 | I96: 418.52 | J96: 428.93 | K96: 439.67 | L96: 418.2 | M96: 397.05 | N96: 4671000 | O96: 0.29%
A97: 90 | B97: Metals | C97: HINDALCO | D97: 223.05 | E97: 224.95 | F97: 212.70 | G97: 202.35 | H97: 190.10 | I97: 235.30 | J97: 247.55 | K97: 257.90 | L97: 237.2 | M97: 214.6 | N97: 37219000 | O97: -2.36%
A98: 91 | B98: Oil_Gas | C98: HINDPETRO | D98: 178.75 | E98: 174.90 | F98: 168.90 | G98: 159.05 | H98: 153.05 | I98: 184.75 | J98: 190.75 | K98: 200.60 | L98: 180.9 | M98: 165.05 | N98: 27439650 | O98: -9.04%
A99: 92 | B99: FMCG | C99: HINDUNILVR | D99: 1552.85 | E99: 1550.92 | F99: 1535.93 | G99: 1519.02 | H99: 1504.03 | I99: 1567.83 | J99: 1582.82 | K99: 1599.73 | L99: 1565.9 | M99: 1534 | N99: 9395400 | O99: -0.43%
A100: 93 | B100: Metals | C100: HINDZINC | D100: 270.20 | E100: 272.53 | F100: 261.07 | G100: 251.93 | H100: 240.47 | I100: 281.67 | J100: 293.13 | K100: 302.27 | L100: 284 | M100: 263.4 | N100: 7948800 | O100: 3.07%
A101: 94 | B101: Finance | C101: IBULHSGFIN | D101: 933.35 | E101: 923.68 | F101: 894.67 | G101: 855.98 | H101: 826.97 | I101: 962.37 | J101: 991.38 | K101: 1030.07 | L101: 952.7 | M101: 885 | N101: 16437500 | O101: 4.74%
A102: 95 | B102: Banking | C102: ICICIBANK | D102: 311.10 | E102: 308.43 | F102: 301.87 | G102: 292.63 | H102: 286.07 | I102: 317.67 | J102: 324.23 | K102: 333.47 | L102: 315 | M102: 299.2 | N102: 97845000 | O102: -0.38%
A103: 96 | B103: Others | C103: ICICIPRULI | D103: 319.05 | E103: 321.12 | F103: 313.98 | G103: 308.92 | H103: 301.78 | I103: 326.18 | J103: 333.32 | K103: 338.38 | L103: 328.25 | M103: 316.05 | N103: 4314700 | O103: -2.92%
A104: 97 | B104: Banking | C104: IDBI | D104: 58.80 | E104: 58.42 | F104: 57.48 | G104: 56.17 | H104: 55.23 | I104: 59.73 | J104: 60.67 | K104: 61.98 | L104: 59.35 | M104: 57.1 | N104: 52910000 | O104: 4.54%
A105: 98 | B105: Telecom | C105: IDEA | D105: 33.85 | E105: 33.62 | F105: 32.83 | G105: 31.82 | H105: 31.03 | I105: 34.63 | J105: 35.42 | K105: 36.43 | L105: 34.4 | M105: 32.6 | N105: 148253000 | O105: -1.28%
A106: 99 | B106: Finance | C106: IDFC | D106: 37.35 | E106: 37.62 | F106: 36.13 | G106: 34.92 | H106: 33.43 | I106: 38.83 | J106: 40.32 | K106: 41.53 | L106: 39.1 | M106: 36.4 | N106: 115130400 | O106: -2.07%
A107: 100 | B107: Banking | C107: IDFCBANK | D107: 33.85 | E107: 34.05 | F107: 32.55 | G107: 31.25 | H107: 29.75 | I107: 35.35 | J107: 36.85 | K107: 38.15 | L107: 35.55 | M107: 32.75 | N107: 124465000 | O107: 1.34%
A108: 101 | B108: Finance | C108: IFCI | D108: 12.05 | E108: 12.00 | F108: 11.55 | G108: 11.05 | H108: 10.60 | I108: 12.50 | J108: 12.95 | K108: 13.45 | L108: 12.45 | M108: 11.5 | N108: 57550000 | O108: -0.60%
A109: 102 | B109: Oil_Gas | C109: IGL | D109: 222.00 | E109: 222.33 | F109: 215.72 | G109: 209.43 | H109: 202.82 | I109: 228.62 | J109: 235.23 | K109: 241.52 | L109: 228.95 | M109: 216.05 | N109: 4380750 | O109: 3.64%
A110: 103 | B110: Cement | C110: INDIACEM | D110: 92.40 | E110: 92.62 | F110: 89.08 | G110: 85.77 | H110: 82.23 | I110: 95.93 | J110: 99.47 | K110: 102.78 | L110: 96.15 | M110: 89.3 | N110: 17951500 | O110: -0.45%
A111: 104 | B111: Banking | C111: INDIANB | D111: 231.75 | E111: 229.05 | F111: 224.70 | G111: 217.65 | H111: 213.30 | I111: 236.10 | J111: 240.45 | K111: 247.50 | L111: 233.4 | M111: 222 | N111: 4840000 | O111: -0.86%
A112: 105 | B112: Others | C112: INDIGO | D112: 781.40 | E112: 774.53 | F112: 763.67 | G112: 745.93 | H112: 735.07 | I112: 792.27 | J112: 803.13 | K112: 820.87 | L112: 785.4 | M112: 756.8 | N112: 3281400 | O112: 0.15%
A113: 106 | B113: Banking | C113: INDUSINDBK | D113: 1608.40 | E113: 1608.17 | F113: 1585.03 | G113: 1561.67 | H113: 1538.53 | I113: 1631.53 | J113: 1654.67 | K113: 1678.03 | L113: 1631.3 | M113: 1584.8 | N113: 6523500 | O113: 0.73%
A114: 107 | B114: Technology | C114: INFIBEAM | D114: 57.45 | E114: 58.50 | F114: 53.50 | G114: 49.55 | H114: 44.55 | I114: 62.45 | J114: 67.45 | K114: 71.40 | L114: 63.5 | M114: 54.55 | N114: 26092000 | O114: 4.72%
A115: 108 | B115: Telecom | C115: INFRATEL | D115: 267.20 | E115: 263.52 | F115: 257.88 | G115: 248.57 | H115: 242.93 | I115: 272.83 | J115: 278.47 | K115: 287.78 | L115: 269.15 | M115: 254.2 | N115: 5822500 | O115: -1.01%
A116: 109 | B116: Technology | C116: INFY | D116: 717.85 | E116: 719.47 | F116: 709.68 | G116: 701.52 | H116: 691.73 | I116: 727.63 | J116: 737.42 | K116: 745.58 | L116: 729.25 | M116: 711.3 | N116: 27650400 | O116: 0.20%
A117: 110 | B117: Oil_Gas | C117: IOC | D117: 124.80 | E117: 122.87 | F117: 119.78 | G117: 114.77 | H117: 111.68 | I117: 127.88 | J117: 130.97 | K117: 135.98 | L117: 125.95 | M117: 117.85 | N117: 31992000 | O117: 11.85%
A118: 111 | B118: Infrastructure | C118: IRB | D118: 124.95 | E118: 125.60 | F118: 120.60 | G118: 116.25 | H118: 111.25 | I118: 129.95 | J118: 134.95 | K118: 139.30 | L118: 130.6 | M118: 121.25 | N118: 13865000 | O118: 0.82%
A119: 112 | B119: FMCG | C119: ITC | D119: 274.55 | E119: 275.17 | F119: 269.63 | G119: 264.72 | H119: 259.18 | I119: 280.08 | J119: 285.62 | K119: 290.53 | L119: 280.7 | M119: 270.25 | N119: 72787200 | O119: 5.16%
A120: 113 | B120: Others | C120: JETAIRWAYS | D120: 179.95 | E120: 179.02 | F120: 173.98 | G120: 168.02 | H120: 162.98 | I120: 184.98 | J120: 190.02 | K120: 195.98 | L120: 184.05 | M120: 173.05 | N120: 6693600 | O120: -1.24%
A121: 114 | B121: Metals | C121: JINDALSTEL | D121: 175.35 | E121: 172.88 | F121: 166.97 | G121: 158.58 | H121: 152.67 | I121: 181.27 | J121: 187.18 | K121: 195.57 | L121: 178.8 | M121: 164.5 | N121: 31101750 | O121: -2.60%
A122: 115 | B122: Others | C122: JISLJALEQS | D122: 61.90 | E122: 62.02 | F122: 59.58 | G122: 57.27 | H122: 54.83 | I122: 64.33 | J122: 66.77 | K122: 69.08 | L122: 64.45 | M122: 59.7 | N122: 38556000 | O122: 0.54%
A123: 116 | B123: Realty | C123: JPASSOCIAT | D123: 6.25 | E123: 6.32 | F123: 5.98 | G123: 5.72 | H123: 5.38 | I123: 6.58 | J123: 6.92 | K123: 7.18 | L123: 6.65 | M123: 6.05 | N123: 103802000 | O123: -0.75%
A124: 117 | B124: Metals | C124: JSWSTEEL | D124: 376.15 | E124: 371.93 | F124: 361.92 | G124: 347.68 | H124: 337.67 | I124: 386.17 | J124: 396.18 | K124: 410.42 | L124: 381.95 | M124: 357.7 | N124: 51276000 | O124: -1.63%
A125: 118 | B125: Others | C125: JUBLFOOD | D125: 1187.15 | E125: 1169.62 | F125: 1140.48 | G125: 1093.82 | H125: 1064.68 | I125: 1216.28 | J125: 1245.42 | K125: 1292.08 | L125: 1198.75 | M125: 1122.95 | N125: 3424500 | O125: -2.30%
A126: 119 | B126: Others | C126: JUSTDIAL | D126: 455.75 | E126: 454.13 | F126: 444.22 | G126: 432.68 | H126: 422.77 | I126: 465.67 | J126: 475.58 | K126: 487.12 | L126: 464.05 | M126: 442.6 | N126: 2374400 | O126: -2.92%
A127: 120 | B127: Others | C127: KAJARIACER | D127: 335.50 | E127: 340.17 | F127: 322.58 | G127: 309.67 | H127: 292.08 | I127: 353.08 | J127: 370.67 | K127: 383.58 | L127: 357.75 | M127: 327.25 | N127: 2404000 | O127: -0.87%
A128: 121 | B128: Banking | C128: KOTAKBANK | D128: 1105.80 | E128: 1089.53 | F128: 1062.52 | G128: 1019.23 | H128: 992.22 | I128: 1132.82 | J128: 1159.83 | K128: 1203.12 | L128: 1116.55 | M128: 1046.25 | N128: 10988000 | O128: -7.01%
A129: 122 | B129: Technology | C129: KPIT | D129: 192.95 | E129: 192.77 | F129: 187.48 | G129: 182.02 | H129: 176.73 | I129: 198.23 | J129: 203.52 | K129: 208.98 | L129: 198.05 | M129: 187.3 | N129: 10093500 | O129: -0.75%
A130: 123 | B130: Others | C130: KSCL | D130: 494.75 | E130: 495.97 | F130: 481.93 | G130: 469.12 | H130: 455.08 | I130: 508.78 | J130: 522.82 | K130: 535.63 | L130: 510 | M130: 483.15 | N130: 1068000 | O130: -13.06%
A131: 124 | B131: Banking | C131: KTKBANK | D131: 99.45 | E131: 98.38 | F131: 96.82 | G131: 94.18 | H131: 92.62 | I131: 101.02 | J131: 102.58 | K131: 105.22 | L131: 99.95 | M131: 95.75 | N131: 16159500 | O131: -1.48%
A132: 125 | B132: Finance | C132: L&TFH | D132: 119.10 | E132: 119.28 | F132: 114.42 | G132: 109.73 | H132: 104.87 | I132: 123.97 | J132: 128.83 | K132: 133.52 | L132: 124.15 | M132: 114.6 | N132: 36166500 | O132: -2.97%
A133: 126 | B133: Finance | C133: LICHSGFIN | D133: 398.90 | E133: 399.62 | F133: 391.83 | G133: 384.77 | H133: 376.98 | I133: 406.68 | J133: 414.47 | K133: 421.53 | L133: 407.4 | M133: 392.55 | N133: 10016600 | O133: -3.72%
A134: 127 | B134: Capital_Goods | C134: LT | D134: 1210.75 | E134: 1213.58 | F134: 1193.17 | G134: 1175.58 | H134: 1155.17 | I134: 1231.17 | J134: 1251.58 | K134: 1269.17 | L134: 1234 | M134: 1196 | N134: 11274750 | O134: -2.48%
A135: 128 | B135: Pharma | C135: LUPIN | D135: 850.25 | E135: 841.10 | F135: 827.40 | G135: 804.55 | H135: 790.85 | I135: 863.95 | J135: 877.65 | K135: 900.50 | L135: 854.8 | M135: 818.25 | N135: 9223900 | O135: -4.47%
A136: 129 | B136: Automobile | C136: M&M | D136: 778.65 | E136: 772.70 | F136: 762.40 | G136: 746.15 | H136: 735.85 | I136: 788.95 | J136: 799.25 | K136: 815.50 | L136: 783 | M136: 756.45 | N136: 16647000 | O136: -0.57%
A137: 130 | B137: Finance | C137: M&MFIN | D137: 364.15 | E137: 367.15 | F137: 349.40 | G137: 334.65 | H137: 316.90 | I137: 381.90 | J137: 399.65 | K137: 414.40 | L137: 384.9 | M137: 352.4 | N137: 11355000 | O137: 2.63%
A138: 131 | B138: Others | C138: MANAPPURAM | D138: 68.60 | E138: 69.17 | F138: 65.78 | G138: 62.97 | H138: 59.58 | I138: 71.98 | J138: 75.37 | K138: 78.18 | L138: 72.55 | M138: 66.35 | N138: 20916000 | O138: 3.26%
A139: 132 | B139: FMCG | C139: MARICO | D139: 311.30 | E139: 310.05 | F139: 306.45 | G139: 301.60 | H139: 298.00 | I139: 314.90 | J139: 318.50 | K139: 323.35 | L139: 313.65 | M139: 305.2 | N139: 8957000 | O139: -0.69%
A140: 133 | B140: Automobile | C140: MARUTI | D140: 6913.55 | E140: 6902.75 | F140: 6795.55 | G140: 6677.55 | H140: 6570.35 | I140: 7020.75 | J140: 7127.95 | K140: 7245.95 | L140: 7009.95 | M140: 6784.75 | N140: 3156825 | O140: -0.10%
A141: 134 | B141: FMCG | C141: MCDOWELL-N | D141: 466.60 | E141: 469.47 | F141: 459.13 | G141: 451.67 | H141: 441.33 | I141: 476.93 | J141: 487.27 | K141: 494.73 | L141: 479.8 | M141: 462 | N141: 10618750 | O141: -0.79%
A142: 135 | B142: Others | C142: MCX | D142: 686.50 | E142: 681.03 | F142: 668.47 | G142: 650.43 | H142: 637.87 | I142: 699.07 | J142: 711.63 | K142: 729.67 | L142: 693.6 | M142: 663 | N142: 4007500 | O142: -5.73%
A143: 136 | B143: Finance | C143: MFSL | D143: 366.75 | E143: 366.03 | F143: 354.07 | G143: 341.38 | H143: 329.42 | I143: 378.72 | J143: 390.68 | K143: 403.37 | L143: 378 | M143: 353.35 | N143: 2326800 | O143: -10.02%
A144: 137 | B144: Others | C144: MGL | D144: 785.90 | E144: 784.30 | F144: 772.10 | G144: 758.30 | H144: 746.10 | I144: 798.10 | J144: 810.30 | K144: 824.10 | L144: 796.5 | M144: 770.5 | N144: 1926000 | O144: -3.89%
A145: 138 | B145: Technology | C145: MINDTREE | D145: 1000.30 | E145: 1008.80 | F145: 967.60 | G145: 934.90 | H145: 893.70 | I145: 1041.50 | J145: 1082.70 | K145: 1115.40 | L145: 1050 | M145: 976.1 | N145: 4276800 | O145: 0.62%
A146: 139 | B146: Automobile | C146: MOTHERSUMI | D146: 236.40 | E146: 233.47 | F146: 225.33 | G146: 214.27 | H146: 206.13 | I146: 244.53 | J146: 252.67 | K146: 263.73 | L146: 241.6 | M146: 222.4 | N146: 17099200 | O146: 3.34%
A147: 140 | B147: Automobile | C147: MRF | D147: 61428.15 | E147: 60984.00 | F147: 60078.00 | G147: 58727.85 | H147: 57821.85 | I147: 62334.15 | J147: 63240.15 | K147: 64590.30 | L147: 61890 | M147: 59633.85 | N147: 26880 | O147: -2.25%
A148: 141 | B148: Others | C148: MRPL | D148: 64.45 | E148: 64.33 | F148: 62.42 | G148: 60.38 | H148: 58.47 | I148: 66.37 | J148: 68.28 | K148: 70.32 | L148: 66.25 | M148: 62.3 | N148: 4950000 | O148: -6.14%
A149: 142 | B149: Finance | C149: MUTHOOTFIN | D149: 377.05 | E149: 377.35 | F149: 364.00 | G149: 350.95 | H149: 337.60 | I149: 390.40 | J149: 403.75 | K149: 416.80 | L149: 390.7 | M149: 364.3 | N149: 2266500 | O149: -4.67%
A150: 143 | B150: Others | C150: NATIONALUM | D150: 61.30 | E150: 61.45 | F150: 59.35 | G150: 57.40 | H150: 55.30 | I150: 63.40 | J150: 65.50 | K150: 67.45 | L150: 63.55 | M150: 59.5 | N150: 44848000 | O150: -6.36%
A151: 144 | B151: Others | C151: NBCC | D151: 54.60 | E151: 54.13 | F151: 53.02 | G151: 51.43 | H151: 50.32 | I151: 55.72 | J151: 56.83 | K151: 58.42 | L151: 55.25 | M151: 52.55 | N151: 18954000 | O151: -6.18%
A152: 145 | B152: Infrastructure | C152: NCC | D152: 70.75 | E152: 71.07 | F152: 68.28 | G152: 65.82 | H152: 63.03 | I152: 73.53 | J152: 76.32 | K152: 78.78 | L152: 73.85 | M152: 68.6 | N152: 44704000 | O152: -2.12%
A153: 146 | B153: Others | C153: NESTLEIND | D153: 9411.05 | E153: 9391.05 | F153: 9281.05 | G153: 9151.05 | H153: 9041.05 | I153: 9521.05 | J153: 9631.05 | K153: 9761.05 | L153: 9501.05 | M153: 9261.05 | N153: 356900 | O153: 0.08%
A154: 147 | B154: Power | C154: NHPC | D154: 22.60 | E154: 22.72 | F154: 22.23 | G154: 21.87 | H154: 21.38 | I154: 23.08 | J154: 23.57 | K154: 23.93 | L154: 23.2 | M154: 22.35 | N154: 21654000 | O154: 0.88%
A155: 148 | B155: Technology | C155: NIITTECH | D155: 1129.80 | E155: 1133.05 | F155: 1090.15 | G155: 1050.50 | H155: 1007.60 | I155: 1172.70 | J155: 1215.60 | K155: 1255.25 | L155: 1175.95 | M155: 1093.4 | N155: 1329750 | O155: -0.39%
A156: 149 | B156: Metals | C156: NMDC | D156: 108.35 | E156: 107.97 | F156: 105.28 | G156: 102.22 | H156: 99.53 | I156: 111.03 | J156: 113.72 | K156: 116.78 | L156: 110.65 | M156: 104.9 | N156: 21318000 | O156: -0.84%
A157: 150 | B157: Power | C157: NTPC | D157: 164.15 | E157: 163.23 | F157: 161.17 | G157: 158.18 | H157: 156.12 | I157: 166.22 | J157: 168.28 | K157: 171.27 | L157: 165.3 | M157: 160.25 | N157: 34904000 | O157: 0.82%
A158: 151 | B158: Technology | C158: OFSS | D158: 3915.80 | E158: 3939.92 | F158: 3850.88 | G158: 3785.97 | H158: 3696.93 | I158: 4004.83 | J158: 4093.87 | K158: 4158.78 | L158: 4028.95 | M158: 3875 | N158: 325950 | O158: -1.32%
A159: 152 | B159: Oil_Gas | C159: OIL | D159: 193.60 | E159: 191.15 | F159: 187.35 | G159: 181.10 | H159: 177.30 | I159: 197.40 | J159: 201.20 | K159: 207.45 | L159: 194.95 | M159: 184.9 | N159: 3004716 | O159: 5.11%
A160: 153 | B160: Oil_Gas | C160: ONGC | D160: 150.10 | E160: 148.97 | F160: 146.28 | G160: 142.47 | H160: 139.78 | I160: 152.78 | J160: 155.47 | K160: 159.28 | L160: 151.65 | M160: 145.15 | N160: 46785000 | O160: -0.41%
A161: 154 | B161: Banking | C161: ORIENTBANK | D161: 60.30 | E161: 60.23 | F161: 59.02 | G161: 57.73 | H161: 56.52 | I161: 61.52 | J161: 62.73 | K161: 64.02 | L161: 61.45 | M161: 58.95 | N161: 12828000 | O161: 0.09%
A162: 155 | B162: Textile | C162: PAGEIND | D162: 29042.30 | E162: 28747.45 | F162: 27944.90 | G162: 26847.50 | H162: 26044.95 | I162: 29844.85 | J162: 30647.40 | K162: 31744.80 | L162: 29550 | M162: 27650.05 | N162: 125375 | O162: -3.28%
A163: 156 | B163: Others | C163: PCJEWELLER | D163: 59.10 | E163: 59.15 | F163: 55.55 | G163: 52.00 | H163: 48.40 | I163: 62.70 | J163: 66.30 | K163: 69.85 | L163: 62.75 | M163: 55.6 | N163: 8578500 | O163: -1.90%
A164: 157 | B164: Pharma | C164: PEL | D164: 2116.00 | E164: 2154.33 | F164: 2007.22 | G164: 1898.43 | H164: 1751.32 | I164: 2263.12 | J164: 2410.23 | K164: 2519.02 | L164: 2301.45 | M164: 2045.55 | N164: 3591988 | O164: -0.06%
A165: 158 | B165: Oil_Gas | C165: PETRONET | D165: 213.50 | E165: 212.77 | F165: 209.53 | G165: 205.57 | H165: 202.33 | I165: 216.73 | J165: 219.97 | K165: 223.93 | L165: 216 | M165: 208.8 | N165: 13593000 | O165: 2.12%
A166: 159 | B166: Finance | C166: PFC | D166: 74.35 | E166: 74.83 | F166: 71.72 | G166: 69.08 | H166: 65.97 | I166: 77.47 | J166: 80.58 | K166: 83.22 | L166: 77.95 | M166: 72.2 | N166: 84402000 | O166: 1.64%
A167: 160 | B167: FMCG | C167: PIDILITIND | D167: 975.10 | E167: 970.58 | F167: 955.77 | G167: 936.43 | H167: 921.62 | I167: 989.92 | J167: 1004.73 | K167: 1024.07 | L167: 985.4 | M167: 951.25 | N167: 3175000 | O167: -2.01%
A168: 161 | B168: Banking | C168: PNB | D168: 63.15 | E168: 63.03 | F168: 61.22 | G168: 59.28 | H168: 57.47 | I168: 64.97 | J168: 66.78 | K168: 68.72 | L168: 64.85 | M168: 61.1 | N168: 112200000 | O168: 0.01%
A169: 162 | B169: Power | C169: POWERGRID | D169: 187.45 | E169: 186.85 | F169: 183.75 | G169: 180.05 | H169: 176.95 | I169: 190.55 | J169: 193.65 | K169: 197.35 | L169: 189.95 | M169: 183.15 | N169: 42096000 | O169: -1.30%
A170: 163 | B170: Power | C170: PTC | D170: 67.00 | E170: 66.38 | F170: 64.77 | G170: 62.53 | H170: 60.92 | I170: 68.62 | J170: 70.23 | K170: 72.47 | L170: 68 | M170: 64.15 | N170: 9392000 | O170: -0.76%
A171: 164 | B171: Others | C171: PVR | D171: 1185.65 | E171: 1164.87 | F171: 1135.78 | G171: 1085.92 | H171: 1056.83 | I171: 1214.73 | J171: 1243.82 | K171: 1293.68 | L171: 1193.95 | M171: 1115 | N171: 1072800 | O171: -1.61%
A172: 165 | B172: Cement | C172: RAMCOCEM | D172: 612.00 | E172: 613.62 | F172: 605.38 | G172: 598.77 | H172: 590.53 | I172: 620.23 | J172: 628.47 | K172: 635.08 | L172: 621.85 | M172: 607 | N172: 826400 | O172: -0.96%
A173: 166 | B173: Others | C173: RAYMOND | D173: 636.55 | E173: 634.12 | F173: 619.28 | G173: 602.02 | H173: 587.18 | I173: 651.38 | J173: 666.22 | K173: 683.48 | L173: 648.95 | M173: 616.85 | N173: 4755200 | O173: -0.75%
A174: 167 | B174: Banking | C174: RBLBANK | D174: 496.55 | E174: 493.52 | F174: 483.18 | G174: 469.82 | H174: 459.48 | I174: 506.88 | J174: 517.22 | K174: 530.58 | L174: 503.85 | M174: 480.15 | N174: 4590000 | O174: -0.44%
A175: 168 | B175: Telecom | C175: RCOM | D175: 11.10 | E175: 11.08 | F175: 10.62 | G175: 10.13 | H175: 9.67 | I175: 11.57 | J175: 12.03 | K175: 12.52 | L175: 11.55 | M175: 10.6 | N175: 92988000 | O175: -1.51%
A176: 169 | B176: Power | C176: RECLTD | D176: 100.80 | E176: 101.37 | F176: 98.08 | G176: 95.37 | H176: 92.08 | I176: 104.08 | J176: 107.37 | K176: 110.08 | L176: 104.65 | M176: 98.65 | N176: 38574000 | O176: 0.47%
A177: 170 | B177: Finance | C177: RELCAPITAL | D177: 235.90 | E177: 239.18 | F177: 218.72 | G177: 201.53 | H177: 181.07 | I177: 256.37 | J177: 276.83 | K177: 294.02 | L177: 259.65 | M177: 222 | N177: 10414500 | O177: -4.02%
A178: 171 | B178: Oil_Gas | C178: RELIANCE | D178: 1113.35 | E178: 1088.35 | F178: 1055.25 | G178: 997.15 | H178: 964.05 | I178: 1146.45 | J178: 1179.55 | K178: 1237.65 | L178: 1121.45 | M178: 1030.25 | N178: 47827000 | O178: -4.23%
A179: 172 | B179: Power | C179: RELINFRA | D179: 286.90 | E179: 286.70 | F179: 275.35 | G179: 263.80 | H179: 252.45 | I179: 298.25 | J179: 309.60 | K179: 321.15 | L179: 298.05 | M179: 275.15 | N179: 8461700 | O179: -0.14%
A180: 173 | B180: Others | C180: REPCOHOME | D180: 378.00 | E180: 380.17 | F180: 358.83 | G180: 339.67 | H180: 318.33 | I180: 399.33 | J180: 420.67 | K180: 439.83 | L180: 401.5 | M180: 361 | N180: 562500 | O180: -4.29%
A181: 174 | B181: Power | C181: RPOWER | D181: 24.40 | E181: 24.70 | F181: 23.35 | G181: 22.30 | H181: 20.95 | I181: 25.75 | J181: 27.10 | K181: 28.15 | L181: 26.05 | M181: 23.65 | N181: 46020000 | O181: 3.06%
A182: 175 | B182: Metals | C182: SAIL | D182: 64.85 | E182: 64.83 | F182: 62.72 | G182: 60.58 | H182: 58.47 | I182: 66.97 | J182: 69.08 | K182: 71.22 | L182: 66.95 | M182: 62.7 | N182: 72408000 | O182: -1.24%
A183: 176 | B183: Banking | C183: SBIN | D183: 266.50 | E183: 264.70 | F183: 260.15 | G183: 253.80 | H183: 249.25 | I183: 271.05 | J183: 275.60 | K183: 281.95 | L183: 269.25 | M183: 258.35 | N183: 86460000 | O183: 0.15%
A184: 177 | B184: Cement | C184: SHREECEM | D184: 16055.55 | E184: 15913.82 | F184: 15547.08 | G184: 15038.62 | H184: 14671.88 | I184: 16422.28 | J184: 16789.02 | K184: 17297.48 | L184: 16280.55 | M184: 15405.35 | N184: 100250 | O184: -0.10%
A185: 178 | B185: Capital_Goods | C185: SIEMENS | D185: 938.80 | E185: 929.50 | F185: 915.50 | G185: 892.20 | H185: 878.20 | I185: 952.80 | J185: 966.80 | K185: 990.10 | L185: 943.5 | M185: 906.2 | N185: 1314500 | O185: 0.31%
A186: 179 | B186: Banking | C186: SOUTHBANK | D186: 13.40 | E186: 13.47 | F186: 12.93 | G186: 12.47 | H186: 11.93 | I186: 13.93 | J186: 14.47 | K186: 14.93 | L186: 14 | M186: 13 | N186: 124974711 | O186: -0.84%
A187: 180 | B187: Others | C187: SREINFRA | D187: 31.45 | E187: 32.03 | F187: 30.12 | G187: 28.78 | H187: 26.87 | I187: 33.37 | J187: 35.28 | K187: 36.62 | L187: 33.95 | M187: 30.7 | N187: 14154000 | O187: -3.44%
A188: 181 | B188: Textile | C188: SRF | D188: 1659.35 | E188: 1663.60 | F188: 1612.25 | G188: 1565.15 | H188: 1513.80 | I188: 1710.70 | J188: 1762.05 | K188: 1809.15 | L188: 1714.95 | M188: 1616.5 | N188: 590500 | O188: -6.57%
A189: 182 | B189: Finance | C189: SRTRANSFIN | D189: 944.40 | E189: 965.25 | F189: 885.75 | G189: 827.10 | H189: 747.60 | I189: 1023.90 | J189: 1103.40 | K189: 1162.05 | L189: 1044.75 | M189: 906.6 | N189: 4528800 | O189: 1.15%
A190: 183 | B190: Pharma | C190: STAR | D190: 408.70 | E190: 411.48 | F190: 393.72 | G190: 378.73 | H190: 360.97 | I190: 426.47 | J190: 444.23 | K190: 459.22 | L190: 429.25 | M190: 396.5 | N190: 4660000 | O190: 0.09%
A191: 184 | B191: Pharma | C191: SUNPHARMA | D191: 605.50 | E191: 602.82 | F191: 594.23 | G191: 582.97 | H191: 574.38 | I191: 614.08 | J191: 622.67 | K191: 633.93 | L191: 611.4 | M191: 591.55 | N191: 31271900 | O191: -1.44%
A192: 185 | B192: Media | C192: SUNTV | D192: 620.40 | E192: 612.22 | F192: 594.93 | G192: 569.47 | H192: 552.18 | I192: 637.68 | J192: 654.97 | K192: 680.43 | L192: 629.5 | M192: 586.75 | N192: 6795000 | O192: 0.89%
A193: 186 | B193: Power | C193: SUZLON | D193: 5.55 | E193: 5.50 | F193: 5.35 | G193: 5.15 | H193: 5.00 | I193: 5.70 | J193: 5.85 | K193: 6.05 | L193: 5.65 | M193: 5.3 | N193: 315765000 | O193: -0.65%
A194: 187 | B194: Banking | C194: SYNDIBANK | D194: 30.35 | E194: 30.43 | F194: 29.37 | G194: 28.38 | H194: 27.32 | I194: 31.42 | J194: 32.48 | K194: 33.47 | L194: 31.5 | M194: 29.45 | N194: 25245000 | O194: 1.15%
A195: 188 | B195: Fertilisers | C195: TATACHEM | D195: 643.45 | E195: 646.13 | F195: 628.67 | G195: 613.88 | H195: 596.42 | I195: 660.92 | J195: 678.38 | K195: 693.17 | L195: 663.6 | M195: 631.35 | N195: 2932500 | O195: 0.23%
A196: 189 | B196: Telecom | C196: TATACOMM | D196: 478.60 | E196: 475.92 | F196: 468.43 | G196: 458.27 | H196: 450.78 | I196: 486.08 | J196: 493.57 | K196: 503.73 | L196: 483.4 | M196: 465.75 | N196: 2852000 | O196: -1.44%
A197: 190 | B197: Technology | C197: TATAELXSI | D197: 1006.15 | E197: 1041.12 | F197: 918.23 | G197: 830.32 | H197: 707.43 | I197: 1129.03 | J197: 1251.92 | K197: 1339.83 | L197: 1164 | M197: 953.2 | N197: 2186400 | O197: 11.10%
A198: 191 | B198: FMCG | C198: TATAGLOBAL | D198: 215.70 | E198: 214.98 | F198: 207.62 | G198: 199.53 | H198: 192.17 | I198: 223.07 | J198: 230.43 | K198: 238.52 | L198: 222.35 | M198: 206.9 | N198: 11310750 | O198: -6.72%
A199: 192 | B199: Automobile | C199: TATAMOTORS | D199: 213.50 | E199: 213.88 | F199: 208.32 | G199: 203.13 | H199: 197.57 | I199: 219.07 | J199: 224.63 | K199: 229.82 | L199: 219.45 | M199: 208.7 | N199: 75673500 | O199: -1.25%
A200: 193 | B200: Automobile | C200: TATAMTRDVR | D200: 115.50 | E200: 115.65 | F200: 112.80 | G200: 110.10 | H200: 107.25 | I200: 118.35 | J200: 121.20 | K200: 123.90 | L200: 118.5 | M200: 112.95 | N200: 30122400 | O200: -0.87%
A201: 194 | B201: Power | C201: TATAPOWER | D201: 61.75 | E201: 62.40 | F201: 59.60 | G201: 57.45 | H201: 54.65 | I201: 64.55 | J201: 67.35 | K201: 69.50 | L201: 65.2 | M201: 60.25 | N201: 42525000 | O201: -3.39%
A202: 195 | B202: Metals | C202: TATASTEEL | D202: 562.25 | E202: 559.30 | F202: 547.10 | G202: 531.95 | H202: 519.75 | I202: 574.45 | J202: 586.65 | K202: 601.80 | L202: 571.5 | M202: 544.15 | N202: 32113287 | O202: 0.40%
A203: 196 | B203: Technology | C203: TCS | D203: 2088.90 | E203: 2090.88 | F203: 2053.12 | G203: 2017.33 | H203: 1979.57 | I203: 2126.67 | J203: 2164.43 | K203: 2200.22 | L203: 2128.65 | M203: 2055.1 | N203: 8247000 | O203: -0.96%
A204: 197 | B204: Technology | C204: TECHM | D204: 698.35 | E204: 702.45 | F204: 682.90 | G204: 667.45 | H204: 647.90 | I204: 717.90 | J204: 737.45 | K204: 752.90 | L204: 722 | M204: 687 | N204: 15541200 | O204: 1.09%
A205: 198 | B205: FMCG | C205: TITAN | D205: 814.20 | E205: 803.55 | F205: 787.70 | G205: 761.20 | H205: 745.35 | I205: 830.05 | J205: 845.90 | K205: 872.40 | L205: 819.4 | M205: 777.05 | N205: 14751750 | O205: 1.26%
A206: 199 | B206: Pharma | C206: TORNTPHARM | D206: 1572.90 | E206: 1571.03 | F206: 1533.27 | G206: 1493.63 | H206: 1455.87 | I206: 1610.67 | J206: 1648.43 | K206: 1688.07 | L206: 1608.8 | M206: 1531.4 | N206: 506500 | O206: -2.78%
... 33 more rows

Sheet Cash Intra
M5: Back to Main Page
A6: FOR INTRA DAY TRADING | K6: =Main!B10 -> 2018-10-09
A8: Sr.no | B8: Scrip | C8: CLOSE RATE | D8: Pivot Point | E8: Supports | H8: Resistances
C9: Point | E9: S1 | F9: S2 | G9: S3 | H9: R1 | I9: R2 | J9: R3 | K9: HIGH | L9: LOW | M9: Total Trade Quanity in Lakhs
A10: 1 | B10: Nifty 50 | C10: 10348.05 | D10: 10314.93 | E10: 10231.52 | F10: 10114.98 | G10: 10031.57 | H10: 10431.47 | I10: 10514.88 | J10: 10631.42 | K10: 10398.35 | L10: 10198.4
A11: 2 | B11: Nifty Bank | C11: 24618.35 | D11: 24534.58 | E11: 24323.82 | F11: 24029.28 | G11: 23818.52 | H11: 24829.12 | I11: 25039.88 | J11: 25334.42 | K11: 24745.35 | L11: 24240.05
A12: 3 | B12: Nifty CPSE | C12: 2065.1 | D12: 2056.25 | E12: 2033.00 | F12: 2000.90 | G12: 1977.65 | H12: 2088.35 | I12: 2111.60 | J12: 2143.70 | K12: 2079.5 | L12: 2024.15
A13: 4 | B13: Nifty Infra | C13: 2828.75 | D13: 2826.78 | E13: 2795.77 | F13: 2762.78 | G13: 2731.77 | H13: 2859.77 | I13: 2890.78 | J13: 2923.77 | K13: 2857.8 | L13: 2793.8
A14: 5 | B14: Nifty IT | C14: 15305.2 | D14: 15382.55 | E14: 15120.90 | F14: 14936.60 | G14: 14674.95 | H14: 15566.85 | I14: 15828.50 | J14: 16012.80 | K14: 15644.2 | L14: 15198.25
A15: 6 | B15: Nifty PSE | C15: 3239.9 | D15: 3229.68 | E15: 3195.57 | F15: 3151.23 | G15: 3117.12 | H15: 3274.02 | I15: 3308.13 | J15: 3352.47 | K15: 3263.8 | L15: 3185.35
A16: 7 | B16: Nifty Midcap 50 | C16: 4367.1 | D16: 4363.12 | E16: 4292.78 | F16: 4218.47 | G16: 4148.13 | H16: 4437.43 | I16: 4507.77 | J16: 4582.08 | K16: 4433.45 | L16: 4288.8
A17: 8 | B17: ABB | C17: 1378.6 | D17: 1367.42 | E17: 1344.83 | F17: 1311.07 | G17: 1288.48 | H17: 1401.18 | I17: 1423.77 | J17: 1457.53 | K17: 1390 | L17: 1333.65 | M17: 0.58594
A18: 9 | B18: ACC | C18: 1474.65 | D18: 1465.08 | E18: 1446.17 | F18: 1417.68 | G18: 1398.77 | H18: 1493.57 | I18: 1512.48 | J18: 1540.97 | K18: 1484 | L18: 1436.6 | M18: 7.34973
A19: 10 | B19: AIAENG | C19: 1584.65 | D19: 1615.62 | E19: 1533.28 | F19: 1481.92 | G19: 1399.58 | H19: 1666.98 | I19: 1749.32 | J19: 1800.68 | K19: 1697.95 | L19: 1564.25 | M19: 0.80335
A20: 11 | B20: AUBANK | C20: 564.15 | D20: 556.52 | E20: 533.83 | F20: 503.52 | G20: 480.83 | H20: 586.83 | I20: 609.52 | J20: 639.83 | K20: 579.2 | L20: 526.2 | M20: 5.02455
A21: 12 | B21: ADANIENT | C21: 133.15 | D21: 129.78 | E21: 124.72 | F21: 116.28 | G21: 111.22 | H21: 138.22 | I21: 143.28 | J21: 151.72 | K21: 134.85 | L21: 121.35 | M21: 106.58358
A22: 13 | B22: ADANIPORTS | C22: 304.35 | D22: 301.35 | E22: 297.10 | F22: 289.85 | G22: 285.60 | H22: 308.60 | I22: 312.85 | J22: 320.10 | K22: 305.6 | L22: 294.1 | M22: 59.15306
A23: 14 | B23: ADANIPOWER | C23: 23.5 | D23: 22.85 | E23: 21.65 | F23: 19.80 | G23: 18.60 | H23: 24.70 | I23: 25.90 | J23: 27.75 | K23: 24.05 | L23: 21 | M23: 240.72777
A24: 15 | B24: ABFRL | C24: 177.3 | D24: 177.47 | E24: 173.93 | F24: 170.57 | G24: 167.03 | H24: 180.83 | I24: 184.37 | J24: 187.73 | K24: 181 | L24: 174.1 | M24: 5.90635
A25: 16 | B25: AJANTPHARM | C25: 1001 | D25: 1009.67 | E25: 971.33 | F25: 941.67 | G25: 903.33 | H25: 1039.33 | I25: 1077.67 | J25: 1107.33 | K25: 1048 | L25: 980 | M25: 3.16073
A26: 17 | B26: ALKEM | C26: 1968.6 | D26: 1990.88 | E26: 1936.82 | F26: 1905.03 | G26: 1850.97 | H26: 2022.67 | I26: 2076.73 | J26: 2108.52 | K26: 2044.95 | L26: 1959.1 | M26: 0.9607
A27: 18 | B27: AMARAJABAT | C27: 729.45 | D27: 724.00 | E27: 709.50 | F27: 689.55 | G27: 675.05 | H27: 743.95 | I27: 758.45 | J27: 778.40 | K27: 738.5 | L27: 704.05 | M27: 8.4588
A28: 19 | B28: AMBUJACEM | C28: 208.1 | D28: 207.05 | E28: 203.45 | F28: 198.80 | G28: 195.20 | H28: 211.70 | I28: 215.30 | J28: 219.95 | K28: 210.65 | L28: 202.4 | M28: 24.83769
A29: 20 | B29: APOLLOHOSP | C29: 1081.9 | D29: 1070.70 | E29: 1049.10 | F29: 1016.30 | G29: 994.70 | H29: 1103.50 | I29: 1125.10 | J29: 1157.90 | K29: 1092.3 | L29: 1037.9 | M29: 3.71858
A30: 21 | B30: APOLLOTYRE | C30: 205.25 | D30: 202.20 | E30: 196.95 | F30: 188.65 | G30: 183.40 | H30: 210.50 | I30: 215.75 | J30: 224.05 | K30: 207.45 | L30: 193.9 | M30: 32.61159
A31: 22 | B31: ARVIND | C31: 300.75 | D31: 303.10 | E31: 292.40 | F31: 284.05 | G31: 273.35 | H31: 311.45 | I31: 322.15 | J31: 330.50 | K31: 313.8 | L31: 294.75 | M31: 22.59305
A32: 23 | B32: ASHOKLEY | C32: 109.15 | D32: 108.38 | E32: 104.87 | F32: 100.58 | G32: 97.07 | H32: 112.67 | I32: 116.18 | J32: 120.47 | K32: 111.9 | L32: 104.1 | M32: 280.67992
A33: 24 | B33: ASIANPAINT | C33: 1247.8 | D33: 1234.30 | E33: 1214.60 | F33: 1181.40 | G33: 1161.70 | H33: 1267.50 | I33: 1287.20 | J33: 1320.40 | K33: 1254 | L33: 1201.1 | M33: 10.50759
A34: 25 | B34: AUROPHARMA | C34: 736.4 | D34: 733.78 | E34: 721.67 | F34: 706.93 | G34: 694.82 | H34: 748.52 | I34: 760.63 | J34: 775.37 | K34: 745.9 | L34: 719.05 | M34: 25.65348
A35: 26 | B35: DMART | C35: 1304.9 | D35: 1310.60 | E35: 1274.50 | F35: 1244.10 | G35: 1208.00 | H35: 1341.00 | I35: 1377.10 | J35: 1407.50 | K35: 1346.7 | L35: 1280.2 | M35: 5.5743
A36: 27 | B36: AXISBANK | C36: 556.55 | D36: 559.05 | E36: 543.60 | F36: 530.65 | G36: 515.20 | H36: 572.00 | I36: 587.45 | J36: 600.40 | K36: 574.5 | L36: 546.1 | M36: 129.18017
A37: 28 | B37: BAJAJ-AUTO | C37: 2584.1 | D37: 2563.15 | E37: 2522.20 | F37: 2460.30 | G37: 2419.35 | H37: 2625.05 | I37: 2666.00 | J37: 2727.90 | K37: 2604.1 | L37: 2501.25 | M37: 6.67297
A38: 29 | B38: BAJFINANCE | C38: 1974.85 | D38: 1992.35 | E38: 1894.70 | F38: 1814.55 | G38: 1716.90 | H38: 2072.50 | I38: 2170.15 | J38: 2250.30 | K38: 2090 | L38: 1912.2 | M38: 59.66669
A39: 30 | B39: BAJAJFINSV | C39: 5395.55 | D39: 5375.32 | E39: 5250.63 | F39: 5105.72 | G39: 4981.03 | H39: 5520.23 | I39: 5644.92 | J39: 5789.83 | K39: 5500 | L39: 5230.4 | M39: 2.71315
A40: 31 | B40: BALKRISIND | C40: 981.4 | D40: 994.87 | E40: 954.63 | F40: 927.87 | G40: 887.63 | H40: 1021.63 | I40: 1061.87 | J40: 1088.63 | K40: 1035.1 | L40: 968.1 | M40: 10.53671
A41: 32 | B41: BANKBARODA | C41: 97.5 | D41: 97.77 | E41: 95.03 | F41: 92.57 | G41: 89.83 | H41: 100.23 | I41: 102.97 | J41: 105.43 | K41: 100.5 | L41: 95.3 | M41: 289.5763
A42: 33 | B42: BANKINDIA | C42: 76 | D42: 75.83 | E42: 74.17 | F42: 72.33 | G42: 70.67 | H42: 77.67 | I42: 79.33 | J42: 81.17 | K42: 77.5 | L42: 74 | M42: 73.24522
A43: 34 | B43: BATAINDIA | C43: 893.8 | D43: 878.92 | E43: 858.93 | F43: 824.07 | G43: 804.08 | H43: 913.78 | I43: 933.77 | J43: 968.63 | K43: 898.9 | L43: 844.05 | M43: 16.83421
A44: 35 | B44: BERGEPAINT | C44: 275.35 | D44: 273.22 | E44: 267.23 | F44: 259.12 | G44: 253.13 | H44: 281.33 | I44: 287.32 | J44: 295.43 | K44: 279.2 | L44: 265.1 | M44: 8.07183
A45: 36 | B45: BEL | C45: 77.15 | D45: 77.37 | E45: 74.98 | F45: 72.82 | G45: 70.43 | H45: 79.53 | I45: 81.92 | J45: 84.08 | K45: 79.75 | L45: 75.2 | M45: 99.76249
A46: 37 | B46: BHARATFIN | C46: 988.4 | D46: 988.77 | E46: 974.63 | F46: 960.87 | G46: 946.73 | H46: 1002.53 | I46: 1016.67 | J46: 1030.43 | K46: 1002.9 | L46: 975 | M46: 12.44305
A47: 38 | B47: BHARATFORG | C47: 566.1 | D47: 569.13 | E47: 556.57 | F47: 547.03 | G47: 534.47 | H47: 578.67 | I47: 591.23 | J47: 600.77 | K47: 581.7 | L47: 559.6 | M47: 22.3407
A48: 39 | B48: BHEL | C48: 69.6 | D48: 69.52 | E48: 68.03 | F48: 66.47 | G48: 64.98 | H48: 71.08 | I48: 72.57 | J48: 74.13 | K48: 71 | L48: 67.95 | M48: 91.32523
A49: 40 | B49: BPCL | C49: 264.9 | D49: 267.30 | E49: 254.65 | F49: 244.40 | G49: 231.75 | H49: 277.55 | I49: 290.20 | J49: 300.45 | K49: 279.95 | L49: 257.05 | M49: 257.306
A50: 41 | B50: BHARTIARTL | C50: 295.2 | D50: 295.00 | E50: 291.20 | F50: 287.20 | G50: 283.40 | H50: 299.00 | I50: 302.80 | J50: 306.80 | K50: 298.8 | L50: 291 | M50: 90.2637
A51: 42 | B51: INFRATEL | C51: 266.7 | D51: 263.12 | E51: 256.73 | F51: 246.77 | G51: 240.38 | H51: 273.08 | I51: 279.47 | J51: 289.43 | K51: 269.5 | L51: 253.15 | M51: 22.53966
A52: 43 | B52: BIOCON | C52: 595.2 | D52: 596.12 | E52: 579.63 | F52: 564.07 | G52: 547.58 | H52: 611.68 | I52: 628.17 | J52: 643.73 | K52: 612.6 | L52: 580.55 | M52: 23.10185
A53: 44 | B53: BOSCHLTD | C53: 18361.4 | D53: 18567.05 | E53: 17994.35 | F53: 17627.30 | G53: 17054.60 | H53: 18934.10 | I53: 19506.80 | J53: 19873.85 | K53: 19139.75 | L53: 18200 | M53: 0.28702
A54: 45 | B54: BRITANNIA | C54: 5543.5 | D54: 5486.85 | E54: 5403.80 | F54: 5264.10 | G54: 5181.05 | H54: 5626.55 | I54: 5709.60 | J54: 5849.30 | K54: 5569.9 | L54: 5347.15 | M54: 2.2977
A55: 46 | B55: CRISIL | C55: 1615.7 | D55: 1615.73 | E55: 1601.47 | F55: 1587.23 | G55: 1572.97 | H55: 1629.97 | I55: 1644.23 | J55: 1658.47 | K55: 1630 | L55: 1601.5 | M55: 0.09246
A56: 47 | B56: CADILAHC | C56: 376.4 | D56: 376.05 | E56: 371.15 | F56: 365.90 | G56: 361.00 | H56: 381.30 | I56: 386.20 | J56: 391.45 | K56: 380.95 | L56: 370.8 | M56: 14.41264
A57: 48 | B57: CANBK | C57: 216.7 | D57: 216.05 | E57: 211.65 | F57: 206.60 | G57: 202.20 | H57: 221.10 | I57: 225.50 | J57: 230.55 | K57: 220.45 | L57: 211 | M57: 78.47413
A58: 49 | B58: CASTROLIND | C58: 137.85 | D58: 137.90 | E58: 135.50 | F58: 133.15 | G58: 130.75 | H58: 140.25 | I58: 142.65 | J58: 145.00 | K58: 140.3 | L58: 135.55 | M58: 19.82167
A59: 50 | B59: CENTRALBK | C59: 31.75 | D59: 32.27 | E59: 31.23 | F59: 30.72 | G59: 29.68 | H59: 32.78 | I59: 33.82 | J59: 34.33 | K59: 33.3 | L59: 31.75 | M59: 12.47798
A60: 51 | B60: CENTURYTEX | C60: 747.8 | D60: 746.70 | E60: 728.55 | F60: 709.30 | G60: 691.15 | H60: 765.95 | I60: 784.10 | J60: 803.35 | K60: 764.85 | L60: 727.45 | M60: 8.44446
A61: 52 | B61: CHOLAFIN | C61: 1055.35 | D61: 1072.77 | E61: 1020.58 | F61: 985.82 | G61: 933.63 | H61: 1107.53 | I61: 1159.72 | J61: 1194.48 | K61: 1124.95 | L61: 1038 | M61: 5.47169
A62: 53 | B62: CIPLA | C62: 638.8 | D62: 636.63 | E62: 630.62 | F62: 622.43 | G62: 616.42 | H62: 644.82 | I62: 650.83 | J62: 659.02 | K62: 642.65 | L62: 628.45 | M62: 15.6464
A63: 54 | B63: COALINDIA | C63: 267.9 | D63: 267.78 | E63: 262.62 | F63: 257.33 | G63: 252.17 | H63: 273.07 | I63: 278.23 | J63: 283.52 | K63: 272.95 | L63: 262.5 | M63: 34.74214
A64: 55 | B64: COLPAL | C64: 1042.55 | D64: 1052.25 | E64: 1023.50 | F64: 1004.45 | G64: 975.70 | H64: 1071.30 | I64: 1100.05 | J64: 1119.10 | K64: 1081 | L64: 1033.2 | M64: 3.33503
A65: 56 | B65: CONCOR | C65: 599.5 | D65: 604.22 | E65: 585.43 | F65: 571.37 | G65: 552.58 | H65: 618.28 | I65: 637.07 | J65: 651.13 | K65: 623 | L65: 590.15 | M65: 5.61426
A66: 57 | B66: COROMANDEL | C66: 367.8 | D66: 362.32 | E66: 344.58 | F66: 321.37 | G66: 303.63 | H66: 385.53 | I66: 403.27 | J66: 426.48 | K66: 380.05 | L66: 339.1 | M66: 1.75593
A67: 58 | B67: CROMPTON | C67: 204.9 | D67: 205.73 | E67: 200.27 | F67: 195.63 | G67: 190.17 | H67: 210.37 | I67: 215.83 | J67: 220.47 | K67: 211.2 | L67: 201.1 | M67: 7.37859
A68: 59 | B68: CUMMINSIND | C68: 654.55 | D68: 654.33 | E68: 642.72 | F68: 630.88 | G68: 619.27 | H68: 666.17 | I68: 677.78 | J68: 689.62 | K68: 665.95 | L68: 642.5 | M68: 2.46953
A69: 60 | B69: DLF | C69: 151.85 | D69: 151.58 | E69: 146.42 | F69: 140.98 | G69: 135.82 | H69: 157.02 | I69: 162.18 | J69: 167.62 | K69: 156.75 | L69: 146.15 | M69: 151.15736
A70: 61 | B70: DABUR | C70: 409.7 | D70: 412.62 | E70: 401.93 | F70: 394.17 | G70: 383.48 | H70: 420.38 | I70: 431.07 | J70: 438.83 | K70: 423.3 | L70: 404.85 | M70: 20.69981
A71: 62 | B71: DALMIABHA | C71: 2091.95 | D71: 2104.98 | E71: 2058.27 | F71: 2024.58 | G71: 1977.87 | H71: 2138.67 | I71: 2185.38 | J71: 2219.07 | K71: 2151.7 | L71: 2071.3 | M71: 2.18705
A72: 63 | B72: DHFL | C72: 223.1 | D72: 234.50 | E72: 195.00 | F72: 166.90 | G72: 127.40 | H72: 262.60 | I72: 302.10 | J72: 330.20 | K72: 274 | L72: 206.4 | M72: 549.62924
A73: 64 | B73: DISHTV | C73: 52.6 | D73: 51.72 | E73: 49.68 | F73: 46.77 | G73: 44.73 | H73: 54.63 | I73: 56.67 | J73: 59.58 | K73: 53.75 | L73: 48.8 | M73: 53.87419
A74: 65 | B74: DIVISLAB | C74: 1277.45 | D74: 1274.07 | E74: 1253.43 | F74: 1229.42 | G74: 1208.78 | H74: 1298.08 | I74: 1318.72 | J74: 1342.73 | K74: 1294.7 | L74: 1250.05 | M74: 7.07482
A75: 66 | B75: LALPATHLAB | C75: 954.1 | D75: 932.97 | E75: 905.93 | F75: 857.77 | G75: 830.73 | H75: 981.13 | I75: 1008.17 | J75: 1056.33 | K75: 960 | L75: 884.8 | M75: 0.49807
A76: 67 | B76: DRREDDY | C76: 2340.1 | D76: 2359.95 | E76: 2312.15 | F76: 2284.20 | G76: 2236.40 | H76: 2387.90 | I76: 2435.70 | J76: 2463.65 | K76: 2407.75 | L76: 2332 | M76: 6.03789
A77: 68 | B77: EDELWEISS | C77: 151.9 | D77: 158.50 | E77: 142.00 | F77: 132.10 | G77: 115.60 | H77: 168.40 | I77: 184.90 | J77: 194.80 | K77: 175 | L77: 148.6 | M77: 102.76872
A78: 69 | B78: EICHERMOT | C78: 22134.75 | D78: 21699.93 | E78: 21085.87 | F78: 20036.98 | G78: 19422.92 | H78: 22748.82 | I78: 23362.88 | J78: 24411.77 | K78: 22314 | L78: 20651.05 | M78: 1.6149
A79: 70 | B79: EMAMILTD | C79: 452.95 | D79: 451.00 | E79: 442.00 | F79: 431.05 | G79: 422.05 | H79: 461.95 | I79: 470.95 | J79: 481.90 | K79: 460 | L79: 440.05 | M79: 3.37439
A80: 71 | B80: ENDURANCE | C80: 1196 | D80: 1187.33 | E80: 1153.67 | F80: 1111.33 | G80: 1077.67 | H80: 1229.67 | I80: 1263.33 | J80: 1305.67 | K80: 1221 | L80: 1145 | M80: 0.76399
A81: 72 | B81: ENGINERSIN | C81: 106 | D81: 105.13 | E81: 103.07 | F81: 100.13 | G81: 98.07 | H81: 108.07 | I81: 110.13 | J81: 113.07 | K81: 107.2 | L81: 102.2 | M81: 28.64928
A82: 73 | B82: EXIDEIND | C82: 249.3 | D82: 246.93 | E82: 243.17 | F82: 237.03 | G82: 233.27 | H82: 253.07 | I82: 256.83 | J82: 262.97 | K82: 250.7 | L82: 240.8 | M82: 17.57321
A83: 74 | B83: FEDERALBNK | C83: 70.3 | D83: 69.75 | E83: 68.55 | F83: 66.80 | G83: 65.60 | H83: 71.50 | I83: 72.70 | J83: 74.45 | K83: 70.95 | L83: 68 | M83: 170.40858
A84: 75 | B84: GAIL | C84: 343.9 | D84: 340.08 | E84: 333.87 | F84: 323.83 | G84: 317.62 | H84: 350.12 | I84: 356.33 | J84: 366.37 | K84: 346.3 | L84: 330.05 | M84: 59.93328
A85: 76 | B85: GMRINFRA | C85: 15.75 | D85: 15.78 | E85: 15.22 | F85: 14.68 | G85: 14.12 | H85: 16.32 | I85: 16.88 | J85: 17.42 | K85: 16.35 | L85: 15.25 | M85: 430.62873
A86: 77 | B86: GSKCONS | C86: 6399.9 | D86: 6423.30 | E86: 6286.60 | F86: 6173.30 | G86: 6036.60 | H86: 6536.60 | I86: 6673.30 | J86: 6786.60 | K86: 6560 | L86: 6310 | M86: 0.07222
A87: 78 | B87: GLAXO | C87: 1332.85 | D87: 1330.95 | E87: 1301.90 | F87: 1270.95 | G87: 1241.90 | H87: 1361.90 | I87: 1390.95 | J87: 1421.90 | K87: 1360 | L87: 1300 | M87: 0.24085
A88: 79 | B88: GLENMARK | C88: 597.15 | D88: 590.73 | E88: 580.67 | F88: 564.18 | G88: 554.12 | H88: 607.22 | I88: 617.28 | J88: 633.77 | K88: 600.8 | L88: 574.25 | M88: 7.66621
A89: 80 | B89: GODREJCP | C89: 698.15 | D89: 698.22 | E89: 681.43 | F89: 664.72 | G89: 647.93 | H89: 714.93 | I89: 731.72 | J89: 748.43 | K89: 715 | L89: 681.5 | M89: 13.42917
A90: 81 | B90: GODREJIND | C90: 481.95 | D90: 478.42 | E90: 469.28 | F90: 456.62 | G90: 447.48 | H90: 491.08 | I90: 500.22 | J90: 512.88 | K90: 487.55 | L90: 465.75 | M90: 4.53203
A91: 82 | B91: GRUH | C91: 268.4 | D91: 268.67 | E91: 258.98 | F91: 249.57 | G91: 239.88 | H91: 278.08 | I91: 287.77 | J91: 297.18 | K91: 278.35 | L91: 259.25 | M91: 6.61386
A92: 83 | B92: GPPL | C92: 102.1 | D92: 101.37 | E92: 98.73 | F92: 95.37 | G92: 92.73 | H92: 104.73 | I92: 107.37 | J92: 110.73 | K92: 104 | L92: 98 | M92: 1.27121
A93: 84 | B93: GSPL | C93: 173.15 | D93: 173.37 | E93: 168.48 | F93: 163.82 | G93: 158.93 | H93: 178.03 | I93: 182.92 | J93: 187.58 | K93: 178.25 | L93: 168.7 | M93: 7.62682
A94: 85 | B94: HCLTECH | C94: 1072.1 | D94: 1068.22 | E94: 1051.88 | F94: 1031.67 | G94: 1015.33 | H94: 1088.43 | I94: 1104.77 | J94: 1124.98 | K94: 1084.55 | L94: 1048 | M94: 11.55915
A95: 86 | B95: HDFCBANK | C95: 1945 | D95: 1948.00 | E95: 1927.00 | F95: 1909.00 | G95: 1888.00 | H95: 1966.00 | I95: 1987.00 | J95: 2005.00 | K95: 1969 | L95: 1930 | M95: 50.32005
A96: 87 | B96: HAVELLS | C96: 569.9 | D96: 577.17 | E96: 554.78 | F96: 539.67 | G96: 517.28 | H96: 592.28 | I96: 614.67 | J96: 629.78 | K96: 599.55 | L96: 562.05 | M96: 13.55705
A97: 88 | B97: HEROMOTOCO | C97: 2873.05 | D97: 2822.70 | E97: 2760.40 | F97: 2647.75 | G97: 2585.45 | H97: 2935.35 | I97: 2997.65 | J97: 3110.30 | K97: 2885 | L97: 2710.05 | M97: 7.62339
A98: 89 | B98: HEXAWARE | C98: 406.55 | D98: 405.67 | E98: 396.38 | F98: 386.22 | G98: 376.93 | H98: 415.83 | I98: 425.12 | J98: 435.28 | K98: 414.95 | L98: 395.5 | M98: 8.89831
A99: 90 | B99: HINDALCO | C99: 222.55 | D99: 223.38 | E99: 209.87 | F99: 197.18 | G99: 183.67 | H99: 236.07 | I99: 249.58 | J99: 262.27 | K99: 236.9 | L99: 210.7 | M99: 251.98149
A100: 91 | B100: HINDPETRO | C100: 179.2 | D100: 175.10 | E100: 169.25 | F100: 159.30 | G100: 153.45 | H100: 185.05 | I100: 190.90 | J100: 200.85 | K100: 180.95 | L100: 165.15 | M100: 396.02681
A101: 92 | B101: HINDUNILVR | C101: 1559.35 | D101: 1555.62 | E101: 1540.83 | F101: 1522.32 | G101: 1507.53 | H101: 1574.13 | I101: 1588.92 | J101: 1607.43 | K101: 1570.4 | L101: 1537.1 | M101: 19.98863
A102: 93 | B102: HINDZINC | C102: 270.65 | D102: 271.53 | E102: 263.12 | F102: 255.58 | G102: 247.17 | H102: 279.07 | I102: 287.48 | J102: 295.02 | K102: 279.95 | L102: 264 | M102: 24.8411
A103: 94 | B103: HUDCO | C103: 42.5 | D103: 42.80 | E103: 41.85 | F103: 41.20 | G103: 40.25 | H103: 43.45 | I103: 44.40 | J103: 45.05 | K103: 43.75 | L103: 42.15 | M103: 8.0647
A104: 95 | B104: HDFC | C104: 1667.7 | D104: 1674.27 | E104: 1639.98 | F104: 1612.27 | G104: 1577.98 | H104: 1701.98 | I104: 1736.27 | J104: 1763.98 | K104: 1708.55 | L104: 1646.55 | M104: 49.39555
A105: 96 | B105: ITC | C105: 273.2 | D105: 273.92 | E105: 268.43 | F105: 263.67 | G105: 258.18 | H105: 278.68 | I105: 284.17 | J105: 288.93 | K105: 279.4 | L105: 269.15 | M105: 164.30487
A106: 97 | B106: ICICIBANK | C106: 310.85 | D106: 307.83 | E106: 301.62 | F106: 292.38 | G106: 286.17 | H106: 317.07 | I106: 323.28 | J106: 332.52 | K106: 314.05 | L106: 298.6 | M106: 204.88368
A107: 98 | B107: ICICIPRULI | C107: 318.3 | D107: 320.28 | E107: 313.12 | F107: 307.93 | G107: 300.77 | H107: 325.47 | I107: 332.63 | J107: 337.82 | K107: 327.45 | L107: 315.1 | M107: 6.5447
A108: 99 | B108: IDBI | C108: 58.65 | D108: 58.20 | E108: 57.35 | F108: 56.05 | G108: 55.20 | H108: 59.50 | I108: 60.35 | J108: 61.65 | K108: 59.05 | L108: 56.9 | M108: 119.11183
A109: 100 | B109: IDFCBANK | C109: 33.75 | D109: 34.00 | E109: 32.45 | F109: 31.15 | G109: 29.60 | H109: 35.30 | I109: 36.85 | J109: 38.15 | K109: 35.55 | L109: 32.7 | M109: 184.05101
A110: 101 | B110: IDFC | C110: 37.15 | D110: 37.48 | E110: 36.02 | F110: 34.88 | G110: 33.42 | H110: 38.62 | I110: 40.08 | J110: 41.22 | K110: 38.95 | L110: 36.35 | M110: 47.59034
A111: 102 | B111: IRB | C111: 124.35 | D111: 125.10 | E111: 120.20 | F111: 116.05 | G111: 111.15 | H111: 129.25 | I111: 134.15 | J111: 138.30 | K111: 130 | L111: 120.95 | M111: 16.57375
A112: 103 | B112: IDEA | C112: 33.65 | D112: 33.48 | E112: 32.72 | F112: 31.78 | G112: 31.02 | H112: 34.42 | I112: 35.18 | J112: 36.12 | K112: 34.25 | L112: 32.55 | M112: 222.18648
A113: 104 | B113: IBULHSGFIN | C113: 940.15 | D113: 926.72 | E113: 898.43 | F113: 856.72 | G113: 828.43 | H113: 968.43 | I113: 996.72 | J113: 1038.43 | K113: 955 | L113: 885 | M113: 89.83815
A114: 105 | B114: INDIANB | C114: 230.4 | D114: 227.68 | E114: 223.22 | F114: 216.03 | G114: 211.57 | H114: 234.87 | I114: 239.33 | J114: 246.52 | K114: 232.15 | L114: 220.5 | M114: 22.06856
A115: 106 | B115: INDHOTEL | C115: 118.85 | D115: 120.10 | E115: 115.55 | F115: 112.25 | G115: 107.70 | H115: 123.40 | I115: 127.95 | J115: 131.25 | K115: 124.65 | L115: 116.8 | M115: 14.10917
A116: 107 | B116: IOC | C116: 124.85 | D116: 122.72 | E116: 119.73 | F116: 114.62 | G116: 111.63 | H116: 127.83 | I116: 130.82 | J116: 135.93 | K116: 125.7 | L116: 117.6 | M116: 307.26195
A117: 108 | B117: IGL | C117: 220.95 | D117: 221.32 | E117: 214.83 | F117: 208.72 | G117: 202.23 | H117: 227.43 | I117: 233.92 | J117: 240.03 | K117: 227.8 | L117: 215.2 | M117: 17.80399
A118: 109 | B118: INDUSINDBK | C118: 1600 | D118: 1603.83 | E118: 1578.27 | F118: 1556.53 | G118: 1530.97 | H118: 1625.57 | I118: 1651.13 | J118: 1672.87 | K118: 1629.4 | L118: 1582.1 | M118: 24.26418
A119: 110 | B119: NAUKRI | C119: 1404.95 | D119: 1439.30 | E119: 1353.60 | F119: 1302.25 | G119: 1216.55 | H119: 1490.65 | I119: 1576.35 | J119: 1627.70 | K119: 1525 | L119: 1387.95 | M119: 1.29407
A120: 111 | B120: INFY | C120: 714.45 | D120: 717.47 | E120: 706.23 | F120: 698.02 | G120: 686.78 | H120: 725.68 | I120: 736.92 | J120: 745.13 | K120: 728.7 | L120: 709.25 | M120: 72.59306
A121: 112 | B121: INDIGO | C121: 781.85 | D121: 774.22 | E121: 762.73 | F121: 743.62 | G121: 732.13 | H121: 793.33 | I121: 804.82 | J121: 823.93 | K121: 785.7 | L121: 755.1 | M121: 8.60942
A122: 113 | B122: IPCALAB | C122: 615.55 | D122: 620.52 | E122: 597.03 | F122: 578.52 | G122: 555.03 | H122: 639.03 | I122: 662.52 | J122: 681.03 | K122: 644 | L122: 602 | M122: 1.79039
A123: 114 | B123: JSWENERGY | C123: 58.65 | D123: 58.70 | E123: 56.05 | F123: 53.45 | G123: 50.80 | H123: 61.30 | I123: 63.95 | J123: 66.55 | K123: 61.35 | L123: 56.1 | M123: 15.76423
A124: 115 | B124: JSWSTEEL | C124: 376.25 | D124: 371.72 | E124: 361.63 | F124: 347.02 | G124: 336.93 | H124: 386.33 | I124: 396.42 | J124: 411.03 | K124: 381.8 | L124: 357.1 | M124: 77.872
A125: 116 | B125: JINDALSTEL | C125: 174.75 | D125: 172.37 | E125: 166.73 | F125: 158.72 | G125: 153.08 | H125: 180.38 | I125: 186.02 | J125: 194.03 | K125: 178 | L125: 164.35 | M125: 175.26003
A126: 117 | B126: JUBLFOOD | C126: 1183.15 | D126: 1165.43 | E126: 1136.92 | F126: 1090.68 | G126: 1062.17 | H126: 1211.67 | I126: 1240.18 | J126: 1286.42 | K126: 1193.95 | L126: 1119.2 | M126: 14.07408
A127: 118 | B127: JUBILANT | C127: 670.05 | D127: 674.47 | E127: 659.93 | F127: 649.82 | G127: 635.28 | H127: 684.58 | I127: 699.12 | J127: 709.23 | K127: 689 | L127: 664.35 | M127: 1.81984
A128: 119 | B128: KARURVYSYA | C128: 77.85 | D128: 78.42 | E128: 75.73 | F128: 73.62 | G128: 70.93 | H128: 80.53 | I128: 83.22 | J128: 85.33 | K128: 81.1 | L128: 76.3 | M128: 62.31014
A129: 120 | B129: KOTAKBANK | C129: 1104.3 | D129: 1088.42 | E129: 1060.03 | F129: 1015.77 | G129: 987.38 | H129: 1132.68 | I129: 1161.07 | J129: 1205.33 | K129: 1116.8 | L129: 1044.15 | M129: 40.6781
A130: 121 | B130: L&TFH | C130: 118.65 | D130: 119.03 | E130: 114.32 | F130: 109.98 | G130: 105.27 | H130: 123.37 | I130: 128.08 | J130: 132.42 | K130: 123.75 | L130: 114.7 | M130: 189.00009
A131: 122 | B131: LICHSGFIN | C131: 398.7 | D131: 399.28 | E131: 391.82 | F131: 384.93 | G131: 377.47 | H131: 406.17 | I131: 413.63 | J131: 420.52 | K131: 406.75 | L131: 392.4 | M131: 28.28982
A132: 123 | B132: LT | C132: 1215.35 | D132: 1220.82 | E132: 1197.63 | F132: 1179.92 | G132: 1156.73 | H132: 1238.53 | I132: 1261.72 | J132: 1279.43 | K132: 1244 | L132: 1203.1 | M132: 39.579
A133: 124 | B133: LUPIN | C133: 850 | D133: 841.02 | E133: 827.03 | F133: 804.07 | G133: 790.08 | H133: 863.98 | I133: 877.97 | J133: 900.93 | K133: 855 | L133: 818.05 | M133: 20.4916
A134: 125 | B134: MRF | C134: 61120.9 | D134: 60824.30 | E134: 59897.60 | F134: 58674.30 | G134: 57747.60 | H134: 62047.60 | I134: 62974.30 | J134: 64197.60 | K134: 61751 | L134: 59601 | M134: 0.1283
A135: 126 | B135: MGL | C135: 785.4 | D135: 784.10 | E135: 771.25 | F135: 757.10 | G135: 744.25 | H135: 798.25 | I135: 811.10 | J135: 825.25 | K135: 796.95 | L135: 769.95 | M135: 4.03389
A136: 127 | B136: M&MFIN | C136: 362.1 | D136: 365.28 | E136: 347.57 | F136: 333.03 | G136: 315.32 | H136: 379.82 | I136: 397.53 | J136: 412.07 | K136: 383 | L136: 350.75 | M136: 31.1348
A137: 128 | B137: M&M | C137: 774.85 | D137: 769.70 | E137: 758.45 | F137: 742.05 | G137: 730.80 | H137: 786.10 | I137: 797.35 | J137: 813.75 | K137: 780.95 | L137: 753.3 | M137: 38.74262
A138: 129 | B138: MANAPPURAM | C138: 68.25 | D138: 69.15 | E138: 65.35 | F138: 62.45 | G138: 58.65 | H138: 72.05 | I138: 75.85 | J138: 78.75 | K138: 72.95 | L138: 66.25 | M138: 43.0682
A139: 130 | B139: MRPL | C139: 64.45 | D139: 64.20 | E139: 62.10 | F139: 59.75 | G139: 57.65 | H139: 66.55 | I139: 68.65 | J139: 71.00 | K139: 66.3 | L139: 61.85 | M139: 38.7421
A140: 131 | B140: MARICO | C140: 309.75 | D140: 308.63 | E140: 304.47 | F140: 299.18 | G140: 295.02 | H140: 313.92 | I140: 318.08 | J140: 323.37 | K140: 312.8 | L140: 303.35 | M140: 19.64565
A141: 132 | B141: MARUTI | C141: 6889.75 | D141: 6884.33 | E141: 6779.67 | F141: 6669.58 | G141: 6564.92 | H141: 6994.42 | I141: 7099.08 | J141: 7209.17 | K141: 6989 | L141: 6774.25 | M141: 13.93849
A142: 133 | B142: MFSL | C142: 365.7 | D142: 366.05 | E142: 353.65 | F142: 341.60 | G142: 329.20 | H142: 378.10 | I142: 390.50 | J142: 402.55 | K142: 378.45 | L142: 354 | M142: 10.0757
A143: 134 | B143: MINDTREE | C143: 998.35 | D143: 1007.38 | E143: 965.12 | F143: 931.88 | G143: 889.62 | H143: 1040.62 | I143: 1082.88 | J143: 1116.12 | K143: 1049.65 | L143: 974.15 | M143: 11.38316
A144: 135 | B144: MOTHERSUMI | C144: 235.65 | D144: 232.55 | E144: 224.10 | F144: 212.55 | G144: 204.10 | H144: 244.10 | I144: 252.55 | J144: 264.10 | K144: 241 | L144: 221 | M144: 57.86615
A145: 136 | B145: MPHASIS | C145: 1098.2 | D145: 1106.80 | E145: 1081.55 | F145: 1064.90 | G145: 1039.65 | H145: 1123.45 | I145: 1148.70 | J145: 1165.35 | K145: 1132.05 | L145: 1090.15 | M145: 5.42509
A146: 137 | B146: MUTHOOTFIN | C146: 380.1 | D146: 378.72 | E146: 368.08 | F146: 356.07 | G146: 345.43 | H146: 390.73 | I146: 401.37 | J146: 413.38 | K146: 389.35 | L146: 366.7 | M146: 9.01859
A147: 138 | B147: NATCOPHARM | C147: 663.65 | D147: 674.60 | E147: 650.05 | F147: 636.45 | G147: 611.90 | H147: 688.20 | I147: 712.75 | J147: 726.35 | K147: 699.15 | L147: 661 | M147: 1.86364
A148: 139 | B148: NBCC | C148: 54.3 | D148: 53.98 | E148: 52.82 | F148: 51.33 | G148: 50.17 | H148: 55.47 | I148: 56.63 | J148: 58.12 | K148: 55.15 | L148: 52.5 | M148: 56.48712
A149: 140 | B149: NHPC | C149: 22.5 | D149: 22.72 | E149: 22.08 | F149: 21.67 | G149: 21.03 | H149: 23.13 | I149: 23.77 | J149: 24.18 | K149: 23.35 | L149: 22.3 | M149: 31.87425
A150: 141 | B150: NMDC | C150: 108.3 | D150: 107.53 | E150: 104.92 | F150: 101.53 | G150: 98.92 | H150: 110.92 | I150: 113.53 | J150: 116.92 | K150: 110.15 | L150: 104.15 | M150: 34.66955
A151: 142 | B151: NTPC | C151: 163.45 | D151: 162.60 | E151: 160.30 | F151: 157.15 | G151: 154.85 | H151: 165.75 | I151: 168.05 | J151: 171.20 | K151: 164.9 | L151: 159.45 | M151: 38.64641
A152: 143 | B152: NATIONALUM | C152: 61.1 | D152: 61.58 | E152: 59.17 | F152: 57.23 | G152: 54.82 | H152: 63.52 | I152: 65.93 | J152: 67.87 | K152: 64 | L152: 59.65 | M152: 180.2647
A153: 144 | B153: OBEROIRLTY | C153: 377.95 | D153: 376.50 | E153: 363.00 | F153: 348.05 | G153: 334.55 | H153: 391.45 | I153: 404.95 | J153: 419.90 | K153: 390 | L153: 361.55 | M153: 20.39774
A154: 145 | B154: ONGC | C154: 149.8 | D154: 148.45 | E154: 146.05 | F154: 142.30 | G154: 139.90 | H154: 152.20 | I154: 154.60 | J154: 158.35 | K154: 150.85 | L154: 144.7 | M154: 117.09162
A155: 146 | B155: OIL | C155: 194 | D155: 191.72 | E155: 188.03 | F155: 182.07 | G155: 178.38 | H155: 197.68 | I155: 201.37 | J155: 207.33 | K155: 195.4 | L155: 185.75 | M155: 17.58365
A156: 147 | B156: OFSS | C156: 3897.45 | D156: 3933.37 | E156: 3822.13 | F156: 3746.82 | G156: 3635.58 | H156: 4008.68 | I156: 4119.92 | J156: 4195.23 | K156: 4044.6 | L156: 3858.05 | M156: 0.40603
A157: 148 | B157: PCJEWELLER | C157: 58.85 | D157: 59.02 | E157: 55.33 | F157: 51.82 | G157: 48.13 | H157: 62.53 | I157: 66.22 | J157: 69.73 | K157: 62.7 | L157: 55.5 | M157: 135.21199
A158: 149 | B158: PIIND | C158: 705.65 | D158: 707.60 | E158: 697.05 | F158: 688.45 | G158: 677.90 | H158: 716.20 | I158: 726.75 | J158: 735.35 | K158: 718.15 | L158: 699 | M158: 0.3042
A159: 150 | B159: PNBHOUSING | C159: 890 | D159: 882.67 | E159: 860.33 | F159: 830.67 | G159: 808.33 | H159: 912.33 | I159: 934.67 | J159: 964.33 | K159: 905 | L159: 853 | M159: 4.80049
A160: 151 | B160: PAGEIND | C160: 28905.85 | D160: 28690.20 | E160: 27791.65 | F160: 26677.45 | G160: 25778.90 | H160: 29804.40 | I160: 30702.95 | J160: 31817.15 | K160: 29588.75 | L160: 27576 | M160: 0.41441
A161: 152 | B161: PETRONET | C161: 212.3 | D161: 211.77 | E161: 208.53 | F161: 204.77 | G161: 201.53 | H161: 215.53 | I161: 218.77 | J161: 222.53 | K161: 215 | L161: 208 | M161: 24.15357
A162: 153 | B162: PIDILITIND | C162: 972.85 | D162: 968.82 | E162: 951.68 | F162: 930.52 | G162: 913.38 | H162: 989.98 | I162: 1007.12 | J162: 1028.28 | K162: 985.95 | L162: 947.65 | M162: 6.13818
A163: 154 | B163: PEL | C163: 2108.5 | D163: 2149.93 | E163: 2003.87 | F163: 1899.23 | G163: 1753.17 | H163: 2254.57 | I163: 2400.63 | J163: 2505.27 | K163: 2296 | L163: 2045.3 | M163: 9.65833
A164: 155 | B164: PFC | C164: 74.2 | D164: 74.67 | E164: 71.78 | F164: 69.37 | G164: 66.48 | H164: 77.08 | I164: 79.97 | J164: 82.38 | K164: 77.55 | L164: 72.25 | M164: 80.36993
A165: 156 | B165: POWERGRID | C165: 186.65 | D165: 186.07 | E165: 183.08 | F165: 179.52 | G165: 176.53 | H165: 189.63 | I165: 192.62 | J165: 196.18 | K165: 189.05 | L165: 182.5 | M165: 26.32604
A166: 157 | B166: PRESTIGE | C166: 175.2 | D166: 181.70 | E166: 163.70 | F166: 152.20 | G166: 134.20 | H166: 193.20 | I166: 211.20 | J166: 222.70 | K166: 199.7 | L166: 170.2 | M166: 4.02204
A167: 158 | B167: PGHH | C167: 9085.05 | D167: 9166.67 | E167: 8943.38 | F167: 8801.72 | G167: 8578.43 | H167: 9308.33 | I167: 9531.62 | J167: 9673.28 | K167: 9389.95 | L167: 9025 | M167: 0.0692
A168: 159 | B168: PNB | C168: 62.85 | D168: 62.85 | E168: 61.10 | F168: 59.35 | G168: 57.60 | H168: 64.60 | I168: 66.35 | J168: 68.10 | K168: 64.6 | L168: 61.1 | M168: 297.33364
A169: 160 | B169: RBLBANK | C169: 495.1 | D169: 493.77 | E169: 484.53 | F169: 473.97 | G169: 464.73 | H169: 504.33 | I169: 513.57 | J169: 524.13 | K169: 503 | L169: 483.2 | M169: 13.47259
A170: 161 | B170: RAJESHEXPO | C170: 689.25 | D170: 675.65 | E170: 657.60 | F170: 625.95 | G170: 607.90 | H170: 707.30 | I170: 725.35 | J170: 757.00 | K170: 693.7 | L170: 644 | M170: 5.50592
A171: 162 | B171: RELCAPITAL | C171: 235.1 | D171: 238.57 | E171: 218.53 | F171: 201.97 | G171: 181.93 | H171: 255.13 | I171: 275.17 | J171: 291.73 | K171: 258.6 | L171: 222 | M171: 119.10671
A172: 163 | B172: RCOM | C172: 11.05 | D172: 11.17 | E172: 10.58 | F172: 10.12 | G172: 9.53 | H172: 11.63 | I172: 12.22 | J172: 12.68 | K172: 11.75 | L172: 10.7 | M172: 759.58335
A173: 164 | B173: RELIANCE | C173: 1109.4 | D173: 1083.98 | E173: 1050.97 | F173: 992.53 | G173: 959.52 | H173: 1142.42 | I173: 1175.43 | J173: 1233.87 | K173: 1117 | L173: 1025.55 | M173: 246.79428
A174: 165 | B174: RELINFRA | C174: 286.7 | D174: 286.17 | E174: 275.63 | F174: 264.57 | G174: 254.03 | H174: 297.23 | I174: 307.77 | J174: 318.83 | K174: 296.7 | L174: 275.1 | M174: 50.52717
A175: 166 | B175: RPOWER | C175: 24.4 | D175: 24.68 | E175: 23.42 | F175: 22.43 | G175: 21.17 | H175: 25.67 | I175: 26.93 | J175: 27.92 | K175: 25.95 | L175: 23.7 | M175: 108.98835
A176: 167 | B176: RECLTD | C176: 100.7 | D176: 101.23 | E176: 98.17 | F176: 95.63 | G176: 92.57 | H176: 103.77 | I176: 106.83 | J176: 109.37 | K176: 104.3 | L176: 98.7 | M176: 61.56333
A177: 168 | B177: SRF | C177: 1662.75 | D177: 1666.45 | E177: 1612.95 | F177: 1563.15 | G177: 1509.65 | H177: 1716.25 | I177: 1769.75 | J177: 1819.55 | K177: 1719.95 | L177: 1616.65 | M177: 4.87481
A178: 169 | B178: SHREECEM | C178: 15995.8 | D178: 15905.25 | E178: 15590.55 | F178: 15185.30 | G178: 14870.60 | H178: 16310.50 | I178: 16625.20 | J178: 17030.45 | K178: 16219.95 | L178: 15500 | M178: 0.25852
A179: 170 | B179: SRTRANSFIN | C179: 940.55 | D179: 960.52 | E179: 882.33 | F179: 824.12 | G179: 745.93 | H179: 1018.73 | I179: 1096.92 | J179: 1155.13 | K179: 1038.7 | L179: 902.3 | M179: 38.7056
A180: 171 | B180: SIEMENS | C180: 941.5 | D180: 931.50 | E180: 915.00 | F180: 888.50 | G180: 872.00 | H180: 958.00 | I180: 974.50 | J180: 1001.00 | K180: 948 | L180: 905 | M180: 2.35671
A181: 172 | B181: SBIN | C181: 265.75 | D181: 264.20 | E181: 259.90 | F181: 254.05 | G181: 249.75 | H181: 270.05 | I181: 274.35 | J181: 280.20 | K181: 268.5 | L181: 258.35 | M181: 211.00804
A182: 173 | B182: SAIL | C182: 64.5 | D182: 64.57 | E182: 62.48 | F182: 60.47 | G182: 58.38 | H182: 66.58 | I182: 68.67 | J182: 70.68 | K182: 66.65 | L182: 62.55 | M182: 137.74219
A183: 174 | B183: SPARC | C183: 303.5 | D183: 307.78 | E183: 294.72 | F183: 285.93 | G183: 272.87 | H183: 316.57 | I183: 329.63 | J183: 338.42 | K183: 320.85 | L183: 299 | M183: 2.40532
A184: 175 | B184: SUNPHARMA | C184: 604.25 | D184: 600.70 | E184: 592.65 | F184: 581.05 | G184: 573.00 | H184: 612.30 | I184: 620.35 | J184: 631.95 | K184: 608.75 | L184: 589.1 | M184: 44.00199
A185: 176 | B185: SUNTV | C185: 619.65 | D185: 611.53 | E185: 595.37 | F185: 571.08 | G185: 554.92 | H185: 635.82 | I185: 651.98 | J185: 676.27 | K185: 627.7 | L185: 587.25 | M185: 16.06358
A186: 177 | B186: SUZLON | C186: 5.5 | D186: 5.47 | E186: 5.28 | F186: 5.07 | G186: 4.88 | H186: 5.68 | I186: 5.87 | J186: 6.08 | K186: 5.65 | L186: 5.25 | M186: 336.95867
A187: 178 | B187: SYNDIBANK | C187: 30.25 | D187: 30.33 | E187: 29.42 | F187: 28.58 | G187: 27.67 | H187: 31.17 | I187: 32.08 | J187: 32.92 | K187: 31.25 | L187: 29.5 | M187: 36.06935
A188: 179 | B188: SYNGENE | C188: 573.75 | D188: 573.87 | E188: 560.18 | F188: 546.62 | G188: 532.93 | H188: 587.43 | I188: 601.12 | J188: 614.68 | K188: 587.55 | L188: 560.3 | M188: 0.57331
A189: 180 | B189: TV18BRDCST | C189: 33.8 | D189: 33.35 | E189: 32.60 | F189: 31.40 | G189: 30.65 | H189: 34.55 | I189: 35.30 | J189: 36.50 | K189: 34.1 | L189: 32.15 | M189: 59.74396
A190: 181 | B190: TVSMOTOR | C190: 504.85 | D190: 498.85 | E190: 484.70 | F190: 464.55 | G190: 450.40 | H190: 519.00 | I190: 533.15 | J190: 553.30 | K190: 513 | L190: 478.7 | M190: 30.16546
A191: 182 | B191: TATACHEM | C191: 640.25 | D191: 644.40 | E191: 626.30 | F191: 612.35 | G191: 594.25 | H191: 658.35 | I191: 676.45 | J191: 690.40 | K191: 662.5 | L191: 630.45 | M191: 7.18771
A192: 183 | B192: TATACOMM | C192: 477.05 | D192: 474.30 | E192: 465.35 | F192: 453.65 | G192: 444.70 | H192: 486.00 | I192: 494.95 | J192: 506.65 | K192: 483.25 | L192: 462.6 | M192: 3.45965
A193: 184 | B193: TCS | C193: 2077.55 | D193: 2082.63 | E193: 2043.07 | F193: 2008.58 | G193: 1969.02 | H193: 2117.12 | I193: 2156.68 | J193: 2191.17 | K193: 2122.2 | L193: 2048.15 | M193: 20.10154
A194: 185 | B194: TATAGLOBAL | C194: 215.15 | D194: 214.75 | E194: 207.25 | F194: 199.35 | G194: 191.85 | H194: 222.65 | I194: 230.15 | J194: 238.05 | K194: 222.25 | L194: 206.85 | M194: 46.42146
A195: 186 | B195: TATAMTRDVR | C195: 115.45 | D195: 115.53 | E195: 112.72 | F195: 109.98 | G195: 107.17 | H195: 118.27 | I195: 121.08 | J195: 123.82 | K195: 118.35 | L195: 112.8 | M195: 23.35434
A196: 187 | B196: TATAMOTORS | C196: 212.35 | D196: 212.98 | E196: 207.47 | F196: 202.58 | G196: 197.07 | H196: 217.87 | I196: 223.38 | J196: 228.27 | K196: 218.5 | L196: 208.1 | M196: 118.5417
A197: 188 | B197: TATAPOWER | C197: 61.5 | D197: 62.38 | E197: 59.47 | F197: 57.43 | G197: 54.52 | H197: 64.42 | I197: 67.33 | J197: 69.37 | K197: 65.3 | L197: 60.35 | M197: 48.37741
A198: 189 | B198: TATASTEEL | C198: 559.8 | D198: 557.92 | E198: 545.88 | F198: 531.97 | G198: 519.93 | H198: 571.83 | I198: 583.87 | J198: 597.78 | K198: 569.95 | L198: 544 | M198: 91.71048
A199: 190 | B199: TECHM | C199: 694.9 | D199: 699.32 | E199: 679.23 | F199: 663.57 | G199: 643.48 | H199: 714.98 | I199: 735.07 | J199: 750.73 | K199: 719.4 | L199: 683.65 | M199: 26.43927
A200: 191 | B200: RAMCOCEM | C200: 617.8 | D200: 617.72 | E200: 610.08 | F200: 602.37 | G200: 594.73 | H200: 625.43 | I200: 633.07 | J200: 640.78 | K200: 625.35 | L200: 610 | M200: 1.73588
A201: 192 | B201: TITAN | C201: 813.55 | D201: 802.42 | E201: 785.83 | F201: 758.12 | G201: 741.53 | H201: 830.13 | I201: 846.72 | J201: 874.43 | K201: 819 | L201: 774.7 | M201: 39.61739
A202: 193 | B202: TORNTPHARM | C202: 1569 | D202: 1568.22 | E202: 1530.78 | F202: 1492.57 | G202: 1455.13 | H202: 1606.43 | I202: 1643.87 | J202: 1682.08 | K202: 1605.65 | L202: 1530 | M202: 2.39193
A203: 194 | B203: TORNTPOWER | C203: 223.2 | D203: 223.05 | E203: 216.70 | F203: 210.20 | G203: 203.85 | H203: 229.55 | I203: 235.90 | J203: 242.40 | K203: 229.4 | L203: 216.55 | M203: 14.37374
A204: 195 | B204: UPL | C204: 619.15 | D204: 608.77 | E204: 592.53 | F204: 565.92 | G204: 549.68 | H204: 635.38 | I204: 651.62 | J204: 678.23 | K204: 625 | L204: 582.15 | M204: 36.2892
A205: 196 | B205: ULTRACEMCO | C205: 3758.9 | D205: 3748.98 | E205: 3711.47 | F205: 3664.03 | G205: 3626.52 | H205: 3796.42 | I205: 3833.93 | J205: 3881.37 | K205: 3786.5 | L205: 3701.55 | M205: 4.27278
... 30 more rows

Sheet MidCap Intra
L5: Back To Main Page
A6: FOR INTRA DAY TRADING | K6: =Main!B10 -> 2018-10-09
A9: Sr.no | B9: Scrip | C9: CLOSE RATE | D9: Pivot Point | E9: Supports | H9: Resistances
C10: Point | E10: S1 | F10: S2 | G10: S3 | H10: R1 | I10: R2 | J10: R3 | K10: HIGH | L10: LOW | M10: Total Trade Quanity in Lakhs
A11: 1 | B11: 3MINDIA | C11: 21792.5 | D11: 21600.53 | E11: 21231.97 | F11: 20671.43 | G11: 20302.87 | H11: 22161.07 | I11: 22529.63 | J11: 23090.17 | K11: 21969.1 | L11: 21040 | M11: 0.01655
A12: 2 | B12: 8KMILES | C12: 148.2 | D12: 148.20 | E12: 148.20 | F12: 148.20 | G12: 148.20 | H12: 148.20 | I12: 148.20 | J12: 148.20 | K12: 148.2 | L12: 148.2 | M12: 0.95831
A13: 3 | B13: AARTIIND | C13: 1245.1 | D13: 1230.05 | E13: 1195.10 | F13: 1145.10 | G13: 1110.15 | H13: 1280.05 | I13: 1315.00 | J13: 1365.00 | K13: 1265 | L13: 1180.05 | M13: 0.58019
A14: 4 | B14: ABAN | C14: 73.2 | D14: 74.33 | E14: 71.07 | F14: 68.93 | G14: 65.67 | H14: 76.47 | I14: 79.73 | J14: 81.87 | K14: 77.6 | L14: 72.2 | M14: 5.05809
A15: 5 | B15: ABB | C15: 1378.6 | D15: 1367.42 | E15: 1344.83 | F15: 1311.07 | G15: 1288.48 | H15: 1401.18 | I15: 1423.77 | J15: 1457.53 | K15: 1390 | L15: 1333.65 | M15: 0.58594
A16: 6 | B16: ABCAPITAL | C16: 104.95 | D16: 105.28 | E16: 101.82 | F16: 98.68 | G16: 95.22 | H16: 108.42 | I16: 111.88 | J16: 115.02 | K16: 108.75 | L16: 102.15 | M16: 27.55673
A17: 7 | B17: ABFRL | C17: 177.3 | D17: 177.47 | E17: 173.93 | F17: 170.57 | G17: 167.03 | H17: 180.83 | I17: 184.37 | J17: 187.73 | K17: 181 | L17: 174.1 | M17: 5.90635
A18: 8 | B18: ACC | C18: 1474.65 | D18: 1465.08 | E18: 1446.17 | F18: 1417.68 | G18: 1398.77 | H18: 1493.57 | I18: 1512.48 | J18: 1540.97 | K18: 1484 | L18: 1436.6 | M18: 7.34973
A19: 9 | B19: ADANIPORTS | C19: 304.35 | D19: 301.35 | E19: 297.10 | F19: 289.85 | G19: 285.60 | H19: 308.60 | I19: 312.85 | J19: 320.10 | K19: 305.6 | L19: 294.1 | M19: 59.15306
A20: 10 | B20: ADANIPOWER | C20: 23.5 | D20: 22.85 | E20: 21.65 | F20: 19.80 | G20: 18.60 | H20: 24.70 | I20: 25.90 | J20: 27.75 | K20: 24.05 | L20: 21 | M20: 240.72777
A21: 11 | B21: ADANITRANS | C21: 147.95 | D21: 146.78 | E21: 142.67 | F21: 137.38 | G21: 133.27 | H21: 152.07 | I21: 156.18 | J21: 161.47 | K21: 150.9 | L21: 141.5 | M21: 0.59012
A22: 12 | B22: ADVENZYMES | C22: 170.9 | D22: 171.48 | E22: 166.52 | F22: 162.13 | G22: 157.17 | H22: 175.87 | I22: 180.83 | J22: 185.22 | K22: 176.45 | L22: 167.1 | M22: 1.41013
A23: 13 | B23: AEGISCHEM | C23: 181.8 | D23: 182.05 | E23: 178.25 | F23: 174.70 | G23: 170.90 | H23: 185.60 | I23: 189.40 | J23: 192.95 | K23: 185.85 | L23: 178.5 | M23: 0.91976
A24: 14 | B24: AIAENG | C24: 1584.65 | D24: 1615.62 | E24: 1533.28 | F24: 1481.92 | G24: 1399.58 | H24: 1666.98 | I24: 1749.32 | J24: 1800.68 | K24: 1697.95 | L24: 1564.25 | M24: 0.80335
A25: 15 | B25: AJANTPHARM | C25: 1001 | D25: 1009.67 | E25: 971.33 | F25: 941.67 | G25: 903.33 | H25: 1039.33 | I25: 1077.67 | J25: 1107.33 | K25: 1048 | L25: 980 | M25: 3.16073
A26: 16 | B26: AKZOINDIA | C26: 1593.4 | D26: 1578.20 | E26: 1546.40 | F26: 1499.40 | G26: 1467.60 | H26: 1625.20 | I26: 1657.00 | J26: 1704.00 | K26: 1610 | L26: 1531.2 | M26: 0.19762
A27: 17 | B27: ALBK | C27: 34.05 | D27: 34.37 | E27: 33.23 | F27: 32.42 | G27: 31.28 | H27: 35.18 | I27: 36.32 | J27: 37.13 | K27: 35.5 | L27: 33.55 | M27: 44.17889
A28: 18 | B28: ALKEM | C28: 1968.6 | D28: 1990.88 | E28: 1936.82 | F28: 1905.03 | G28: 1850.97 | H28: 2022.67 | I28: 2076.73 | J28: 2108.52 | K28: 2044.95 | L28: 1959.1 | M28: 0.9607
A29: 19 | B29: ALLCARGO | C29: 96.25 | D29: 96.33 | E29: 93.97 | F29: 91.68 | G29: 89.32 | H29: 98.62 | I29: 100.98 | J29: 103.27 | K29: 98.7 | L29: 94.05 | M29: 4.24342
A30: 20 | B30: AMARAJABAT | C30: 729.45 | D30: 724.00 | E30: 709.50 | F30: 689.55 | G30: 675.05 | H30: 743.95 | I30: 758.45 | J30: 778.40 | K30: 738.5 | L30: 704.05 | M30: 8.4588
A31: 21 | B31: AMBUJACEM | C31: 208.1 | D31: 207.05 | E31: 203.45 | F31: 198.80 | G31: 195.20 | H31: 211.70 | I31: 215.30 | J31: 219.95 | K31: 210.65 | L31: 202.4 | M31: 24.83769
A32: 22 | B32: ANDHRABANK | C32: 26.6 | D32: 26.62 | E32: 26.13 | F32: 25.67 | G32: 25.18 | H32: 27.08 | I32: 27.57 | J32: 28.03 | K32: 27.1 | L32: 26.15 | M32: 15.54819
A33: 23 | B33: APLAPOLLO | C33: 1222.15 | D33: 1236.55 | E33: 1193.10 | F33: 1164.05 | G33: 1120.60 | H33: 1265.60 | I33: 1309.05 | J33: 1338.10 | K33: 1280 | L33: 1207.5 | M33: 0.85649
A34: 24 | B34: APLLTD | C34: 554.35 | D34: 562.32 | E34: 525.73 | F34: 497.12 | G34: 460.53 | H34: 590.93 | I34: 627.52 | J34: 656.13 | K34: 598.9 | L34: 533.7 | M34: 1.59275
A35: 25 | B35: APOLLOHOSP | C35: 1081.9 | D35: 1070.70 | E35: 1049.10 | F35: 1016.30 | G35: 994.70 | H35: 1103.50 | I35: 1125.10 | J35: 1157.90 | K35: 1092.3 | L35: 1037.9 | M35: 3.71858
A36: 26 | B36: APOLLOTYRE | C36: 205.25 | D36: 202.20 | E36: 196.95 | F36: 188.65 | G36: 183.40 | H36: 210.50 | I36: 215.75 | J36: 224.05 | K36: 207.45 | L36: 193.9 | M36: 32.61159
A37: 27 | B37: ARVIND | C37: 300.75 | D37: 303.10 | E37: 292.40 | F37: 284.05 | G37: 273.35 | H37: 311.45 | I37: 322.15 | J37: 330.50 | K37: 313.8 | L37: 294.75 | M37: 22.59305
A38: 28 | B38: ASAHIINDIA | C38: 300.05 | D38: 298.35 | E38: 291.70 | F38: 283.35 | G38: 276.70 | H38: 306.70 | I38: 313.35 | J38: 321.70 | K38: 305 | L38: 290 | M38: 0.12671
A39: 29 | B39: ASHOKA | C39: 97.55 | D39: 100.05 | E39: 94.10 | F39: 90.65 | G39: 84.70 | H39: 103.50 | I39: 109.45 | J39: 112.90 | K39: 106 | L39: 96.6 | M39: 3.60905
A40: 30 | B40: ASHOKLEY | C40: 109.15 | D40: 108.38 | E40: 104.87 | F40: 100.58 | G40: 97.07 | H40: 112.67 | I40: 116.18 | J40: 120.47 | K40: 111.9 | L40: 104.1 | M40: 280.67992
A41: 31 | B41: ASIANPAINT | C41: 1247.8 | D41: 1234.30 | E41: 1214.60 | F41: 1181.40 | G41: 1161.70 | H41: 1267.50 | I41: 1287.20 | J41: 1320.40 | K41: 1254 | L41: 1201.1 | M41: 10.50759
A42: 32 | B42: ASTRAL | C42: 828.3 | D42: 827.23 | E42: 817.07 | F42: 805.83 | G42: 795.67 | H42: 838.47 | I42: 848.63 | J42: 859.87 | K42: 837.4 | L42: 816 | M42: 0.60242
A43: 33 | B43: ATUL | C43: 3006.8 | D43: 2980.60 | E43: 2941.20 | F43: 2875.60 | G43: 2836.20 | H43: 3046.20 | I43: 3085.60 | J43: 3151.20 | K43: 3020 | L43: 2915 | M43: 0.21457
A44: 34 | B44: AUBANK | C44: 564.15 | D44: 556.52 | E44: 533.83 | F44: 503.52 | G44: 480.83 | H44: 586.83 | I44: 609.52 | J44: 639.83 | K44: 579.2 | L44: 526.2 | M44: 5.02455
A45: 35 | B45: AUROPHARMA | C45: 736.4 | D45: 733.78 | E45: 721.67 | F45: 706.93 | G45: 694.82 | H45: 748.52 | I45: 760.63 | J45: 775.37 | K45: 745.9 | L45: 719.05 | M45: 25.65348
A46: 36 | B46: AVANTIFEED | C46: 375.75 | D46: 375.15 | E46: 365.60 | F46: 355.45 | G46: 345.90 | H46: 385.30 | I46: 394.85 | J46: 405.00 | K46: 384.7 | L46: 365 | M46: 5.4626
A47: 37 | B47: AXISBANK | C47: 556.55 | D47: 559.05 | E47: 543.60 | F47: 530.65 | G47: 515.20 | H47: 572.00 | I47: 587.45 | J47: 600.40 | K47: 574.5 | L47: 546.1 | M47: 129.18017
A48: 38 | B48: BAJAJ-AUTO | C48: 2584.1 | D48: 2563.15 | E48: 2522.20 | F48: 2460.30 | G48: 2419.35 | H48: 2625.05 | I48: 2666.00 | J48: 2727.90 | K48: 2604.1 | L48: 2501.25 | M48: 6.67297
A49: 39 | B49: BAJAJCORP | C49: 388.2 | D49: 387.22 | E49: 380.03 | F49: 371.87 | G49: 364.68 | H49: 395.38 | I49: 402.57 | J49: 410.73 | K49: 394.4 | L49: 379.05 | M49: 0.36587
A50: 40 | B50: BAJAJELEC | C50: 477.55 | D50: 478.87 | E50: 471.53 | F50: 465.52 | G50: 458.18 | H50: 484.88 | I50: 492.22 | J50: 498.23 | K50: 486.2 | L50: 472.85 | M50: 1.94561
A51: 41 | B51: BAJAJFINSV | C51: 5395.55 | D51: 5375.32 | E51: 5250.63 | F51: 5105.72 | G51: 4981.03 | H51: 5520.23 | I51: 5644.92 | J51: 5789.83 | K51: 5500 | L51: 5230.4 | M51: 2.71315
A52: 42 | B52: BAJAJHIND | C52: 8.65 | D52: 8.72 | E52: 8.28 | F52: 7.92 | G52: 7.48 | H52: 9.08 | I52: 9.52 | J52: 9.88 | K52: 9.15 | L52: 8.35 | M52: 37.39713
A53: 43 | B53: BAJAJHLDNG | C53: 2520.05 | D53: 2574.37 | E53: 2410.73 | F53: 2301.42 | G53: 2137.78 | H53: 2683.68 | I53: 2847.32 | J53: 2956.63 | K53: 2738 | L53: 2465.05 | M53: 1.12609
A54: 44 | B54: BAJFINANCE | C54: 1974.85 | D54: 1992.35 | E54: 1894.70 | F54: 1814.55 | G54: 1716.90 | H54: 2072.50 | I54: 2170.15 | J54: 2250.30 | K54: 2090 | L54: 1912.2 | M54: 59.66669
A55: 45 | B55: BALKRISIND | C55: 981.4 | D55: 994.87 | E55: 954.63 | F55: 927.87 | G55: 887.63 | H55: 1021.63 | I55: 1061.87 | J55: 1088.63 | K55: 1035.1 | L55: 968.1 | M55: 10.53671
A56: 46 | B56: BALLARPUR | C56: 6.5 | D56: 6.53 | E56: 6.27 | F56: 6.03 | G56: 5.77 | H56: 6.77 | I56: 7.03 | J56: 7.27 | K56: 6.8 | L56: 6.3 | M56: 3.43204
A57: 47 | B57: BALMLAWRIE | C57: 180.4 | D57: 180.45 | E57: 177.45 | F57: 174.50 | G57: 171.50 | H57: 183.40 | I57: 186.40 | J57: 189.35 | K57: 183.45 | L57: 177.5 | M57: 0.53492
A58: 48 | B58: BALRAMCHIN | C58: 78.05 | D58: 77.02 | E58: 75.03 | F58: 72.02 | G58: 70.03 | H58: 80.03 | I58: 82.02 | J58: 85.03 | K58: 79 | L58: 74 | M58: 53.6021
A59: 49 | B59: BANKBARODA | C59: 97.5 | D59: 97.77 | E59: 95.03 | F59: 92.57 | G59: 89.83 | H59: 100.23 | I59: 102.97 | J59: 105.43 | K59: 100.5 | L59: 95.3 | M59: 289.5763
A60: 50 | B60: BANKINDIA | C60: 76 | D60: 75.83 | E60: 74.17 | F60: 72.33 | G60: 70.67 | H60: 77.67 | I60: 79.33 | J60: 81.17 | K60: 77.5 | L60: 74 | M60: 73.24522
A61: 51 | B61: BASF | C61: 1613.2 | D61: 1631.40 | E61: 1581.80 | F61: 1550.40 | G61: 1500.80 | H61: 1662.80 | I61: 1712.40 | J61: 1743.80 | K61: 1681 | L61: 1600 | M61: 0.07009
A62: 52 | B62: BATAINDIA | C62: 893.8 | D62: 878.92 | E62: 858.93 | F62: 824.07 | G62: 804.08 | H62: 913.78 | I62: 933.77 | J62: 968.63 | K62: 898.9 | L62: 844.05 | M62: 16.83421
A63: 53 | B63: BBTC | C63: 1214.85 | D63: 1206.65 | E63: 1168.60 | F63: 1122.35 | G63: 1084.30 | H63: 1252.90 | I63: 1290.95 | J63: 1337.20 | K63: 1244.7 | L63: 1160.4 | M63: 3.25603
A64: 54 | B64: BEL | C64: 77.15 | D64: 77.37 | E64: 74.98 | F64: 72.82 | G64: 70.43 | H64: 79.53 | I64: 81.92 | J64: 84.08 | K64: 79.75 | L64: 75.2 | M64: 99.76249
A65: 55 | B65: BEML | C65: 560.65 | D65: 561.20 | E65: 547.45 | F65: 534.25 | G65: 520.50 | H65: 574.40 | I65: 588.15 | J65: 601.35 | K65: 574.95 | L65: 548 | M65: 11.31691
A66: 56 | B66: BERGEPAINT | C66: 275.35 | D66: 273.22 | E66: 267.23 | F66: 259.12 | G66: 253.13 | H66: 281.33 | I66: 287.32 | J66: 295.43 | K66: 279.2 | L66: 265.1 | M66: 8.07183
A67: 57 | B67: BFUTILITIE | C67: 196.3 | D67: 198.75 | E67: 189.55 | F67: 182.80 | G67: 173.60 | H67: 205.50 | I67: 214.70 | J67: 221.45 | K67: 207.95 | L67: 192 | M67: 2.67715
A68: 58 | B68: BGRENERGY | C68: 52.7 | D68: 53.12 | E68: 51.23 | F68: 49.77 | G68: 47.88 | H68: 54.58 | I68: 56.47 | J68: 57.93 | K68: 55 | L68: 51.65 | M68: 0.57162
A69: 59 | B69: BHARATFIN | C69: 988.4 | D69: 988.77 | E69: 974.63 | F69: 960.87 | G69: 946.73 | H69: 1002.53 | I69: 1016.67 | J69: 1030.43 | K69: 1002.9 | L69: 975 | M69: 12.44305
A70: 60 | B70: BHARATFORG | C70: 566.1 | D70: 569.13 | E70: 556.57 | F70: 547.03 | G70: 534.47 | H70: 578.67 | I70: 591.23 | J70: 600.77 | K70: 581.7 | L70: 559.6 | M70: 22.3407
A71: 61 | B71: BHARTIARTL | C71: 295.2 | D71: 295.00 | E71: 291.20 | F71: 287.20 | G71: 283.40 | H71: 299.00 | I71: 302.80 | J71: 306.80 | K71: 298.8 | L71: 291 | M71: 90.2637
A72: 62 | B72: BHEL | C72: 69.6 | D72: 69.52 | E72: 68.03 | F72: 66.47 | G72: 64.98 | H72: 71.08 | I72: 72.57 | J72: 74.13 | K72: 71 | L72: 67.95 | M72: 91.32523
A73: 63 | B73: BHUSANSTL | C73: 29.65 | D73: 29.53 | E73: 28.52 | F73: 27.38 | G73: 26.37 | H73: 30.67 | I73: 31.68 | J73: 32.82 | K73: 30.55 | L73: 28.4 | M73: 28.3508
A74: 64 | B74: BIOCON | C74: 595.2 | D74: 596.12 | E74: 579.63 | F74: 564.07 | G74: 547.58 | H74: 611.68 | I74: 628.17 | J74: 643.73 | K74: 612.6 | L74: 580.55 | M74: 23.10185
A75: 65 | B75: BIRLACORPN | C75: 614.55 | D75: 606.37 | E75: 593.73 | F75: 572.92 | G75: 560.28 | H75: 627.18 | I75: 639.82 | J75: 660.63 | K75: 619 | L75: 585.55 | M75: 0.54619
A76: 66 | B76: BLISSGVS | C76: 172.2 | D76: 170.70 | E76: 166.50 | F76: 160.80 | G76: 156.60 | H76: 176.40 | I76: 180.60 | J76: 186.30 | K76: 174.9 | L76: 165 | M76: 1.50274
A77: 67 | B77: BLUEDART | C77: 2893.75 | D77: 2886.58 | E77: 2857.17 | F77: 2820.58 | G77: 2791.17 | H77: 2923.17 | I77: 2952.58 | J77: 2989.17 | K77: 2916 | L77: 2850 | M77: 0.01321
A78: 68 | B78: BLUESTARCO | C78: 551.9 | D78: 559.80 | E78: 541.65 | F78: 531.40 | G78: 513.25 | H78: 570.05 | I78: 588.20 | J78: 598.45 | K78: 577.95 | L78: 549.55 | M78: 0.24197
A79: 69 | B79: BOMDYEING | C79: 129.95 | D79: 129.95 | E79: 129.95 | F79: 129.95 | G79: 129.95 | H79: 129.95 | I79: 129.95 | J79: 129.95 | K79: 129.95 | L79: 129.95 | M79: 0.17151
A80: 70 | B80: BOSCHLTD | C80: 18361.4 | D80: 18567.05 | E80: 17994.35 | F80: 17627.30 | G80: 17054.60 | H80: 18934.10 | I80: 19506.80 | J80: 19873.85 | K80: 19139.75 | L80: 18200 | M80: 0.28702
A81: 71 | B81: BPCL | C81: 264.9 | D81: 267.30 | E81: 254.65 | F81: 244.40 | G81: 231.75 | H81: 277.55 | I81: 290.20 | J81: 300.45 | K81: 279.95 | L81: 257.05 | M81: 257.306
A82: 72 | B82: BRFL | C82: 15.3 | D82: 15.08 | E82: 14.77 | F82: 14.23 | G82: 13.92 | H82: 15.62 | I82: 15.93 | J82: 16.47 | K82: 15.4 | L82: 14.55 | M82: 0.59972
A83: 73 | B83: BRIGADE | C83: 187.75 | D83: 187.57 | E83: 185.18 | F83: 182.62 | G83: 180.23 | H83: 190.13 | I83: 192.52 | J83: 195.08 | K83: 189.95 | L83: 185 | M83: 0.13787
A84: 74 | B84: BRITANNIA | C84: 5543.5 | D84: 5486.85 | E84: 5403.80 | F84: 5264.10 | G84: 5181.05 | H84: 5626.55 | I84: 5709.60 | J84: 5849.30 | K84: 5569.9 | L84: 5347.15 | M84: 2.2977
A85: 75 | B85: BSE | C85: 656.95 | D85: 660.32 | E85: 650.63 | F85: 644.32 | G85: 634.63 | H85: 666.63 | I85: 676.32 | J85: 682.63 | K85: 670 | L85: 654 | M85: 1.02461
A86: 77 | B86: CADILAHC | C86: 376.4 | D86: 376.05 | E86: 371.15 | F86: 365.90 | G86: 361.00 | H86: 381.30 | I86: 386.20 | J86: 391.45 | K86: 380.95 | L86: 370.8 | M86: 14.41264
A87: 78 | B87: CANBK | C87: 216.7 | D87: 216.05 | E87: 211.65 | F87: 206.60 | G87: 202.20 | H87: 221.10 | I87: 225.50 | J87: 230.55 | K87: 220.45 | L87: 211 | M87: 78.47413
A88: 79 | B88: CANFINHOME | C88: 225.3 | D88: 227.45 | E88: 216.10 | F88: 206.90 | G88: 195.55 | H88: 236.65 | I88: 248.00 | J88: 257.20 | K88: 238.8 | L88: 218.25 | M88: 17.69943
A89: 80 | B89: CAPF | C89: 453.95 | D89: 457.10 | E89: 434.90 | F89: 415.85 | G89: 393.65 | H89: 476.15 | I89: 498.35 | J89: 517.40 | K89: 479.3 | L89: 438.05 | M89: 11.04618
A90: 81 | B90: CAPLIPOINT | C90: 409.05 | D90: 413.17 | E90: 398.33 | F90: 387.62 | G90: 372.78 | H90: 423.88 | I90: 438.72 | J90: 449.43 | K90: 428 | L90: 402.45 | M90: 0.31819
A91: 82 | B91: CARBORUNIV | C91: 334.4 | D91: 333.23 | E91: 326.27 | F91: 318.13 | G91: 311.17 | H91: 341.37 | I91: 348.33 | J91: 356.47 | K91: 340.2 | L91: 325.1 | M91: 0.53985
A92: 83 | B92: CARERATING | C92: 1036.8 | D92: 1055.78 | E92: 992.02 | F92: 947.23 | G92: 883.47 | H92: 1100.57 | I92: 1164.33 | J92: 1209.12 | K92: 1119.55 | L92: 1011 | M92: 0.51315
A93: 84 | B93: CASTROLIND | C93: 137.85 | D93: 137.90 | E93: 135.50 | F93: 133.15 | G93: 130.75 | H93: 140.25 | I93: 142.65 | J93: 145.00 | K93: 140.3 | L93: 135.55 | M93: 19.82167
A94: 85 | B94: CCL | C94: 247.65 | D94: 248.87 | E94: 243.78 | F94: 239.92 | G94: 234.83 | H94: 252.73 | I94: 257.82 | J94: 261.68 | K94: 253.95 | L94: 245 | M94: 1.32764
A95: 86 | B95: CDSL | C95: 229.5 | D95: 229.50 | E95: 225.00 | F95: 220.50 | G95: 216.00 | H95: 234.00 | I95: 238.50 | J95: 243.00 | K95: 234 | L95: 225 | M95: 1.67232
A96: 87 | B96: CEATLTD | C96: 1067.2 | D96: 1060.57 | E96: 1042.73 | F96: 1018.27 | G96: 1000.43 | H96: 1085.03 | I96: 1102.87 | J96: 1127.33 | K96: 1078.4 | L96: 1036.1 | M96: 5.55993
A97: 88 | B97: CENTRALBK | C97: 31.75 | D97: 32.27 | E97: 31.23 | F97: 30.72 | G97: 29.68 | H97: 32.78 | I97: 33.82 | J97: 34.33 | K97: 33.3 | L97: 31.75 | M97: 12.47798
A98: 89 | B98: CENTURYPLY | C98: 159.65 | D98: 160.52 | E98: 153.33 | F98: 147.02 | G98: 139.83 | H98: 166.83 | I98: 174.02 | J98: 180.33 | K98: 167.7 | L98: 154.2 | M98: 3.1961
A99: 90 | B99: CENTURYTEX | C99: 747.8 | D99: 746.70 | E99: 728.55 | F99: 709.30 | G99: 691.15 | H99: 765.95 | I99: 784.10 | J99: 803.35 | K99: 764.85 | L99: 727.45 | M99: 8.44446
A100: 91 | B100: CERA | C100: 2443.1 | D100: 2445.03 | E100: 2414.07 | F100: 2385.03 | G100: 2354.07 | H100: 2474.07 | I100: 2505.03 | J100: 2534.07 | K100: 2476 | L100: 2416 | M100: 0.04146
A101: 92 | B101: CGPOWER | C101: 40.8 | D101: 40.58 | E101: 39.52 | F101: 38.23 | G101: 37.17 | H101: 41.87 | I101: 42.93 | J101: 44.22 | K101: 41.65 | L101: 39.3 | M101: 25.01717
A102: 93 | B102: CHAMBLFERT | C102: 137.4 | D102: 136.17 | E102: 129.33 | F102: 121.27 | G102: 114.43 | H102: 144.23 | I102: 151.07 | J102: 159.13 | K102: 143 | L102: 128.1 | M102: 5.16948
A103: 94 | B103: CHENNPETRO | C103: 232.2 | D103: 237.45 | E103: 216.95 | F103: 201.70 | G103: 181.20 | H103: 252.70 | I103: 273.20 | J103: 288.45 | K103: 257.95 | L103: 222.2 | M103: 16.66839
A104: 95 | B104: CHOLAFIN | C104: 1055.35 | D104: 1072.77 | E104: 1020.58 | F104: 985.82 | G104: 933.63 | H104: 1107.53 | I104: 1159.72 | J104: 1194.48 | K104: 1124.95 | L104: 1038 | M104: 5.47169
A105: 96 | B105: CIPLA | C105: 638.8 | D105: 636.63 | E105: 630.62 | F105: 622.43 | G105: 616.42 | H105: 644.82 | I105: 650.83 | J105: 659.02 | K105: 642.65 | L105: 628.45 | M105: 15.6464
A106: 97 | B106: COALINDIA | C106: 267.9 | D106: 267.78 | E106: 262.62 | F106: 257.33 | G106: 252.17 | H106: 273.07 | I106: 278.23 | J106: 283.52 | K106: 272.95 | L106: 262.5 | M106: 34.74214
A107: 98 | B107: COCHINSHIP | C107: 369.6 | D107: 375.37 | E107: 362.83 | F107: 356.07 | G107: 343.53 | H107: 382.13 | I107: 394.67 | J107: 401.43 | K107: 387.9 | L107: 368.6 | M107: 1.50346
A108: 99 | B108: COFFEEDAY | C108: 253.15 | D108: 253.33 | E108: 242.57 | F108: 231.98 | G108: 221.22 | H108: 263.92 | I108: 274.68 | J108: 285.27 | K108: 264.1 | L108: 242.75 | M108: 2.94805
A109: 100 | B109: COLPAL | C109: 1042.55 | D109: 1052.25 | E109: 1023.50 | F109: 1004.45 | G109: 975.70 | H109: 1071.30 | I109: 1100.05 | J109: 1119.10 | K109: 1081 | L109: 1033.2 | M109: 3.33503
A110: 101 | B110: CONCOR | C110: 599.5 | D110: 604.22 | E110: 585.43 | F110: 571.37 | G110: 552.58 | H110: 618.28 | I110: 637.07 | J110: 651.13 | K110: 623 | L110: 590.15 | M110: 5.61426
A111: 102 | B111: COROMANDEL | C111: 367.8 | D111: 362.32 | E111: 344.58 | F111: 321.37 | G111: 303.63 | H111: 385.53 | I111: 403.27 | J111: 426.48 | K111: 380.05 | L111: 339.1 | M111: 1.75593
A112: 103 | B112: COX&KINGS | C112: 174.05 | D112: 173.53 | E112: 167.07 | F112: 160.08 | G112: 153.62 | H112: 180.52 | I112: 186.98 | J112: 193.97 | K112: 180 | L112: 166.55 | M112: 1.04066
A113: 104 | B113: CRISIL | C113: 1615.7 | D113: 1615.73 | E113: 1601.47 | F113: 1587.23 | G113: 1572.97 | H113: 1629.97 | I113: 1644.23 | J113: 1658.47 | K113: 1630 | L113: 1601.5 | M113: 0.09246
A114: 105 | B114: CROMPTON | C114: 204.9 | D114: 205.73 | E114: 200.27 | F114: 195.63 | G114: 190.17 | H114: 210.37 | I114: 215.83 | J114: 220.47 | K114: 211.2 | L114: 201.1 | M114: 7.37859
A115: 106 | B115: CUB | C115: 169.3 | D115: 165.45 | E115: 160.95 | F115: 152.60 | G115: 148.10 | H115: 173.80 | I115: 178.30 | J115: 186.65 | K115: 169.95 | L115: 157.1 | M115: 3.35781
A116: 107 | B116: CUMMINSIND | C116: 654.55 | D116: 654.33 | E116: 642.72 | F116: 630.88 | G116: 619.27 | H116: 666.17 | I116: 677.78 | J116: 689.62 | K116: 665.95 | L116: 642.5 | M116: 2.46953
A117: 108 | B117: CYIENT | C117: 714.35 | D117: 724.73 | E117: 699.62 | F117: 684.88 | G117: 659.77 | H117: 739.47 | I117: 764.58 | J117: 779.32 | K117: 749.85 | L117: 710 | M117: 2.07228
A118: 109 | B118: DABUR | C118: 409.7 | D118: 412.62 | E118: 401.93 | F118: 394.17 | G118: 383.48 | H118: 420.38 | I118: 431.07 | J118: 438.83 | K118: 423.3 | L118: 404.85 | M118: 20.69981
A119: 110 | B119: DBCORP | C119: 191.35 | D119: 193.45 | E119: 186.90 | F119: 182.45 | G119: 175.90 | H119: 197.90 | I119: 204.45 | J119: 208.90 | K119: 200 | L119: 189 | M119: 0.37931
A120: 111 | B120: DBL | C120: 560.3 | D120: 574.12 | E120: 536.18 | F120: 512.07 | G120: 474.13 | H120: 598.23 | I120: 636.17 | J120: 660.28 | K120: 612.05 | L120: 550 | M120: 2.30239
A121: 112 | B121: DBREALTY | C121: 19.75 | D121: 19.90 | E121: 18.70 | F121: 17.65 | G121: 16.45 | H121: 20.95 | I121: 22.15 | J121: 23.20 | K121: 21.1 | L121: 18.85 | M121: 4.39177
A122: 113 | B122: DCAL | C122: 213.9 | D122: 214.63 | E122: 199.27 | F122: 184.63 | G122: 169.27 | H122: 229.27 | I122: 244.63 | J122: 259.27 | K122: 230 | L122: 200 | M122: 2.33788
A123: 114 | B123: DCBBANK | C123: 143.1 | D123: 144.87 | E123: 139.23 | F123: 135.37 | G123: 129.73 | H123: 148.73 | I123: 154.37 | J123: 158.23 | K123: 150.5 | L123: 141 | M123: 17.13812
A124: 115 | B124: DCMSHRIRAM | C124: 331.6 | D124: 344.30 | E124: 307.50 | F124: 283.40 | G124: 246.60 | H124: 368.40 | I124: 405.20 | J124: 429.30 | K124: 381.1 | L124: 320.2 | M124: 2.47832
A125: 116 | B125: DEEPAKFERT | C125: 187 | D125: 188.12 | E125: 182.48 | F125: 177.97 | G125: 172.33 | H125: 192.63 | I125: 198.27 | J125: 202.78 | K125: 193.75 | L125: 183.6 | M125: 1.08352
A126: 117 | B126: DELTACORP | C126: 206.7 | D126: 205.95 | E126: 200.00 | F126: 193.30 | G126: 187.35 | H126: 212.65 | I126: 218.60 | J126: 225.30 | K126: 211.9 | L126: 199.25 | M126: 16.39735
A127: 118 | B127: DEN | C127: 62.9 | D127: 62.07 | E127: 59.23 | F127: 55.57 | G127: 52.73 | H127: 65.73 | I127: 68.57 | J127: 72.23 | K127: 64.9 | L127: 58.4 | M127: 5.84906
A128: 119 | B128: DENABANK | C128: 14.65 | D128: 14.78 | E128: 14.27 | F128: 13.88 | G128: 13.37 | H128: 15.17 | I128: 15.68 | J128: 16.07 | K128: 15.3 | L128: 14.4 | M128: 11.59153
A129: 120 | B129: DHFL | C129: 223.1 | D129: 234.50 | E129: 195.00 | F129: 166.90 | G129: 127.40 | H129: 262.60 | I129: 302.10 | J129: 330.20 | K129: 274 | L129: 206.4 | M129: 549.62924
A130: 121 | B130: DISHTV | C130: 52.6 | D130: 51.72 | E130: 49.68 | F130: 46.77 | G130: 44.73 | H130: 54.63 | I130: 56.67 | J130: 59.58 | K130: 53.75 | L130: 48.8 | M130: 53.87419
A131: 122 | B131: DIVISLAB | C131: 1277.45 | D131: 1274.07 | E131: 1253.43 | F131: 1229.42 | G131: 1208.78 | H131: 1298.08 | I131: 1318.72 | J131: 1342.73 | K131: 1294.7 | L131: 1250.05 | M131: 7.07482
A132: 123 | B132: DIXON | C132: 2381.3 | D132: 2378.58 | E132: 2314.17 | F132: 2247.03 | G132: 2182.62 | H132: 2445.72 | I132: 2510.13 | J132: 2577.27 | K132: 2443 | L132: 2311.45 | M132: 0.21716
A133: 124 | B133: DLF | C133: 151.85 | D133: 151.58 | E133: 146.42 | F133: 140.98 | G133: 135.82 | H133: 157.02 | I133: 162.18 | J133: 167.62 | K133: 156.75 | L133: 146.15 | M133: 151.15736
A134: 125 | B134: DMART | C134: 1304.9 | D134: 1310.60 | E134: 1274.50 | F134: 1244.10 | G134: 1208.00 | H134: 1341.00 | I134: 1377.10 | J134: 1407.50 | K134: 1346.7 | L134: 1280.2 | M134: 5.5743
A135: 126 | B135: DREDGECORP | C135: 299.3 | D135: 302.83 | E135: 289.87 | F135: 280.43 | G135: 267.47 | H135: 312.27 | I135: 325.23 | J135: 334.67 | K135: 315.8 | L135: 293.4 | M135: 1.15192
A136: 127 | B136: DRREDDY | C136: 2340.1 | D136: 2359.95 | E136: 2312.15 | F136: 2284.20 | G136: 2236.40 | H136: 2387.90 | I136: 2435.70 | J136: 2463.65 | K136: 2407.75 | L136: 2332 | M136: 6.03789
A137: 128 | B137: ECLERX | C137: 1043 | D137: 1038.67 | E137: 1019.33 | F137: 995.67 | G137: 976.33 | H137: 1062.33 | I137: 1081.67 | J137: 1105.33 | K137: 1058 | L137: 1015 | M137: 0.16822
A138: 129 | B138: EDELWEISS | C138: 151.9 | D138: 158.50 | E138: 142.00 | F138: 132.10 | G138: 115.60 | H138: 168.40 | I138: 184.90 | J138: 194.80 | K138: 175 | L138: 148.6 | M138: 102.76872
A139: 130 | B139: EICHERMOT | C139: 22134.75 | D139: 21699.93 | E139: 21085.87 | F139: 20036.98 | G139: 19422.92 | H139: 22748.82 | I139: 23362.88 | J139: 24411.77 | K139: 22314 | L139: 20651.05 | M139: 1.6149
A140: 131 | B140: EIDPARRY | C140: 184 | D140: 182.65 | E140: 177.75 | F140: 171.50 | G140: 166.60 | H140: 188.90 | I140: 193.80 | J140: 200.05 | K140: 187.55 | L140: 176.4 | M140: 3.052
A141: 132 | B141: EIHOTEL | C141: 143.55 | D141: 144.67 | E141: 140.38 | F141: 137.22 | G141: 132.93 | H141: 147.83 | I141: 152.12 | J141: 155.28 | K141: 148.95 | L141: 141.5 | M141: 0.7031
A142: 133 | B142: EMAMILTD | C142: 452.95 | D142: 451.00 | E142: 442.00 | F142: 431.05 | G142: 422.05 | H142: 461.95 | I142: 470.95 | J142: 481.90 | K142: 460 | L142: 440.05 | M142: 3.37439
A143: 134 | B143: ENDURANCE | C143: 1196 | D143: 1187.33 | E143: 1153.67 | F143: 1111.33 | G143: 1077.67 | H143: 1229.67 | I143: 1263.33 | J143: 1305.67 | K143: 1221 | L143: 1145 | M143: 0.76399
A144: 135 | B144: ENGINERSIN | C144: 106 | D144: 105.13 | E144: 103.07 | F144: 100.13 | G144: 98.07 | H144: 108.07 | I144: 110.13 | J144: 113.07 | K144: 107.2 | L144: 102.2 | M144: 28.64928
A145: 136 | B145: EQUITAS | C145: 107.95 | D145: 109.28 | E145: 104.57 | F145: 101.18 | G145: 96.47 | H145: 112.67 | I145: 117.38 | J145: 120.77 | K145: 114 | L145: 105.9 | M145: 28.3266
A146: 137 | B146: ERIS | C146: 675.5 | D146: 675.83 | E146: 659.67 | F146: 643.83 | G146: 627.67 | H146: 691.67 | I146: 707.83 | J146: 723.67 | K146: 692 | L146: 660 | M146: 0.32327
A147: 138 | B147: EROSMEDIA | C147: 76.3 | D147: 76.80 | E147: 74.00 | F147: 71.70 | G147: 68.90 | H147: 79.10 | I147: 81.90 | J147: 84.20 | K147: 79.6 | L147: 74.5 | M147: 10.35991
A148: 139 | B148: ESCORTS | C148: 556.3 | D148: 564.43 | E148: 532.87 | F148: 509.43 | G148: 477.87 | H148: 587.87 | I148: 619.43 | J148: 642.87 | K148: 596 | L148: 541 | M148: 22.38861
A149: 140 | B149: EVEREADY | C149: 193.6 | D149: 194.12 | E149: 184.83 | F149: 176.07 | G149: 166.78 | H149: 202.88 | I149: 212.17 | J149: 220.93 | K149: 203.4 | L149: 185.35 | M149: 3.93299
A150: 141 | B150: EXIDEIND | C150: 249.3 | D150: 246.93 | E150: 243.17 | F150: 237.03 | G150: 233.27 | H150: 253.07 | I150: 256.83 | J150: 262.97 | K150: 250.7 | L150: 240.8 | M150: 17.57321
A151: 142 | B151: FCONSUMER | C151: 36.6 | D151: 37.03 | E151: 35.67 | F151: 34.73 | G151: 33.37 | H151: 37.97 | I151: 39.33 | J151: 40.27 | K151: 38.4 | L151: 36.1 | M151: 33.00364
A152: 143 | B152: FEDERALBNK | C152: 70.3 | D152: 69.75 | E152: 68.55 | F152: 66.80 | G152: 65.60 | H152: 71.50 | I152: 72.70 | J152: 74.45 | K152: 70.95 | L152: 68 | M152: 170.40858
A153: 144 | B153: FINCABLES | C153: 463.1 | D153: 472.20 | E153: 451.90 | F153: 440.70 | G153: 420.40 | H153: 483.40 | I153: 503.70 | J153: 514.90 | K153: 492.5 | L153: 461 | M153: 0.39015
A154: 145 | B154: FINPIPE | C154: 510.4 | D154: 515.63 | E154: 504.27 | F154: 498.13 | G154: 486.77 | H154: 521.77 | I154: 533.13 | J154: 539.27 | K154: 527 | L154: 509.5 | M154: 1.52684
A155: 146 | B155: FLFL | C155: 392.2 | D155: 386.28 | E155: 375.87 | F155: 359.53 | G155: 349.12 | H155: 402.62 | I155: 413.03 | J155: 429.37 | K155: 396.7 | L155: 369.95 | M155: 0.66123
A156: 147 | B156: FSL | C156: 54.8 | D156: 54.95 | E156: 52.75 | F156: 50.70 | G156: 48.50 | H156: 57.00 | I156: 59.20 | J156: 61.25 | K156: 57.15 | L156: 52.9 | M156: 27.9796
A157: 148 | B157: GAIL | C157: 343.9 | D157: 340.08 | E157: 333.87 | F157: 323.83 | G157: 317.62 | H157: 350.12 | I157: 356.33 | J157: 366.37 | K157: 346.3 | L157: 330.05 | M157: 59.93328
A158: 149 | B158: GATI | C158: 72.65 | D158: 72.85 | E158: 69.80 | F158: 66.95 | G158: 63.90 | H158: 75.70 | I158: 78.75 | J158: 81.60 | K158: 75.9 | L158: 70 | M158: 18.68169
A159: 150 | B159: GDL | C159: 158 | D159: 155.07 | E159: 149.93 | F159: 141.87 | G159: 136.73 | H159: 163.13 | I159: 168.27 | J159: 176.33 | K159: 160.2 | L159: 147 | M159: 1.38479
A160: 151 | B160: GEPIL | C160: 723.95 | D160: 725.98 | E160: 706.07 | F160: 688.18 | G160: 668.27 | H160: 743.87 | I160: 763.78 | J160: 781.67 | K160: 745.9 | L160: 708.1 | M160: 0.07016
A161: 152 | B161: GESHIP | C161: 283.35 | D161: 280.68 | E161: 274.17 | F161: 264.98 | G161: 258.47 | H161: 289.87 | I161: 296.38 | J161: 305.57 | K161: 287.2 | L161: 271.5 | M161: 0.67323
A162: 153 | B162: GET&D | C162: 255.95 | D162: 254.68 | E162: 250.37 | F162: 244.78 | G162: 240.47 | H162: 260.27 | I162: 264.58 | J162: 270.17 | K162: 259 | L162: 249.1 | M162: 0.20594
A163: 154 | B163: GHCL | C163: 211.4 | D163: 207.93 | E163: 200.87 | F163: 190.33 | G163: 183.27 | H163: 218.47 | I163: 225.53 | J163: 236.07 | K163: 215 | L163: 197.4 | M163: 3.10999
A164: 155 | B164: GICRE | C164: 318.95 | D164: 318.48 | E164: 315.02 | F164: 311.08 | G164: 307.62 | H164: 322.42 | I164: 325.88 | J164: 329.82 | K164: 321.95 | L164: 314.55 | M164: 1.62661
A165: 156 | B165: GILLETTE | C165: 6484.8 | D165: 6519.92 | E165: 6375.03 | F165: 6265.27 | G165: 6120.38 | H165: 6629.68 | I165: 6774.57 | J165: 6884.33 | K165: 6664.8 | L165: 6410.15 | M165: 0.05032
A166: 157 | B166: GLAXO | C166: 1332.85 | D166: 1330.95 | E166: 1301.90 | F166: 1270.95 | G166: 1241.90 | H166: 1361.90 | I166: 1390.95 | J166: 1421.90 | K166: 1360 | L166: 1300 | M166: 0.24085
A167: 158 | B167: GLENMARK | C167: 597.15 | D167: 590.73 | E167: 580.67 | F167: 564.18 | G167: 554.12 | H167: 607.22 | I167: 617.28 | J167: 633.77 | K167: 600.8 | L167: 574.25 | M167: 7.66621
A168: 159 | B168: GMDCLTD | C168: 85.55 | D168: 86.38 | E168: 84.02 | F168: 82.48 | G168: 80.12 | H168: 87.92 | I168: 90.28 | J168: 91.82 | K168: 88.75 | L168: 84.85 | M168: 2.30223
A169: 160 | B169: GMRINFRA | C169: 15.75 | D169: 15.78 | E169: 15.22 | F169: 14.68 | G169: 14.12 | H169: 16.32 | I169: 16.88 | J169: 17.42 | K169: 16.35 | L169: 15.25 | M169: 430.62873
A170: 161 | B170: GNFC | C170: 324.5 | D170: 325.83 | E170: 314.92 | F170: 305.33 | G170: 294.42 | H170: 335.42 | I170: 346.33 | J170: 355.92 | K170: 336.75 | L170: 316.25 | M170: 3.74606
A171: 162 | B171: GODFRYPHLP | C171: 672.2 | D171: 671.62 | E171: 640.83 | F171: 609.47 | G171: 578.68 | H171: 702.98 | I171: 733.77 | J171: 765.13 | K171: 702.4 | L171: 640.25 | M171: 2.84632
A172: 163 | B172: GODREJAGRO | C172: 510.25 | D172: 510.18 | E172: 502.82 | F172: 495.38 | G172: 488.02 | H172: 517.62 | I172: 524.98 | J172: 532.42 | K172: 517.55 | L172: 502.75 | M172: 0.60059
A173: 164 | B173: GODREJCP | C173: 698.15 | D173: 698.22 | E173: 681.43 | F173: 664.72 | G173: 647.93 | H173: 714.93 | I173: 731.72 | J173: 748.43 | K173: 715 | L173: 681.5 | M173: 13.42917
A174: 165 | B174: GODREJIND | C174: 481.95 | D174: 478.42 | E174: 469.28 | F174: 456.62 | G174: 447.48 | H174: 491.08 | I174: 500.22 | J174: 512.88 | K174: 487.55 | L174: 465.75 | M174: 4.53203
A175: 166 | B175: GODREJPROP | C175: 498.4 | D175: 517.48 | E175: 470.97 | F175: 443.53 | G175: 397.02 | H175: 544.92 | I175: 591.43 | J175: 618.87 | K175: 564 | L175: 490.05 | M175: 5.38175
A176: 167 | B176: GPPL | C176: 102.1 | D176: 101.37 | E176: 98.73 | F176: 95.37 | G176: 92.73 | H176: 104.73 | I176: 107.37 | J176: 110.73 | K176: 104 | L176: 98 | M176: 1.27121
A177: 168 | B177: GRANULES | C177: 92.55 | D177: 92.75 | E177: 90.30 | F177: 88.05 | G177: 85.60 | H177: 95.00 | I177: 97.45 | J177: 99.70 | K177: 95.2 | L177: 90.5 | M177: 43.66964
A178: 169 | B178: GRAPHITE | C178: 788.8 | D178: 790.80 | E178: 763.00 | F178: 737.20 | G178: 709.40 | H178: 816.60 | I178: 844.40 | J178: 870.20 | K178: 818.6 | L178: 765 | M178: 6.49628
A179: 170 | B179: GRASIM | C179: 921.05 | D179: 915.62 | E179: 906.43 | F179: 891.82 | G179: 882.63 | H179: 930.23 | I179: 939.42 | J179: 954.03 | K179: 924.8 | L179: 901 | M179: 11.38491
A180: 171 | B180: GREAVESCOT | C180: 122.8 | D180: 123.20 | E180: 118.60 | F180: 114.40 | G180: 109.80 | H180: 127.40 | I180: 132.00 | J180: 136.20 | K180: 127.8 | L180: 119 | M180: 5.17131
A181: 172 | B181: GREENPLY | C181: 138.35 | D181: 140.23 | E181: 134.12 | F181: 129.88 | G181: 123.77 | H181: 144.47 | I181: 150.58 | J181: 154.82 | K181: 146.35 | L181: 136 | M181: 1.50304
A182: 173 | B182: GRUH | C182: 268.4 | D182: 268.67 | E182: 258.98 | F182: 249.57 | G182: 239.88 | H182: 278.08 | I182: 287.77 | J182: 297.18 | K182: 278.35 | L182: 259.25 | M182: 6.61386
A183: 174 | B183: GSFC | C183: 89.6 | D183: 89.62 | E183: 86.08 | F183: 82.57 | G183: 79.03 | H183: 93.13 | I183: 96.67 | J183: 100.18 | K183: 93.15 | L183: 86.1 | M183: 28.70933
A184: 175 | B184: GSKCONS | C184: 6399.9 | D184: 6423.30 | E184: 6286.60 | F184: 6173.30 | G184: 6036.60 | H184: 6536.60 | I184: 6673.30 | J184: 6786.60 | K184: 6560 | L184: 6310 | M184: 0.07222
A185: 176 | B185: GSPL | C185: 173.15 | D185: 173.37 | E185: 168.48 | F185: 163.82 | G185: 158.93 | H185: 178.03 | I185: 182.92 | J185: 187.58 | K185: 178.25 | L185: 168.7 | M185: 7.62682
A186: 177 | B186: GUJALKALI | C186: 580.15 | D186: 582.57 | E186: 561.58 | F186: 543.02 | G186: 522.03 | H186: 601.13 | I186: 622.12 | J186: 640.68 | K186: 603.55 | L186: 564 | M186: 0.99476
A187: 178 | B187: GUJFLUORO | C187: 780.6 | D187: 777.53 | E187: 765.07 | F187: 749.53 | G187: 737.07 | H187: 793.07 | I187: 805.53 | J187: 821.07 | K187: 790 | L187: 762 | M187: 0.35677
A188: 179 | B188: GUJGASLTD | C188: 611.65 | D188: 609.95 | E188: 602.70 | F188: 593.75 | G188: 586.50 | H188: 618.90 | I188: 626.15 | J188: 635.10 | K188: 617.2 | L188: 601 | M188: 0.08063
A189: 180 | B189: GULFOILLUB | C189: 722.55 | D189: 723.52 | E189: 719.03 | F189: 715.52 | G189: 711.03 | H189: 727.03 | I189: 731.52 | J189: 735.03 | K189: 728 | L189: 720 | M189: 0.09907
A190: 181 | B190: GVKPIL | C190: 7.15 | D190: 7.30 | E190: 7.00 | F190: 6.85 | G190: 6.55 | H190: 7.45 | I190: 7.75 | J190: 7.90 | K190: 7.6 | L190: 7.15 | M190: 17.67328
A191: 182 | B191: HATHWAY | C191: 25.55 | D191: 25.87 | E191: 24.73 | F191: 23.92 | G191: 22.78 | H191: 26.68 | I191: 27.82 | J191: 28.63 | K191: 27 | L191: 25.05 | M191: 10.53021
A192: 183 | B192: HATSUN | C192: 634.65 | D192: 637.78 | E192: 623.12 | F192: 611.58 | G192: 596.92 | H192: 649.32 | I192: 663.98 | J192: 675.52 | K192: 652.45 | L192: 626.25 | M192: 0.05541
A193: 184 | B193: HAVELLS | C193: 569.9 | D193: 577.17 | E193: 554.78 | F193: 539.67 | G193: 517.28 | H193: 592.28 | I193: 614.67 | J193: 629.78 | K193: 599.55 | L193: 562.05 | M193: 13.55705
A194: 185 | B194: HCC | C194: 11.35 | D194: 11.23 | E194: 10.97 | F194: 10.58 | G194: 10.32 | H194: 11.62 | I194: 11.88 | J194: 12.27 | K194: 11.5 | L194: 10.85 | M194: 85.77476
A195: 186 | B195: HCL-INSYS | C195: 22.5 | D195: 22.37 | E195: 21.73 | F195: 20.97 | G195: 20.33 | H195: 23.13 | I195: 23.77 | J195: 24.53 | K195: 23 | L195: 21.6 | M195: 8.40109
A196: 187 | B196: HCLTECH | C196: 1072.1 | D196: 1068.22 | E196: 1051.88 | F196: 1031.67 | G196: 1015.33 | H196: 1088.43 | I196: 1104.77 | J196: 1124.98 | K196: 1084.55 | L196: 1048 | M196: 11.55915
A197: 188 | B197: HDFC | C197: 1667.7 | D197: 1674.27 | E197: 1639.98 | F197: 1612.27 | G197: 1577.98 | H197: 1701.98 | I197: 1736.27 | J197: 1763.98 | K197: 1708.55 | L197: 1646.55 | M197: 49.39555
A198: 189 | B198: HDFCBANK | C198: 1945 | D198: 1948.00 | E198: 1927.00 | F198: 1909.00 | G198: 1888.00 | H198: 1966.00 | I198: 1987.00 | J198: 2005.00 | K198: 1969 | L198: 1930 | M198: 50.32005
A199: 190 | B199: HDIL | C199: 18.85 | D199: 19.05 | E199: 18.25 | F199: 17.65 | G199: 16.85 | H199: 19.65 | I199: 20.45 | J199: 21.05 | K199: 19.85 | L199: 18.45 | M199: 39.54043
A200: 191 | B200: HEG | C200: 3184.5 | D200: 3193.07 | E200: 3091.43 | F200: 2998.37 | G200: 2896.73 | H200: 3286.13 | I200: 3387.77 | J200: 3480.83 | K200: 3294.7 | L200: 3100 | M200: 1.71005
A201: 192 | B201: HEIDELBERG | C201: 138.25 | D201: 137.72 | E201: 135.68 | F201: 133.12 | G201: 131.08 | H201: 140.28 | I201: 142.32 | J201: 144.88 | K201: 139.75 | L201: 135.15 | M201: 1.14818
A202: 193 | B202: HERITGFOOD | C202: 461.95 | D202: 473.32 | E202: 446.63 | F202: 431.32 | G202: 404.63 | H202: 488.63 | I202: 515.32 | J202: 530.63 | K202: 500 | L202: 458 | M202: 0.15661
A203: 194 | B203: HEROMOTOCO | C203: 2873.05 | D203: 2822.70 | E203: 2760.40 | F203: 2647.75 | G203: 2585.45 | H203: 2935.35 | I203: 2997.65 | J203: 3110.30 | K203: 2885 | L203: 2710.05 | M203: 7.62339
A204: 195 | B204: HEXAWARE | C204: 406.55 | D204: 405.67 | E204: 396.38 | F204: 386.22 | G204: 376.93 | H204: 415.83 | I204: 425.12 | J204: 435.28 | K204: 414.95 | L204: 395.5 | M204: 8.89831
A205: 196 | B205: HFCL | C205: 19.15 | D205: 19.15 | E205: 18.60 | F205: 18.05 | G205: 17.50 | H205: 19.70 | I205: 20.25 | J205: 20.80 | K205: 19.7 | L205: 18.6 | M205: 41.01607
A206: 197 | B206: HIMATSEIDE | C206: 224.4 | D206: 225.63 | E206: 221.82 | F206: 219.23 | G206: 215.42 | H206: 228.22 | I206: 232.03 | J206: 234.62 | K206: 229.45 | L206: 223.05 | M206: 0.40339
... 304 more rows

Sheet Bulk Deals
E6: Back To Main Page
A7: Subject : | B7: BULK DEAL | D7: =Main!B10 -> 2018-10-09
A9: Date | B9: Scrip code | C9: Scrip Name | D9: Client Name | E9: Buy / Sell | F9: Quantity Traded | G9: Trade Price / Wt.Avg.trade price | H9: Exchange
A10: 2018-10-08 | B10: 540024 | C10: ASHARI | D10: RESOURCE OPZIONE CONSULTANCY PRIVATE LIMITED | E10: SELL | F10: 60,040 | G10: 28.7 | H10: BSE
A11: 2018-10-08 | B11: 540024 | C11: ASHARI | D11: RESOURCE OPZIONE CONSULTANCY PRIVATE LIMITED | E11: BUY | F11: 60,051 | G11: 28.45 | H11: BSE
A12: 2018-10-08 | B12: 540024 | C12: ASHARI | D12: REKHABEN HARISHBHAI SAKARIYA | E12: SELL | F12: 50,619 | G12: 28.46 | H12: BSE
A13: 2018-10-08 | B13: 540024 | C13: ASHARI | D13: REKHABEN HARISHBHAI SAKARIYA | E13: BUY | F13: 50,619 | G13: 28.5 | H13: BSE
A14: 2018-10-08 | B14: 540024 | C14: ASHARI | D14: ARCADIA SHARE & STOCK BROKERS PVT. LTD | E14: BUY | F14: 172,000 | G14: 28.53 | H14: BSE
A15: 2018-10-08 | B15: 540024 | C15: ASHARI | D15: VIRPAL SINGH | E15: SELL | F15: 100,000 | G15: 28.55 | H15: BSE
A16: 2018-10-08 | B16: 540024 | C16: ASHARI | D16: VIJAY KUMAR AGGARWAL | E16: SELL | F16: 200,000 | G16: 28.5 | H16: BSE
A17: 2018-10-08 | B17: 523850 | C17: AXTEL | D17: ANJALI CREDIT PVT LTD | E17: SELL | F17: 28,000 | G17: 48.82 | H17: BSE
A18: 2018-10-08 | B18: 523850 | C18: AXTEL | D18: ANJALI CREDIT PVT LTD | E18: BUY | F18: 98,600 | G18: 51.15 | H18: BSE
A19: 2018-10-08 | B19: 523850 | C19: AXTEL | D19: INDIANIVESH CAPITALS LIMITED | E19: SELL | F19: 98,600 | G19: 51.15 | H19: BSE
A20: 2018-10-08 | B20: 541178 | C20: BENARA | D20: NIRAJ LAHERCHAND MODI | E20: BUY | F20: 96,000 | G20: 51 | H20: BSE
A21: 2018-10-08 | B21: 532871 | C21: CELESTIAL | D21: SOUMENDRA DAS | E21: SELL | F21: 118,186 | G21: 11.17 | H21: BSE
A22: 2018-10-08 | B22: 532871 | C22: CELESTIAL | D22: GIGANTIC ENTERPRISES | E22: SELL | F22: 58,336 | G22: 11.22 | H22: BSE
A23: 2018-10-08 | B23: 532871 | C23: CELESTIAL | D23: GIGANTIC ENTERPRISES | E23: BUY | F23: 117,693 | G23: 11.19 | H23: BSE
A24: 2018-10-08 | B24: 521005 | C24: INDOVATION | D24: VEMPARALA SRI PUSHPA | E24: SELL | F24: 18,975 | G24: 10.55 | H24: BSE
A25: 2018-10-08 | B25: 521005 | C25: INDOVATION | D25: VENKATESWARLU KONDRA GUNTA | E25: BUY | F25: 19,000 | G25: 10.55 | H25: BSE
A26: 2018-10-08 | B26: 541983 | C26: INNOVATIVE | D26: NIRAJ LAHERCHAND MODI | E26: BUY | F26: 105,000 | G26: 47.4 | H26: BSE
A27: 2018-10-08 | B27: 541983 | C27: INNOVATIVE | D27: HARSHIT BIPINKUMAR SHAH | E27: SELL | F27: 63,000 | G27: 47.4 | H27: BSE
A28: 2018-10-08 | B28: 502933 | C28: KATRSPG | D28: SHLOK RAJESH KATARE | E28: SELL | F28: 22,230 | G28: 6.54 | H28: BSE
A29: 2018-10-08 | B29: 539595 | C29: NATECO | D29: Gopinath M | E29: BUY | F29: 20,000 | G29: 56.88 | H29: BSE
A30: 2018-10-08 | B30: 531512 | C30: ORIENTTR | D30: YUVRAJ INVESTNGROW PVT LTD | E30: SELL | F30: 56,100 | G30: 7.68 | H30: BSE
A31: 2018-10-08 | B31: 506852 | C31: PACL | D31: ARK PROFESSIONAL SERVICES PVT LTD | E31: BUY | F31: 150,000 | G31: 74.98 | H31: BSE
A32: 2018-10-08 | B32: 506852 | C32: PACL | D32: JAIDEEP SAMPAT | E32: SELL | F32: 271,130 | G32: 75.95 | H32: BSE
A33: 2018-10-08 | B33: 526247 | C33: PREMEXPLQ | D33: AKURDI TRADING COMPANY PVT LTD | E33: BUY | F33: 67,200 | G33: 181.47 | H33: BSE
A34: 2018-10-08 | B34: 541967 | C34: SKYGOLD | D34: ARYAMAN BROKING LIMITED | E34: SELL | F34: 55,200 | G34: 180.75 | H34: BSE
A35: 2018-10-08 | B35: 541967 | C35: SKYGOLD | D35: ARYAMAN BROKING LIMITED | E35: BUY | F35: 4,000 | G35: 180.9 | H35: BSE
A36: 2018-10-08 | B36: 541701 | C36: SUPERSHAKT | D36: ARYAMAN BROKING LIMITED | E36: SELL | F36: 42,900 | G36: 410 | H36: BSE
A37: 2018-10-08 | B37: 532904 | C37: SUPREMEINF | D37: NICHE FINANCIAL SERVICES PVT LTD . | E37: SELL | F37: 164,134 | G37: 23.25 | H37: BSE
A38: 2018-10-08 | B38: 532904 | C38: SUPREMEINF | D38: ANJALI CREDIT PVT LTD | E38: BUY | F38: 164,085 | G38: 23.25 | H38: BSE
A39: 2018-10-08 | B39: 541338 | C39: UHZAVERI | D39: SATISHKUMAR RAMANLAL GAJJAR | E39: BUY | F39: 48,000 | G39: 9.97 | H39: BSE
A40: 2018-10-08 | B40: 541338 | C40: UHZAVERI | D40: NNM SECURITIES PVT LTD | E40: SELL | F40: 42,000 | G40: 10 | H40: BSE
A41: 2018-10-08 | B41: 541338 | C41: UHZAVERI | D41: NNM SECURITIES PVT LTD | E41: BUY | F41: 6,000 | G41: 9.75 | H41: BSE
A42: 2018-10-08 | B42: 541338 | C42: UHZAVERI | D42: NEWEDGE VINIMAY PRIVATE LIMITED | E42: SELL | F42: 114,000 | G42: 10 | H42: BSE
A43: 2018-10-08 | B43: AGROPHOS | C43: Agro Phos India Limited | D43: BHAVIN ARVIND SHAH | E43: BUY | F43: 120,000 | G43: 33.98 | H43: NSE
A44: 2018-10-08 | B44: AKSHOPTFBR | C44: Aksh Optifibre Limited | D44: RATHI GLOBAL FINANCE PVT.LTD | E44: BUY | F44: 1,000,000 | G44: 23.13 | H44: NSE
A45: 2018-10-08 | B45: CELESTIAL | C45: Celestial Biolabs Limited | D45: GIGANTIC ENTERPRISES | E45: BUY | F45: 238,158 | G45: 11.48 | H45: NSE
A46: 2018-10-08 | B46: CELESTIAL | C46: Celestial Biolabs Limited | D46: HEMANT PRATAPBHAI KOTAK | E46: BUY | F46: 2,800 | G46: 11.65 | H46: NSE
A47: 2018-10-08 | B47: DHFL | C47: Dewan Housing Fin Corp | D47: ALPHAGREP COMMODITIES PRIVATE LIMITED | E47: BUY | F47: 1,828,632 | G47: 241.38 | H47: NSE
A48: 2018-10-08 | B48: DHFL | C48: Dewan Housing Fin Corp | D48: CROSSLAND TRADING CO | E48: BUY | F48: 2,217,959 | G48: 239.23 | H48: NSE
A49: 2018-10-08 | B49: DHFL | C49: Dewan Housing Fin Corp | D49: SHAASTRA SECURITIES TRADING PRIVATE LIMITED | E49: BUY | F49: 4,500,516 | G49: 240.7 | H49: NSE
A50: 2018-10-08 | B50: GIRIRAJ | C50: Giriraj Civil Devp Ltd | D50: BHARATI ARVIND SHAH | E50: BUY | F50: 20,400 | G50: 99.39 | H50: NSE
A51: 2018-10-08 | B51: GRETEX | C51: Gretex Industries Ltd. | D51: MEGHKUMAR MAHENDRAKUMAR SHAH | E51: BUY | F51: 30,000 | G51: 13 | H51: NSE
A52: 2018-10-08 | B52: INFIBEAM | C52: Infibeam Avenues Limited | D52: SATTVA ORGANISERS LLP | E52: BUY | F52: 12,000,000 | G52: 60 | H52: NSE
A53: 2018-10-08 | B53: JETAIRWAYS | C53: Jet Airways (India) Ltd. | D53: SHAASTRA SECURITIES TRADING PRIVATE LIMITED | E53: BUY | F53: 573,849 | G53: 180.81 | H53: NSE
A54: 2018-10-08 | B54: KSHITIJPOL | C54: Kshitij Polyline Limited | D54: VIKAS B AGARWAL | E54: BUY | F54: 120,000 | G54: 35.1 | H54: NSE
A55: 2018-10-08 | B55: SANCO | C55: Sanco Industries Ltd. | D55: ROYAL THEME PRODUCTS INDIA PVT LTD | E55: BUY | F55: 89,230 | G55: 14.64 | H55: NSE
A56: 2018-10-08 | B56: SICAL | C56: Sical Logistics Limited | D56: RACHNA CREDIT CAPITAL (P) LTD | E56: BUY | F56: 1,870,000 | G56: 146 | H56: NSE
A57: 2018-10-08 | B57: SPECTRUM | C57: Spectrum Electric Ind Ltd | D57: ARIHANT CAPITAL MARKETS LIMITED | E57: BUY | F57: 78,000 | G57: 65.05 | H57: NSE
A58: 2018-10-08 | B58: TALWALKARS | C58: Talwalkar Fitness Ltd | D58: ANIKET B NIKUMB | E58: BUY | F58: 200,000 | G58: 32.51 | H58: NSE
A59: 2018-10-08 | B59: TALWALKARS | C59: Talwalkar Fitness Ltd | D59: CHANDRASEKHAR IYER ADITYA | E59: BUY | F59: 370,000 | G59: 32.02 | H59: NSE
A60: 2018-10-08 | B60: TALWALKARS | C60: Talwalkar Fitness Ltd | D60: SHAKUNTALA B SHAH | E60: BUY | F60: 70,924 | G60: 30.4 | H60: NSE
A61: 2018-10-08 | B61: TATAELXSI | C61: Tata Elxsi Limited | D61: CROSSLAND TRADING CO | E61: BUY | F61: 321,311 | G61: 1078.65 | H61: NSE
A62: 2018-10-08 | B62: URJA | C62: Urja Global Limited | D62: DHANKALASH DISTRIBUTORS PRIVATE LIMITED | E62: BUY | F62: 3,000 | G62: 1.65 | H62: NSE
A63: 2018-10-08 | B63: CELESTIAL | C63: Celestial Biolabs Limited | D63: GIGANTIC ENTERPRISES | E63: SELL | F63: 170,736 | G63: 11.32 | H63: NSE
A64: 2018-10-08 | B64: CELESTIAL | C64: Celestial Biolabs Limited | D64: HEMANT PRATAPBHAI KOTAK | E64: SELL | F64: 111,563 | G64: 11.75 | H64: NSE
A65: 2018-10-08 | B65: DHFL | C65: Dewan Housing Fin Corp | D65: ALPHAGREP COMMODITIES PRIVATE LIMITED | E65: SELL | F65: 1,830,399 | G65: 242.77 | H65: NSE
A66: 2018-10-08 | B66: DHFL | C66: Dewan Housing Fin Corp | D66: CROSSLAND TRADING CO | E66: SELL | F66: 2,217,959 | G66: 239.4 | H66: NSE
A67: 2018-10-08 | B67: DHFL | C67: Dewan Housing Fin Corp | D67: SHAASTRA SECURITIES TRADING PRIVATE LIMITED | E67: SELL | F67: 4,500,516 | G67: 240.78 | H67: NSE
A68: 2018-10-08 | B68: EROSMEDIA | C68: Eros Intl Media Ltd | D68: MULTIPLIER SHARE & STOCK ADVI. | E68: SELL | F68: 500,000 | G68: 75.35 | H68: NSE
A69: 2018-10-08 | B69: GIRIRAJ | C69: Giriraj Civil Devp Ltd | D69: ARYAMAN CAPITAL MARKETS LIMITED | E69: SELL | F69: 18,000 | G69: 99.4 | H69: NSE
A70: 2018-10-08 | B70: GRETEX | C70: Gretex Industries Ltd. | D70: VISHWAMURTE TRAD INVEST PE LTD | E70: SELL | F70: 30000 | G70: 13 | H70: NSE
A71: 2018-10-08 | B71: INFIBEAM | C71: Infibeam Avenues Limited | D71: NOMURA SINGAPORE LIMITED | E71: SELL | F71: 8800694 | G71: 60.09 | H71: NSE
A72: 2018-10-08 | B72: JETAIRWAYS | C72: Jet Airways (India) Ltd. | D72: SHAASTRA SECURITIES TRADING PRIVATE LIMITED | E72: SELL | F72: 573849 | G72: 180.92 | H72: NSE
A73: 2018-10-08 | B73: KSHITIJPOL | C73: Kshitij Polyline Limited | D73: SUPER HANDLERS PVT LTD | E73: SELL | F73: 136000 | G73: 34.98 | H73: NSE
A74: 2018-10-08 | B74: KWALITY | C74: Kwality Limited | D74: LETKO BROSSEAU EMERGING MARKETS EQUITY FUND | E74: SELL | F74: 2000000 | G74: 12.53 | H74: NSE
A75: 2018-10-08 | B75: SANCO | C75: Sanco Industries Ltd. | D75: IFL PROMOTERS LIMITED | E75: SELL | F75: 110700 | G75: 14.69 | H75: NSE
A76: 2018-10-08 | B76: SANCO | C76: Sanco Industries Ltd. | D76: ROYAL THEME PRODUCTS INDIA PVT LTD | E76: SELL | F76: 10565 | G76: 14.8 | H76: NSE
A77: 2018-10-08 | B77: SICAL | C77: Sical Logistics Limited | D77: OPTIMUM STOCK TRADING CO.PVT.LTD | E77: SELL | F77: 1870000 | G77: 146 | H77: NSE
A78: 2018-10-08 | B78: TALWALKARS | C78: Talwalkar Fitness Ltd | D78: SHAKUNTALA B SHAH | E78: SELL | F78: 190924 | G78: 32.86 | H78: NSE
A79: 2018-10-08 | B79: TATAELXSI | C79: Tata Elxsi Limited | D79: CROSSLAND TRADING CO | E79: SELL | F79: 321311 | G79: 1080.55 | H79: NSE
A80: 2018-10-08 | B80: URJA | C80: Urja Global Limited | D80: DHANKALASH DISTRIBUTORS PRIVATE LIMITED | E80: SELL | F80: 4503000 | G80: 1.68 | H80: NSE

Sheet Call Tracker (Equity & F&O)
M5: Back To Main Page
A6: Retail Research Technical Calls & Fundamental Performance Report for the month of October -2018
M7: =Main!B10 -> 2018-10-09
B8: Positional Call
A9: Sr.no | B9: Date | D9: Company | E9: Rec | F9: Rec Price | G9: Stop Loss*** | H9: Call Closed At | I9: Target | J9: Remark | K9: Profit / Loss per Share | L9: Gain / Loss % | M9: Status | N9: Closed Date | O9: NSE Closed Price
A10: 1 | B10: 2018-09-24 | D10: SUNPHARMA | E10: Buy | F10: 632.5 | G10: 610 | H10: 605 | I10: 670-680 | J10: Loss of Rs. 27.50/- | K10: =H10-F10 -> -27.5 | L10: =K10/F10 -> -4.35% | M10: Unsuccessful | N10: 2018-10-04 | R10: H
A11: 2 | B11: 2018-09-26 | D11: SBIN | E11: Buy | F11: 266 | G11: 249.7 | H11: 274.5 | I11: 285-295 | J11: Profit of Rs. 8.50/- | K11: =H11-F11 -> 8.5 | L11: =K11/F11 -> 3.20% | M11: Successful | N11: 2018-10-01 | R11: R
A12: 3 | B12: 2018-09-27 | D12: ITC | E12: Buy | F12: 291.5 | G12: 278 | H12: 301.5 | I12: 320 | J12: Profit of Rs. 10/- | K12: 10 | L12: =K12/F12 -> 3.43% | M12: Successful | N12: 2018-10-01 | R12: H
A13: 4 | B13: 2018-09-28 | D13: RBLBANK | E13: Buy | F13: 520 | G13: 499 | H13: 538 | I13: 570-580 | J13: Profit of Rs. 18/- | K13: 18 | L13: =K13/F13 -> 3.46% | M13: Successful | N13: 2018-10-03 | R13: H
A14: 5 | B14: 2018-09-28 | D14: PIDILITIND | E14: Buy | F14: 1049.5 | G14: 1017.7 | H14: 998 | I14: 1100-1120 | J14: Loss of Rs. 51.50/- | K14: -51.5 | L14: =K14/F14 -> -4.91% | M14: Unsuccessful | N14: 2018-10-03 | R14: R
A15: 6 | B15: 2018-10-01 | D15: M&MFIN | E15: Buy | F15: 400 | G15: 379 | H15: 414 | I15: 440 | J15: Profit of Rs. 14/- | K15: 14 | L15: =K15/F15 -> 3.50% | M15: Successful | N15: 2018-10-01 | R15: H
A16: 7 | B16: 2018-10-01 | D16: CONCOR | E16: Buy | F16: 634 | G16: 598.7 | H16: 659 | I16: 690-700 | J16: Profit of Rs. 25/- | K16: 25 | L16: 3.94% | M16: Successful | N16: 2018-10-01 | R16: R
A17: 8 | B17: 2018-10-03 | D17: SUDARSCHEM | E17: Buy | F17: 402 | G17: 384.4 | H17: 384.4 | I17: 430-440 | J17: Loss of Rs. 17.60/- | K17: =H17-F17 -> -17.6 | L17: -4.38% | M17: Unsuccessful | N17: 2018-10-04 | R17: R
A18: 9 | B18: 2018-10-03 | D18: CEATLTD | E18: Buy | F18: 1133 | G18: 1078 | H18: 1073 | I18: 1200-1220 | J18: Loss of Rs. 60/- | K18: =H18-F18 -> -60 | L18: =K18/F18 -> -5.30% | M18: Unsuccessful | N18: 2018-10-04 | R18: H
A19: 10 | B19: 2018-10-03 | D19: INDUSINDBK | E19: Buy | F19: 1655 | G19: 1597.7 | H19: 1570 | I19: 1760-1780 | J19: Loss of Rs. 85/- | K19: =H19-F19 -> -85 | L19: =K19/F19 -> -5.14% | M19: Unsuccessful | N19: 2018-10-04 | R19: R
A20: 11 | B20: 2018-10-04 | D20: RBLBANK | E20: Buy | F20: 512.55 | G20: 489 | H20: 492 | I20: 550-560 | J20: Loss of Rs. 20.55/- | K20: =H20-F20 -> -20.55 | L20: =K20/F20 -> -4.01% | M20: Unsuccessful | N20: 2018-10-05 | R20: H
A21: 12 | B21: 2018-10-05 | D21: ITC | E21: Buy | F21: 282-284 | G21: 274 | I21: 300 | J21: Open | R21: H
A22: 13 | B22: 2018-10-08 | D22: RBLBANK | E22: Buy | F22: 496-501 | G22: 479 | I22: 540-550 | J22: Open | R22: H
A31: CLBS = Closing Basis *** | F31: Reinitiated $
A32: Dividend adjusted <> | F32: Revised stoploss #
A33: Part book {}
A34: Master Trade High Risk
A35: Sr.no | B35: Date | D35: Company | E35: Rec | F35: Rec Price | G35: Stop Loss | H35: Call Closed At | I35: Target | J35: Remark | K35: Profit / Loss per share | L35: Gain / Loss per Lot | M35: Lot | N35: Status | O35: Closed Date
A36: 1 | B36: 2018-09-28 | D36: HDFCBANK OCT FUT | E36: Buy | F36: 2020 | G36: 1980 | H36: 2051.5 | I36: 2100 | J36: Profit of Rs 19.50/- | K36: =H36-F36 -> 31.5 | L36: 9750 | M36: 500 | N36: Successful | O36: 2018-10-01 | R36: H
D37: HDFCBANK OCT 2060 CE | E37: Sell | F37: 23 | H37: 35 | K37: =F37-H37 -> -12
A38: 2 | B38: 2018-10-01 | D38: NIFTY OCT FUT | E38: Buy | F38: 10920 | G38: 10780 | H38: 11030 | I38: 11200 | J38: Profit of Rs 85/- | K38: =H38-F38 -> 110 | L38: 6375 | M38: 75 | N38: Successful | O38: 2018-10-01 | R38: H
D39: NIFTY OCT 11100 CE | E39: Sell | F39: 112.5 | H39: 137.5 | K39: =F39-H39 -> -25
A40: 3 | B40: 2018-10-03 | D40: NIFTY OCT FUT | E40: Buy | F40: 10952.5 | G40: 10850 | H40: 10780 | I40: 11150 | J40: Loss of Rs.172.5/- | K40: =H40-F40 -> -172.5 | L40: =M40*K40 -> -12937.5 | M40: 75 | N40: Unsuccessful | O40: 2018-10-04 | R40: H
A41: 4 | B41: 2018-10-03 | D41: MARUTI OCT FUT | E41: Buy | F41: 7310 | G41: 7117 | H41: 7010 | I41: 7650-7700 | J41: Loss of Rs.300/- | K41: =H41-F41 -> -300 | L41: =M41*K41 -> -22500 | M41: 75 | N41: Unsuccessful | O41: 2018-10-05 | R41: R
A42: 5 | B42: 2018-10-03 | D42: RELIANCE OCT FUT | E42: Buy | F42: 1222.5 | G42: 1195 | H42: 1195 | I42: 1270-1280 | J42: Loss of Rs.16/- | K42: =H42-F42 -> -27.5 | L42: =-16*M42 -> -16000 | M42: 1000 | N42: Unsuccessful | O42: 2018-10-04 | R42: H
D43: RELIANCE OCT 1260 CE | E43: Sell | F43: 26 | H43: 14.5 | K43: =F43-H43 -> 11.5
A44: 6 | B44: 2018-10-05 | D44: NIFTY OCT FUT | E44: Buy | F44: 10535 | G44: 10400 | H44: 10410 | I44: 10800 | J44: Loss of Rs.55/- | K44: =H44-F44 -> -125 | L44: =-55*75 -> -4125 | M44: 75 | N44: Unsuccessful | O44: 2018-10-05 | R44: H
D45: NIFTY OCT 10700 CE | E45: Sell | F45: 132.5 | H45: 62.5 | K45: =F45-H45 -> 70
A46: 7 | B46: 2018-10-08 | D46: RECLTD OCT FUT | E46: Buy | F46: 100.25 | G46: 97 | H46: 102.4 | I46: 106 | J46: Profit of Rs 1.8/- | K46: =H46-F46 -> 2.15 | L46: =1.8*6000 -> 10800 | M46: 6000 | N46: Unsuccessful | O46: 2018-10-08 | R46: N
D47: RECLTD OCT 10700 CE | E47: Sell | F47: 3.3 | H47: 3.65 | K47: =F47-H47 -> -0.35
A48: 8 | B48: 2018-10-08 | D48: INFRATEL OCT FUT | E48: Sell | F48: 265-266 | G48: 275 | I48: 250 | J48: Open | R48: H
D49: INFRATEL OCT 255 PE | E49: Sell | F49: 6.0-7.0
A50: 9 | B50: 2018-10-08 | D50: ONGC OCT FUT | E50: Sell | F50: 147-148 | G50: 153.5 | I50: 140 | J50: Open | R50: H
D51: ONGC OCT 140 PE | E51: Sell | F51: 4-4.5
A55: Master Trade Medium Risk
A56: Sr.no | B56: Date | D56: Company | E56: Rec | F56: Rec Price | G56: Stop Loss | H56: Call Closed At | I56: Target | J56: Remark | K56: Profit/ Loss per lot | L56: Gain / Loss per Lot | M56: Lot | N56: Status | O56: Closed Date
B69: Smart Delivery Trade
A70: Sr.no | B70: Date | D70: Company | E70: Rec | F70: Rec Price | G70: Stop Loss*** | H70: Call Closed At | I70: Target | J70: Remark | K70: Profit / Loss per Share | L70: Gain / Loss % | M70: Status | N70: Closed Date | O70: NSE Closed Price
A71: 1 | B71: 2018-09-27 | D71: COLPAL | E71: Buy | F71: 1094 | G71: 1058 | H71: 1050 | I71: 1140-1160 | J71: Loss of Rs. 44/- | K71: =H71-F71 -> -44 | L71: =K71/F71 -> -4.02% | M71: Unsuccessful | N71: 2018-10-08 | R71: H
A72: 2 | B72: 2018-10-03 | D72: BAJFINACE | E72: Buy | F72: 2210 | G72: 2140 | H72: 2275 | I72: 2300-2350 | J72: Profit of Rs. 65/- | K72: 65 | L72: =K72/F72 -> 2.94% | M72: Successful | N72: 2018-10-03 | R72: H
A73: 3 | B73: 2018-10-03 | D73: ADVENZYMES | E73: Buy | F73: 186 | G73: 179.7 | H73: 174.5 | I73: 197-200 | J73: Loss of Rs. 11.5/- | K73: -11.5 | L73: -6.18% | M73: Unsuccessful | N73: 2018-10-08 | R73: R
A74: 4 | B74: 2018-10-03 | D74: LT | E74: Buy | F74: 1249.5 | G74: 1195 | H74: 1277.5 | I74: 1330-1350 | J74: Profit of Rs. 28/- | K74: 28 | L74: =K74/F74 -> 2.24% | M74: Successful | N74: 2018-10-04 | R74: H
A75: 5 | B75: 2018-10-04 | D75: BAJFINANCE | E75: Buy | F75: 2180 | G75: 2135 | H75: 2135 | I75: 2250-2300 | J75: Loss of Rs. 45/- | K75: -45 | L75: =K75/F75 -> -2.06% | M75: Unsuccessful | N75: 2018-10-05 | R75: H
A76: 6 | B76: 2018-10-08 | D76: BAJFINANCE | E76: Buy | F76: 1980 | G76: 1935 | H76: 2047.5 | I76: 2100 | J76: Profit of Rs. 67/- | K76: 67.5 | L76: 3.41% | M76: Successful | N76: 2018-10-08 | R76: H
A77: 7 | B77: 2018-10-08 | D77: HDFCBANK | E77: Buy | F77: 1955-1965 | G77: 1890 | I77: 2150-2170 | J77: Open | R77: H
A78: 8 | B78: 2018-10-08 | D78: L&TFH | E78: Buy | F78: 122 | G78: 117 | H78: 117.5 | I78: 130-132 | J78: Loss of Rs. 4.5/- | K78: =H78-F78 -> -4.5 | L78: =K78/F78 -> -3.69% | M78: Unsuccessful | N78: 2018-10-08 | R78: H
A79: 9 | B79: 2018-10-08 | D79: JINDALSTEEL | E79: Sell | F79: 172 | G79: 178 | H79: 167.5 | I79: 160 | J79: Profit of Rs.4.5/- | K79: =F79-H79 -> 4.5 | L79: 2.62% | M79: Successful | N79: 2018-10-08 | R79: H
A81: CLBS = Closing Basis *** | F81: Reinitiated $
A82: Dividend adjusted <> | F82: Revised stoploss #
B85: Momentum Call
A86: Sr.no | B86: Date | D86: Company | E86: Rec | F86: Rec Price | G86: Stop Loss | H86: Call Closed At | I86: Target | J86: Remark | K86: Profit / Loss per Share/Lot | L86: Gain / Loss % | M86: Gain / Loss per Lot | N86: Lot | O86: Status | P86: Closed Date
A87: 1 | B87: 2018-10-01 | D87: INFRATEL OCT FUT | E87: Buy | F87: 268 | G87: 260 | H87: 260 | I87: 282 | J87: Loss of Rs.8/- | K87: =H87-F87 -> -8 | M87: =N87*K87 -> -13600 | N87: 1700 | O87: Unsuccessful | P87: 2018-10-03 | R87: N
A88: 2 | B88: 2018-10-03 | D88: TATASTEEL OCT FUT | E88: Buy | F88: 591.5 | G88: 579 | H88: 578 | I88: 610 | J88: Loss of Rs.13.5/- | K88: =H88-F88 -> -13.5 | M88: =N88*K88 -> -14323.5 | N88: 1061 | O88: Unsuccessful | P88: 2018-10-04 | R88: N
A89: 3 | B89: 2018-10-03 | D89: UPL OCT FUT | E89: Buy | F89: 647 | G89: 636 | H89: 640 | I89: 665-670 | J89: Loss of Rs.7/- | K89: =H89-F89 -> -7 | M89: =N89*K89 -> -8400 | N89: 1200 | O89: Unsuccessful | P89: 2018-10-04 | R89: N
A90: 4 | B90: 2018-10-08 | D90: INFRATEL OCT FUT | E90: Buy | F90: 256.5 | G90: 251 | H90: 262 | I90: 265-270 | J90: Profit of Rs.5.5/- | K90: =H90-F90 -> 5.5 | M90: =N90*K90 -> 9350 | N90: 1700 | O90: Successful | P90: 2018-10-08 | R90: N
A91: 5 | B91: 2018-10-08 | D91: HDFC OCT FUT | E91: Sell | F91: 1672.5 | G91: 1702 | H91: 1659 | I91: 1620 | J91: Profit of Rs.13.5/- | K91: =F91-H91 -> 13.5 | M91: =N91*K91 -> 6750 | N91: 500 | O91: Successful | P91: 2018-10-08
A96: CLBS = Closing Basis ***
A97: Dividend adjusted <> | F97: Reinitiated $
F98: Revised stoploss #
B99: Quick Pick Intraday
A100: Sr.no | B100: Date | D100: Company | E100: Rec | F100: Rec Price | G100: Stop Loss*** | H100: Call Closed At | I100: Target | J100: Remark | K100: Profit / Loss per Share | L100: Status | M100: Closed Date
A114: Techno -Funda (positional)
A115: Sr.no | B115: Date | D115: Company | E115: Rec | F115: Rec Price | G115: Stop Loss*** | H115: Call Closed At | I115: Target | J115: Remark | K115: Profit / Loss per Share | L115: Gain / Loss % | M115: Status | N115: Closed Date | O115: NSE Closed Price
A118: CLBS = Closing Basis *** | F118: Reinitiated $
A119: Dividend adjusted <> | F119: Revised stoploss #
B124: Investment Idea
A125: Sr.no | B125: Date | D125: Company | E125: Rec | F125: Rec Price | G125: Point of Review | H125: Close Rate | I125: Target | J125: Remark | K125: Profit / Loss per Share | L125: Gain / Loss % | M125: Status | N125: Closed Date
A126: 1 | B126: 2013-11-01 | D126: L&T Finance Holding | E126: Accu | F126: 82.00 | G126: - | H126: 100 | I126: 100.00 | J126: Target Achieved | K126: =H126-F126 -> 18.00 | L126: =K126/F126 -> 21.95% | M126: Successful | N126: 2016-10-14
A127: 2 | B127: 2014-06-04 | D127: Finolex Inds | E127: Buy | F127: 257.00 | G127: - | H127: 300 | I127: 300.00 | J127: Target Achieved | K127: =H127-F127 -> 43.00 | L127: 16.73% | M127: Successful | N127: 2014-07-02
A128: =1+A127 -> 3 | B128: 2014-07-08 | D128: JK Cement | E128: Buy | F128: 393.00 | G128: - | H128: 468 | I128: 468.00 | J128: Target Achieved | K128: =H128-F128 -> 75.00 | L128: 19.08% | M128: Successful | N128: 2014-08-12
A129: 4 | B129: 2014-08-06 | D129: Finolex Cables | E129: Buy | F129: 205.00 | G129: - | H129: 275 | I129: 250.00 | J129: Target Achieved | K129: 70.00 | L129: 34.15% | M129: Successful | N129: 2014-11-19
A130: 5 | B130: 2014-09-04 | D130: Exide Inds | E130: Buy | F130: 162.00 | G130: - | H130: 190 | I130: 190.00 | J130: Target Achieved | K130: 28.00 | L130: 17.28% | M130: Successful | N130: 2015-01-02
A131: 6 | B131: 2014-09-04 | D131: Deepak Nitrite | E131: Buy | F131: 75.00 | G131: - | H131: 91.5 | I131: 95-100 | J131: Profit of Rs.16.50/- | K131: 16.50 | L131: 22.00% | M131: Successful | N131: 2014-11-11
A132: 7 | B132: 2014-10-01 | D132: Mercks | E132: Buy | F132: 850.00 | G132: - | H132: 982.5 | I132: 1050.00 | J132: Profit of Rs.132.50/- | K132: 132.50 | L132: 15.59% | M132: Successful | N132: 2015-02-04
A133: 8 | B133: 2014-10-01 | D133: Grindwell Norton | E133: Buy | F133: 475.00 | G133: - | H133: 515 | I133: 600.00 | J133: Profit of Rs.40/- | K133: 40.00 | L133: 8.42% | M133: Successful | N133: 2014-10-27
A134: 9 | B134: 2014-10-01 | D134: Snowman Logistics | E134: Buy | F134: 86.00 | G134: - | H134: 99 | I134: 140.00 | J134: Profit of Rs.13.00/- | K134: 13.00 | L134: 15.12% | M134: Successful | N134: 2014-10-27
A135: 10 | B135: 2014-10-14 | D135: Birla Corp | E135: Buy | F135: 496.60 | G135: - | H135: 621 | I135: 580.00 | J135: Target Achieved | K135: 124.40 | L135: 25.05% | M135: Successful | N135: 2016-08-23
A136: 11 | B136: 2014-10-14 | D136: Ultratech Cem | E136: Buy | F136: 2481.90 | G136: - | H136: 2840 | I136: 2870.00 | J136: Profit of Rs.358.10/- | K136: 358.10 | L136: 14.43% | M136: Successful | N136: 2015-01-13
A137: =1+A134 -> 10 | B137: 2014-10-16 | D137: Sintex Inds | E137: Buy | F137: 84.50 | G137: - | H137: 93 | I137: 110.00 | J137: Profit of Rs.8.50/- | K137: 8.50 | L137: 10.06% | M137: Successful | N137: 2014-10-27
A138: =1+A137 -> 11 | B138: 2014-10-16 | D138: HSIL | E138: Buy | F138: 401.00 | G138: - | H138: 428 | I138: 450.00 | J138: Profit of Rs.27.00/- | K138: 27.00 | L138: 6.73% | M138: Successful | N138: 2015-01-16
A139: 12 | B139: 2014-10-16 | D139: Eveready Inds | E139: Buy | F139: 101.00 | G139: - | H139: 112 | I139: 120.00 | J139: Profit of Rs.11.00/- | K139: 11.00 | L139: 10.89% | M139: Successful | N139: 2014-10-27
A140: 13 | B140: 2014-11-11 | D140: Pennar Inds | E140: Buy | F140: 59.00 | G140: - | H140: 76 | I140: 76.00 | J140: Target Achieved | K140: 17.00 | L140: 28.81% | M140: Successful | N140: 2017-10-24
A141: 14 | B141: 2014-11-11 | D141: Snowman Logistics | E141: Buy | F141: 99.00 | G141: - | H141: 120 | I141: 120.00 | J141: Profit of Rs.21/- | K141: 21.00 | L141: 21.21% | M141: Successful | N141: 2014-11-17
A142: 15 | B142: 2014-11-13 | D142: Dharamsi Morarji Chem | E142: Buy | F142: 22.00 | G142: - | H142: 33.55 | I142: 32.00 | J142: Profit of Rs 11.55/- | K142: 11.55 | L142: 52.50% | M142: Successful | N142: 2015-07-03
A143: 16 | B143: 2014-12-03 | D143: Tatachem | E143: Buy | F143: 440.00 | G143: - | H143: 520 | I143: 520.00 | J143: Profit of Rs 80.00/- | K143: 80.00 | L143: 18.18% | M143: Successful | N143: 2015-07-23
A144: 17 | B144: 2014-12-03 | D144: Advanta | E144: Buy | F144: 360.00 | G144: - | H144: 427 | I144: 425.00 | J144: Profit of Rs.67.00/- | K144: 67.00 | L144: 18.61% | M144: Successful | N144: 2015-02-23
A145: 18 | B145: 2015-01-08 | D145: GDL | E145: Buy | F145: 360.00 | G145: - | H145: 455 | I145: 420.00 | J145: Profit of Rs.95.00/- | K145: 95.00 | L145: 26.39% | M145: Successful | N145: 2015-01-20
A146: 19 | B146: 2015-01-08 | D146: NRB Bearing | E146: Buy | F146: 130.00 | H146: 175.5 | I146: 165.00 | J146: Profit of Rs 45.50/- | K146: 45.50 | L146: 35.00% | M146: Successful | N146: 2017-12-19
A147: 20 | B147: 2015-02-05 | D147: GSFC | E147: Accu | F147: 98.00 | H147: 120 | I147: 120.00 | J147: Target Achieved | K147: 22.00 | L147: 22.45% | M147: Successful | N147: 2017-01-18
A148: 21 | B148: 2015-02-05 | D148: Sundrmfast | E148: Accu | F148: 196.00 | H148: 262 | I148: 255.00 | J148: Target Achieved | K148: 66.00 | L148: 33.67% | M148: Successful | N148: 2016-08-17
A149: 22 | B149: 2015-03-04 | D149: GPPL | E149: Accu | F149: 230-240 | I149: 280-285 | J149: Open
A150: 23 | B150: 2015-03-04 | D150: ORIENTCEM | E150: Accu | F150: 185.00 | H150: 224 | I150: 220-225 | J150: Target Achieved | K150: 39.00 | L150: =K150/F150 -> 21.08% | M150: Successful | N150: 2016-10-04
A151: 24 | B151: 2015-03-27 | D151: PFS | E151: Accu | F151: 49-50 | I151: 67.00 | J151: Open
A152: 25 | B152: 2015-03-30 | D152: Walchandnagar Ind Ltd | E152: Accu | F152: 183.50 | H152: 219 | I152: 218.00 | J152: Profit of Rs.35.50/- | K152: 35.50 | L152: =K152/F152 -> 19.35% | M152: Successful | N152: 2015-04-09
A153: 26 | B153: 2015-04-20 | D153: Kalpataru Power Transmission Ltd | E153: Accu | F153: =(227+237)/2 -> 232.00 | H153: 298 | I153: 298.00 | J153: Target Achieved | K153: 66.00 | L153: 28.45% | M153: Successful | N153: 2017-03-29
A154: 27 | B154: 2015-05-04 | D154: Mastek Ltd | E154: Buy | F154: 385.00 | H154: =212.5+331 -> 543.5 | I154: 510.00 | J154: Profit of Rs 158.50/- | K154: 158.50 | L154: 41.17% | M154: Successful | N154: 2015-08-19
A155: 28 | B155: 2015-05-04 | D155: Suprajit Eng | E155: Buy | F155: 115.50 | H155: 146 | I155: 142.00 | J155: Profit of Rs 30.50/- | K155: 30.50 | L155: 26.41% | M155: Successful | N155: 2015-07-17
A156: 29 | B156: 2015-05-27 | D156: TCI | E156: Buy | F156: 237.50 | H156: 279.5 | I156: 278.00 | J156: Target Achieved | K156: 42.00 | L156: 17.68% | M156: Successful | N156: 2015-08-06
A157: 30 | B157: 2015-06-19 | D157: HSIL | E157: Accu | F157: 340.00 | H157: 448 | I157: 448.00 | J157: Target Achieved | K157: 108.00 | L157: 31.76% | M157: Successful | N157: 2017-10-10
A158: 31 | B158: 2015-07-06 | D158: Capital First | E158: Accu | F158: 390.00 | H158: 460 | I158: 460.00 | J158: Target Achieved | K158: 70.00 | L158: 17.95% | M158: Successful | N158: 2016-04-18
A159: 32 | B159: 2015-07-10 | D159: Dolphin OffShore | E159: Accu | F159: 122.5 | H159: 61.00 | I159: 172.00 | J159: Loss of Rs.61.50/- | K159: -61.50 | L159: -50.20% | M159: Unsuccessful | N159: 2018-08-21
A160: 33 | B160: 2015-08-03 | D160: Allcargo logistics | E160: Accu | F160: 297.50 | H160: 350 | I160: 360.00 | J160: Profit of Rs 52.50/- | K160: 52.50 | L160: =K160/F160 -> 17.65% | M160: Successful | N160: 2015-08-16
A161: 34 | B161: 2015-08-03 | D161: Camline Fine | E161: Accu | F161: 115.50 | H161: 149 | I161: 140.00 | J161: Profit of Rs 33.50/- | K161: 33.50 | L161: 29.00% | M161: Successful | N161: 2017-01-05
A162: 35 | B162: 2015-09-04 | D162: TCI | E162: Accu | F162: 226.00 | H162: 292 | I162: 292.00 | J162: Target Achieved | K162: 66.00 | L162: 29.20% | M162: Successful | N162: 2015-10-09
A163: 36 | B163: 2015-09-07 | D163: Kalpataru Power Transmission Ltd | E163: Accu | F163: 232.50 | H163: 312.5 | I163: 310.00 | J163: Target Achieved | K163: 80.00 | L163: 34.41% | M163: Successful | N163: 2017-03-29
A164: 37 | B164: 2015-09-21 | D164: LLOYD ELECTRIC & ENG LTD | E164: Accu | F164: 196.50 | H164: 238 | I164: 238.00 | J164: Target Achieved | K164: 41.50 | L164: 21.12% | M164: Successful | N164: 2015-10-14
A165: 38 | B165: 2015-09-24 | D165: L&T Finance Holding | E165: Accu | F165: 65.00 | H165: 82 | I165: 82.00 | J165: Target Achieved | K165: 17.00 | L165: 26.15% | M165: Successful | N165: 2016-07-27
A166: 39 | B166: 2015-10-14 | D166: KEC International ltd | E166: Accu | F166: 144.00 | H166: 182.5 | I166: 181.00 | J166: Target Achieved | K166: 38.50 | L166: 26.74% | M166: Successful | N166: 2017-03-23
A167: 40 | B167: 2015-10-14 | D167: Gruh Finance | E167: Accu | F167: 264.00 | H167: 311 | I167: 311.00 | J167: Target Achieved | K167: 47.00 | L167: 17.80% | M167: Successful | N167: 2016-08-22
A168: 41 | B168: 2015-11-10 | D168: Pidilitind | E168: Buy | F168: 549.50 | H168: 630 | I168: 630.00 | J168: Target Achieved | K168: 80.50 | L168: 14.65% | M168: Successful | N168: 2016-02-19
A169: 42 | B169: 2015-12-04 | D169: Zensar Technology | E169: Accu | F169: 1027.50 | H169: 1315 | I169: 1250.00 | J169: Target Achieved | K169: =H169-F169 -> 287.50 | L169: 27.98% | M169: Successful | N169: 2018-05-24
A170: 43 | B170: 2015-12-29 | D170: Vinati Organics Ltd | E170: Accu | F170: 465.00 | H170: 540 | I170: 540.00 | J170: Target Achieved | K170: 75.00 | L170: =K170/F170 -> 16.13% | M170: Successful | N170: 2016-06-09
A171: 44 | B171: 2016-01-11 | D171: GSFC | E171: Buy | F171: 81.00 | H171: 110 | I171: 110.00 | J171: Target Achieved | K171: 29.00 | L171: 35.80% | M171: Successful | N171: 2017-01-10
A172: 45 | B172: 2016-01-13 | D172: SSWL | E172: Buy | F172: 417.50 | H172: 547 | I172: 535.00 | J172: Target Achieved | K172: 129.50 | L172: 31.02% | M172: Successful | N172: 2016-07-27
A173: 46 | B173: 2016-02-08 | D173: Persistent System Ltd | E173: Accu | F173: 650.00 | H173: 800 | I173: 800.00 | J173: Target Achieved | K173: 150.00 | L173: 23.08% | M173: Successful | N173: 2018-02-23
A174: 47 | B174: 2016-03-04 | D174: UPL | E174: Accu | F174: 437.50 | H174: 504.5 | I174: 522.00 | J174: Profit of Rs.67/- | K174: 67.00 | L174: 15.31% | M174: Successful | N174: 2016-04-20
A175: 48 | B175: 2016-03-09 | D175: Ashoka Buildcon Ltd | E175: Accu | F175: 189.50 | H175: 218 | I175: 218.00 | J175: Target Achieved | K175: 28.50 | L175: 15.04% | M175: Successful | N175: 2017-10-26
A176: 49 | B176: 2016-04-11 | D176: PTC INDIA FIN SERV LTD | E176: Accu | F176: 36-37 | I176: 60.00 | J176: Open
A177: 50 | B177: 2016-04-12 | D177: CAMLINFINE $ | E177: Accu | F177: 93.00 | H177: 149 | I177: 140.00 | J177: Profit of Rs 56/- | K177: 56.00 | L177: =K177/F177 -> 60.22% | M177: Successful | N177: 2017-01-05
A178: 51 | B178: 2016-04-12 | D178: Greaves Cotton Ltd. | E178: Accu | F178: 130.00 | H178: 150 | I178: 150-155 | J178: Target Achieved | K178: 20.00 | L178: 15.38% | M178: Successful | N178: 2016-07-13
A179: 52 | B179: 2016-04-13 | D179: DHFL | E179: Accu | F179: 196.00 | H179: 299 | I179: 299.00 | J179: Target Achieved | K179: 103.00 | L179: 52.55% | M179: Successful | N179: 2016-09-07
A180: 53 | B180: 2016-04-13 | D180: Magma | E180: Accu | F180: 88.00 | H180: 103 | I180: 103.00 | J180: Target Achieved | K180: 15.00 | L180: 17.05% | M180: Successful | N180: 2016-06-09
A181: 54 | B181: 2016-05-02 | D181: KEC International ltd $ | E181: Accu | F181: 127.50 | H181: 148 | I181: 148-150 | J181: Target Achieved | K181: 20.50 | L181: 16.08% | M181: Successful | N181: 2016-07-13
A182: 55 | B182: 2016-05-03 | D182: Mindtree | E182: Accu | F182: 675.00 | H182: 815 | I182: 790-800 | J182: Target Achieved | K182: 140.00 | L182: 20.74% | M182: Successful | N182: 2018-02-23
A183: 56 | B183: 2016-06-01 | D183: Atulauto | E183: Accu | F183: 495-505 | I183: 565-570 | J183: Open
A184: 57 | B184: 2016-06-06 | D184: TRITURBINE | E184: Accu | F184: 110.00 | H184: 126.5 | I184: 125.00 | J184: Profit of Rs.16.50/- | K184: 16.50 | L184: =K184/F184 -> 15.00% | M184: Successful | N184: 2016-07-01
A185: 58 | B185: 2016-06-17 | D185: Pennar Industries Ltd | E185: Accu | F185: 44.00 | H185: 69.5 | I185: 69.50 | J185: Profit of Rs.25.50/- | K185: 25.50 | L185: =K185/F185 -> 57.95% | M185: Successful | N185: 2017-08-30
A186: 59 | B186: 2016-06-28 | D186: EVEREADY INDS. IND. LTD. | E186: Accu | F186: 262.50 | H186: 340 | I186: 333.00 | J186: Profit of Rs.77.50/- | K186: 77.50 | L186: =K186/F186 -> 29.52% | M186: Successful | N186: 2017-10-09
A187: 60 | B187: 2016-06-28 | D187: FIEM INDUSTRIES LIMITED | E187: Accu | F187: 840.00 | H187: 1230 | I187: 1230.00 | J187: Target Achieved | K187: 390.00 | L187: =K187/F187 -> 46.43% | M187: Successful | N187: 2016-10-06
A188: 61 | B188: 2016-07-05 | D188: Bajaj Corp Ltd | E188: Accu | F188: 395 | H188: 468.50 | I188: 510.00 | J188: Part profit of Rs.73.50/- | K188: 73.50 | L188: =K188/F188 -> 19% | M188: Successful | N188: 2017-08-30
A189: 62 | B189: 2016-08-02 | D189: GPPL $ | E189: Buy | F189: 167-172 | I189: 198-200 | J189: Open
A190: 63 | B190: 2016-08-04 | D190: WONDERLA HOLIDAYS LTD | E190: Accu | F190: 395-405 | I190: 475.00 | J190: Open
A191: 64 | B191: 2016-08-11 | D191: CAMLINFINE | E191: Accu | F191: 86.50 | H191: 130 | I191: 130.00 | J191: Profit of Rs.43.50/- | K191: =H191-F191 -> 43.50 | L191: =K191/F191 -> 50.29% | M191: Successful | N191: 2017-12-22
A192: 65 | B192: 2016-08-18 | D192: GRANULES | E192: Accu | F192: 133.5 | H192: 126.50 | I192: 178.00 | J192: Exit | K192: -7.00 | L192: -5.24% | M192: Unsuccessful | N192: 2016-09-02
A193: 66 | B193: 2016-08-31 | D193: VA TECH WABAG | E193: Accu | F193: 560.00 | H193: 725 | I193: 725.00 | J193: Target Achieved | K193: 165.00 | L193: 29.46% | M193: Successful | N193: 2016-03-27
A194: 67 | B194: 2016-09-01 | D194: SKIPPER LIMITED | E194: Accu | F194: 160.50 | H194: 210 | I194: 210.00 | J194: Target Achieved | K194: 49.50 | L194: 30.84% | M194: Successful | N194: 2017-05-16
A195: 68 | B195: 2016-10-03 | D195: IFB Industries | E195: Accu | F195: 430.00 | H195: 596 | I195: 575.00 | J195: Profit of Rs.166/- | K195: 166.00 | L195: 38.60% | M195: Successful | N195: 2017-02-03
A196: 69 | B196: 2016-10-14 | D196: ASIANTILES | E196: Accu | F196: 280.00 | H196: 345 | I196: 345.00 | J196: Target Achieved | K196: 65.00 | L196: 23.21% | M196: Successful | N196: 2017-03-20
A197: 70 | B197: 2016-10-14 | D197: DEEPIND | E197: Accu | F197: 245.00 | H197: 325.5 | I197: 330.00 | J197: Profit of Rs.80.5/- | K197: 80.50 | L197: 32.86% | M197: Successful | N197: 2017-02-03
A198: 71 | B198: 2016-10-17 | D198: DCBBANK | E198: Accu | F198: 125.00 | H198: 160 | I198: 160.00 | J198: Target Achieved | K198: 35.00 | L198: 28.00% | M198: Successful | N198: 2017-03-09
A199: 72 | B199: 2016-10-17 | D199: ORIENTREF | E199: Accu | F199: 114.00 | H199: 145 | I199: 145.00 | J199: Target Achieved | K199: 31.00 | L199: =K199/F199 -> 27.19% | M199: Successful | N199: 2017-05-04
A200: 73 | B200: 2016-10-17 | D200: GANECOS | E200: Accu | F200: 212.00 | H200: 280 | I200: 276.00 | J200: Profit of Rs.68/- | K200: 68.00 | L200: =K200/F200 -> 32.08% | M200: Successful | N200: 2017-05-03
A201: 74 | B201: 2016-11-04 | D201: NBCC | E201: Accu | F201: 155.00 | H201: 210 | I201: 210.00 | J201: Profit of Rs.55/- | K201: 55.00 | L201: =K201/F201 -> 35.48% | M201: Successful | N201: 2017-07-28
A202: 75 | B202: 2016-12-06 | D202: PRECAM | E202: Accu | F202: 150.5 | H202: 72.50 | I202: 174.00 | J202: Loss of Rs.78/- | K202: -78.00 | L202: =K202/F202 -> -51.83% | M202: Unsuccessful | N202: 2018-08-21
A203: 76 | B203: 2016-12-08 | D203: INFRATEL | E203: Accu | F203: 380.00 | H203: 478 | I203: 468.00 | J203: Target Achieved | K203: 98.00 | L203: =K203/F203 -> 25.79% | M203: Successful | N203: 2017-10-17
A204: 77 | B204: 2016-12-30 | D204: GODREJPROP | E204: Accu | F204: 305.00 | H204: 375 | I204: 375.00 | J204: Target Achieved | K204: 70.00 | L204: 22.95% | M204: Successful | N204: 2017-02-02
A205: 78 | B205: 2017-01-04 | D205: DEEPAKNTR | E205: Accu | F205: 99.50 | H205: 158 | I205: 158.00 | J205: Target Achieved | K205: 58.50 | L205: 58.79% | M205: Successful | N205: 2017-06-12
A206: 79 | B206: 2017-02-20 | D206: SUBROS | E206: Accu | F206: 202.50 | H206: 234 | I206: 234.00 | J206: Target Achieved | K206: 31.50 | L206: 15.56% | M206: Successful | N206: 2017-04-11
A207: 80 | B207: 2017-02-20 | D207: RECLTD | E207: Accu | F207: 140.50 | H207: 220 | I207: 220.00 | J207: Target Achieved | K207: 79.50 | L207: 56.58% | M207: Successful | N207: 2017-05-09
A208: 81 | B208: 2017-03-24 | D208: VRLLOG | E208: Accu | F208: 300.50 | H208: 417.5 | I208: 420.00 | J208: Profit of Rs.117/- | K208: 117.00 | L208: 38.94% | M208: Successful | N208: 2017-12-01
A209: 82 | B209: 2017-03-24 | D209: FIEMIND | E209: Accu | F209: 850.00 | H209: 1042.5 | I209: 1023.00 | J209: Profit of Rs 192.50/- | K209: 192.50 | L209: 22.65% | M209: Successful | N209: 2017-04-05
A210: 83 | B210: 2017-04-05 | D210: RATNAMANI | E210: Accu | F210: 785.00 | H210: 930 | I210: 920.00 | J210: Profit of Rs.145/- | K210: 145.00 | L210: 18.47% | M210: Successful | N210: 2017-08-29
A211: 84 | B211: 2017-04-06 | D211: ZEEMEDIA | E211: Accu | F211: 39-41 | I211: 60.00 | J211: Open
A212: 85 | B212: 2017-04-12 | D212: DABUR | E212: Accu | F212: 289.50 | H212: 354 | I212: 360.00 | J212: Profit of Rs.64.5/- | K212: 64.50 | L212: =K212/F212 -> 22.28% | M212: Successful | N212: 2017-11-01
A213: 86 | B213: 2017-04-20 | D213: KPRMILL | E213: Accu | F213: 700.00 | H213: 840 | I213: 840.00 | J213: Profit of Rs.140/- | K213: 140.00 | L213: =K213/F213 -> 20.00% | M213: Successful | N213: 2017-06-07
A214: 87 | B214: 2017-05-22 | D214: GREAVESCOT | E214: Accu | F214: 153-158 | I214: 190.00 | J214: Open
A215: 88 | B215: 2017-06-01 | D215: ESSELPACK | E215: Accu | F215: 260 | H215: 311.00 | I215: 340.00 | J215: Part profit of Rs.51/- | K215: =H215-F215 -> 51.00 | L215: =K215/F215 -> 20% | M215: Successful | N215: 2017-11-17
A216: 89 | B216: 2017-06-15 | D216: KEI | E216: Accu | F216: 214.50 | H216: 262 | I216: 262.00 | J216: Profit of Rs.47.5/- | K216: =H216-F216 -> 47.50 | L216: 22.14% | M216: Successful | N216: 2017-08-30
A217: 90 | B217: 2017-07-17 | D217: MAYURUNIQ | E217: Accu | F217: 370.00 | H217: 447.5 | I217: 450.00 | J217: Target Achieved | K217: 77.50 | L217: 20.95% | M217: Successful | N217: 2017-10-27
A218: 91 | B218: 2017-07-27 | D218: RAMCOCEM | E218: Accu | F218: 657.50 | H218: 825 | I218: 820.00 | J218: Target Achieved | K218: 167.50 | L218: 25.48% | M218: Successful | N218: 2017-12-21
A219: 92 | B219: 2017-08-17 | D219: FINPIPE | E219: Accu | F219: 605.00 | H219: 750 | I219: 750.00 | J219: Profit of Rs.145/- | K219: 145.00 | L219: 23.97% | M219: Successful | N219: 2017-10-19
A220: 93 | B220: 2017-09-01 | D220: SHK | E220: Accu | F220: 255 | H220: 307.50 | I220: 320.00 | J220: Part profit of Rs.52.5/- | K220: 52.50 | L220: 21% | M220: Successful | N220: 2017-12-29
A221: 94 | B221: 2017-09-19 | D221: SKIPPER | E221: Accu | F221: 215.00 | H221: 258 | I221: 258.00 | J221: Target Achieved | K221: 43.00 | L221: 20.00% | M221: Successful | N221: 2017-11-01
A222: 95 | B222: 2017-09-20 | D222: CAMLINFINE | E222: Accu | F222: 75.00 | H222: 90 | I222: 90.00 | J222: Profit of Rs.15.00/- | K222: 15.00 | L222: 20.00% | M222: Successful | N222: 2017-10-11
A223: 96 | B223: 2017-10-03 | D223: GNA | E223: Accu | F223: 315.00 | H223: 392 | I223: 384.00 | J223: Profit of Rs.77/- | K223: 77.00 | L223: 24.44% | M223: Successful | N223: 2017-10-09
A224: 97 | B224: 2017-10-05 | D224: NOCIL | E224: Accu | F224: 145.00 | H224: 179 | I224: 180.00 | J224: Profit of Rs.34/- | K224: 34.00 | L224: 23.45% | M224: Successful | N224: 2017-10-17
A225: 98 | B225: 2017-10-06 | D225: CENTURYPLY | E225: Accu | F225: 256.00 | H225: 323 | I225: 320.00 | J225: Target Achieved | K225: 67.00 | L225: 26.17% | M225: Successful | N225: 2017-11-28
A226: 99 | B226: 2017-10-09 | D226: RECLTD | E226: Accu | F226: 152.5 | H226: 183.50 | I226: 210.00 | J226: Part Profit of Rs.31/- | K226: 31.00 | L226: 20% | M226: Successful | N226: 2017-11-03
A227: 100 | B227: 2017-10-09 | D227: EIHOTEL | E227: Accu | F227: 137.50 | H227: 184 | I227: 183.00 | J227: Profit of Rs.46.5/- | K227: 46.50 | L227: 33.82% | M227: Successful | N227: 2018-01-08
A228: 101 | B228: 2017-10-10 | D228: BOROSIL | E228: Accu | F228: 895.00 | H228: 1122.5 | I228: 1078.00 | J228: Profit of Rs.227.5/- | K228: 227.50 | L228: 25.42% | M228: Successful | N228: 2018-01-17
A229: 102 | B229: 2017-10-10 | D229: NRBBEARING | E229: Accu | F229: 125.50 | H229: 158 | I229: 155.00 | J229: Profit of Rs.32.5/- | K229: 32.50 | L229: 25.90% | M229: Successful | N229: 2017-11-28
A230: 103 | B230: 2017-10-12 | D230: CYIENT | E230: Accu | F230: 525.00 | H230: 629 | I230: 629.00 | J230: Target Achieved | K230: 104.00 | L230: 19.81% | M230: Successful | N230: 2018-01-19
A231: 104 | B231: 2017-11-07 | D231: HATSUN | E231: Accu | F231: 740.00 | H231: 892.5 | I231: 900.00 | J231: Profit of Rs.152.5/- | K231: 152.50 | L231: 20.61% | M231: Successful | N231: 2017-11-13
A232: 105 | B232: 2017-12-04 | D232: SANGHIIND | E232: Accu | F232: 118.50 | H232: 143.5 | I232: 145.00 | J232: Profit of Rs.25/- | K232: 25.00 | L232: 21.10% | M232: Successful | N232: 2017-12-28
A233: 106 | B233: 2017-12-05 | D233: ALLCARGO | E233: Accu | F233: 177.5 | H233: 215.00 | I233: 230.00 | J233: Part Profit of Rs.37.5/- | K233: 37.50 | L233: 21% | M233: Successful | N233: 2017-12-27
A234: 107 | B234: 2017-12-21 | D234: KAJARIACER | E234: Accu | F234: 710-720 | I234: 872.00 | J234: Open
A235: 108 | B235: 2017-12-29 | D235: GNA | E235: Accu | F235: 435.00 | H235: 542.5 | I235: 539.00 | J235: Target Achieved | K235: =H235-F235 -> 107.50 | L235: =K235/F235 -> 24.71% | M235: Successful | N235: 2018-04-16
A236: 109 | B236: 2017-12-29 | D236: ZENSARTECH | E236: Accu | F236: 885.00 | H236: 1090 | I236: 1084.00 | J236: Target Achieved | K236: 205.00 | L236: =K236/F236 -> 23.16% | M236: Successful | N236: 2018-04-23
A237: 110 | B237: 2018-02-07 | D237: GREAVESCOT | E237: Accu | F237: 130-132 | I237: 190.00 | J237: Open
A238: 111 | B238: 2018-02-27 | D238: MOLDTKPAC | E238: Accu | F238: 320-330 | I238: 398.00 | J238: Open
A239: 112 | B239: 2018-03-05 | D239: LICHSGFIN | E239: Accu | F239: 505-515 | I239: 672.00 | J239: Open
A240: 113 | B240: 2018-04-02 | D240: EVERESTIND | E240: Accu | F240: 492.5 | H240: 589.00 | I240: 613.00 | J240: Part Profit of Rs.37.5/- | K240: =H240-F240 -> 96.50 | L240: =K240/F240 -> 20% | M240: Successful | N240: 2018-08-21
A241: 114 | B241: 2018-04-04 | D241: GPPL | E241: Accu | F241: 140-143 | I241: 180.00 | J241: Open
A242: 115 | B242: 2018-04-19 | D242: MANPASAND | E242: Accu | F242: 430 | H242: 220.00 | I242: 537.00 | J242: Loss of Rs.210/- | K242: =H242-F242 -> -210.00 | L242: =K242/F242 -> -48.84% | M242: Unsuccessful | N242: 2018-06-01
A243: 116 | B243: 2018-04-30 | D243: HEIDELBERG | E243: Accu | F243: 154-158 | I243: 196.00 | J243: Open
A244: 117 | B244: 2018-05-17 | D244: PHILIPCARB | E244: Accu | F244: 230-240 | I244: 348.00 | J244: Open
A245: 118 | B245: 2018-06-07 | D245: KEC | E245: Accu | F245: 340-345 | I245: 439.00 | J245: Open
A246: 119 | B246: 2018-07-04 | D246: ASHOKLEY | E246: Accu | F246: 125-130 | I246: 170.00 | J246: Open
A247: 120 | B247: 2018-07-13 | D247: FCONSUMER | E247: Accu | F247: 46-47 | I247: 59.00 | J247: Open
A248: 121 | B248: 2018-07-25 | D248: ZEEMEDIA | E248: Accu | F248: 27-28 | I248: 44.00 | J248: Open
A249: 122 | B249: 2018-08-06 | D249: GABRIEL | E249: Accu | F249: 148-152 | I249: 182.00 | J249: Open
A250: 123 | B250: 2018-08-23 | D250: INDIANHUME | E250: Accu | F250: 280-290 | I250: 364.00 | J250: Open
A251: 124 | B251: 2018-08-29 | D251: GRINDWELL | E251: Accu | F251: 520-530 | I251: 635.00 | J251: Open
F255: Reinitiated $
A257: Disclaimer:
... 9 more rows

Sheet Sheet2 (hidden)
A1: SYMBOL | B1: SERIES | C1: OPEN | D1: HIGH | E1: LOW | F1: CLOSE | G1: LAST | H1: PREVCLOSE | I1: TOTTRDQTY | J1: TOTTRDVAL | K1: TIMESTAMP | L1: TOTALTRADES | M1: ISIN | N1: ISIN
A2: 20MICRONS | B2: EQ | C2: 41.85 | D2: 41.85 | E2: 38.7 | F2: 40 | G2: 40.05 | H2: 40.45 | I2: 40396 | J2: 1614866.35 | K2: 2018-10-08 | L2: 404 | M2: INE144J01027
A3: 21STCENMGM | B3: EQ | C3: 26.75 | D3: 27 | E3: 26.25 | F3: 26.25 | G3: 26.25 | H3: 26.75 | I3: 1832 | J3: 48093.25 | K3: 2018-10-08 | L3: 13 | M3: INE253B01015
A4: 3IINFOTECH | B4: EQ | C4: 3.3 | D4: 3.35 | E4: 3.25 | F4: 3.25 | G4: 3.25 | H4: 3.25 | I4: 1867041 | J4: 6124291.85 | K4: 2018-10-08 | L4: 952 | M4: INE748C01020
A5: 3MINDIA | B5: EQ | C5: 21752.3 | D5: 21969.1 | E5: 21040 | F5: 21792.5 | G5: 21800 | H5: 21917.2 | I5: 1655 | J5: 35732385.05 | K5: 2018-10-08 | L5: 976 | M5: INE470A01017
A6: 5PAISA | B6: EQ | C6: 200 | D6: 209.7 | E6: 196 | F6: 208.85 | G6: 209.7 | H6: 199.75 | I6: 25672 | J6: 5230457.3 | K6: 2018-10-08 | L6: 822 | M6: INE618L01018
A7: 63MOONS | B7: EQ | C7: 63.95 | D7: 64.55 | E7: 62.1 | F7: 62.8 | G7: 63.1 | H7: 63.4 | I7: 118719 | J7: 7521585.75 | K7: 2018-10-08 | L7: 1331 | M7: INE111B01023
A8: 8KMILES | B8: BE | C8: 148.2 | D8: 148.2 | E8: 148.2 | F8: 148.2 | G8: 148.2 | H8: 155.95 | I8: 95831 | J8: 14202154.2 | K8: 2018-10-08 | L8: 277 | M8: INE650K01021
A9: A2ZINFRA | B9: EQ | C9: 9.6 | D9: 9.65 | E9: 8.85 | F9: 9.2 | G9: 9.15 | H9: 9.2 | I9: 2011418 | J9: 18883978.3 | K9: 2018-10-08 | L9: 1998 | M9: INE619I01012
A10: AARTIDRUGS | B10: EQ | C10: 549 | D10: 573.95 | E10: 547.9 | F10: 553.95 | G10: 558 | H10: 546.4 | I10: 23088 | J10: 12958181.5 | K10: 2018-10-08 | L10: 1689 | M10: INE767A01016
A11: AARTIIND | B11: EQ | C11: 1191 | D11: 1265 | E11: 1180.05 | F11: 1245.1 | G11: 1251 | H11: 1199.55 | I11: 58019 | J11: 70597997.4 | K11: 2018-10-08 | L11: 8332 | M11: INE769A01020
A12: AARVEEDEN | B12: EQ | C12: 23.5 | D12: 24.45 | E12: 23.1 | F12: 23.8 | G12: 23.8 | H12: 24.2 | I12: 8546 | J12: 203786.05 | K12: 2018-10-08 | L12: 64 | M12: INE273D01019
A13: AAVAS | B13: EQ | C13: 750 | D13: 787 | E13: 710.05 | F13: 774.35 | G13: 771 | H13: 821 | I13: 3534258 | J13: 2662732840 | K13: 2018-10-08 | L13: 139954 | M13: INE216P01012
A14: ABAN | B14: EQ | C14: 77 | D14: 77.6 | E14: 72.2 | F14: 73.2 | G14: 73 | H14: 76.95 | I14: 505809 | J14: 37511422.9 | K14: 2018-10-08 | L14: 5338 | M14: INE421A01028
A15: ABB | B15: EQ | C15: 1376 | D15: 1390 | E15: 1333.65 | F15: 1378.6 | G15: 1384.9 | H15: 1374.75 | I15: 58594 | J15: 80242162.4 | K15: 2018-10-08 | L15: 5206 | M15: INE117A01022
A16: ABBOTINDIA | B16: EQ | C16: 7317 | D16: 7347.5 | E16: 7112.5 | F16: 7249.8 | G16: 7290 | H16: 7317.45 | I16: 8308 | J16: 59866508.95 | K16: 2018-10-08 | L16: 1395 | M16: INE358A01014
A17: ABCAPITAL | B17: EQ | C17: 107.8 | D17: 108.75 | E17: 102.15 | F17: 104.95 | G17: 104.55 | H17: 107.8 | I17: 2755673 | J17: 288806657.1 | K17: 2018-10-08 | L17: 29557 | M17: INE674K01013
A18: ABFRL | B18: EQ | C18: 179.95 | D18: 181 | E18: 174.1 | F18: 177.3 | G18: 177.15 | H18: 180.9 | I18: 590635 | J18: 104576020 | K18: 2018-10-08 | L18: 7240 | M18: INE647O01011
A19: ACC | B19: EQ | C19: 1470 | D19: 1484 | E19: 1436.6 | F19: 1474.65 | G19: 1470.1 | H19: 1478.6 | I19: 734973 | J19: 1074489315 | K19: 2018-10-08 | L19: 51788 | M19: INE012A01025
A20: ACCELYA | B20: EQ | C20: 1011 | D20: 1031.9 | E20: 1000 | F20: 1005.05 | G20: 1009.5 | H20: 1024.25 | I20: 4140 | J20: 4179251.85 | K20: 2018-10-08 | L20: 413 | M20: INE793A01012
A21: ACE | B21: EQ | C21: 87 | D21: 88 | E21: 82.25 | F21: 82.45 | G21: 82.25 | H21: 86.55 | I21: 167784 | J21: 14117567.95 | K21: 2018-10-08 | L21: 1735 | M21: INE731H01025
A22: ADANIENT | B22: EQ | C22: 129 | D22: 134.85 | E22: 121.35 | F22: 133.15 | G22: 133 | H22: 130.2 | I22: 10658358 | J22: 1372770785 | K22: 2018-10-08 | L22: 57031 | M22: INE423A01024
A23: ADANIGREEN | B23: EQ | C23: 32.75 | D23: 33.1 | E23: 32 | F23: 32 | G23: 32 | H23: 33.65 | I23: 1125121 | J23: 36286853.35 | K23: 2018-10-08 | L23: 2116 | M23: INE364U01010
A24: ADANIPORTS | B24: EQ | C24: 301.8 | D24: 305.6 | E24: 294.1 | F24: 304.35 | G24: 301.85 | H24: 301.8 | I24: 5915306 | J24: 1788809533 | K24: 2018-10-08 | L24: 93761 | M24: INE742F01042
A25: ADANIPOWER | B25: EQ | C25: 23.4 | D25: 24.05 | E25: 21 | F25: 23.5 | G25: 23.85 | H25: 23.45 | I25: 24072777 | J25: 549023810.7 | K25: 2018-10-08 | L25: 31006 | M25: INE814H01011
A26: ADANITRANS | B26: BE | C26: 145 | D26: 150.9 | E26: 141.5 | F26: 147.95 | G26: 148 | H26: 148.9 | I26: 59012 | J26: 8520453.25 | K26: 2018-10-08 | L26: 685 | M26: INE931S01010
A27: ADFFOODS | B27: EQ | C27: 204.55 | D27: 209.15 | E27: 192.3 | F27: 194.9 | G27: 194 | H27: 206.1 | I27: 52703 | J27: 10408622.65 | K27: 2018-10-08 | L27: 1818 | M27: INE982B01019
A28: ADHUNIK | B28: BE | C28: 2.95 | D28: 3.05 | E28: 2.85 | F28: 2.9 | G28: 3.05 | H28: 2.95 | I28: 25662 | J28: 75925.25 | K28: 2018-10-08 | L28: 67 | M28: INE400H01019
A29: ADHUNIKIND | B29: EQ | C29: 59.5 | D29: 59.5 | E29: 56.9 | F29: 57.45 | G29: 57.45 | H29: 58.8 | I29: 1002 | J29: 57494.3 | K29: 2018-10-08 | L29: 41 | M29: INE452L01012
A30: ADLABS | B30: EQ | C30: 16.75 | D30: 16.95 | E30: 16.25 | F30: 16.6 | G30: 16.8 | H30: 16.2 | I30: 100954 | J30: 1670364.35 | K30: 2018-10-08 | L30: 662 | M30: INE172N01012
A31: ADORWELD | B31: EQ | C31: 292.85 | D31: 300 | E31: 290 | F31: 292.65 | G31: 291.2 | H31: 295.8 | I31: 8171 | J31: 2392833.4 | K31: 2018-10-08 | L31: 223 | M31: INE045A01017
A32: ADROITINFO | B32: BE | C32: 23 | D32: 23 | E32: 23 | F32: 23 | G32: 23 | H32: 24 | I32: 1 | J32: 23 | K32: 2018-10-08 | L32: 1 | M32: INE737B01033
A33: ADSL | B33: EQ | C33: 12.1 | D33: 13 | E33: 12 | F33: 12.5 | G33: 12.5 | H33: 12.65 | I33: 4304 | J33: 53911.3 | K33: 2018-10-08 | L33: 42 | M33: INE102I01027
A34: ADVANIHOTR | B34: EQ | C34: 48.5 | D34: 49 | E34: 47 | F34: 48 | G34: 48.5 | H34: 48.5 | I34: 9280 | J34: 443906.5 | K34: 2018-10-08 | L34: 59 | M34: INE199C01026
A35: ADVENZYMES | B35: EQ | C35: 175.8 | D35: 176.45 | E35: 167.1 | F35: 170.9 | G35: 168.05 | H35: 175.2 | I35: 141013 | J35: 24300105.85 | K35: 2018-10-08 | L35: 5753 | M35: INE837H01020
A36: AEGISCHEM | B36: EQ | C36: 185 | D36: 185.85 | E36: 178.5 | F36: 181.8 | G36: 180.65 | H36: 185.05 | I36: 91976 | J36: 16710720 | K36: 2018-10-08 | L36: 5702 | M36: INE208C01025
A37: AFL | B37: EQ | C37: 51.25 | D37: 54.9 | E37: 51.25 | F37: 52.15 | G37: 52.45 | H37: 53.3 | I37: 25830 | J37: 1370844.7 | K37: 2018-10-08 | L37: 212 | M37: INE020G01017
A38: AGARIND | B38: EQ | C38: 204.9 | D38: 204.9 | E38: 183.95 | F38: 193 | G38: 192.9 | H38: 206.35 | I38: 1903 | J38: 364491.3 | K38: 2018-10-08 | L38: 86 | M38: INE204E01012
A39: AGCNET | B39: EQ | C39: 69 | D39: 69 | E39: 65.15 | F39: 67.2 | G39: 66.95 | H39: 68.7 | I39: 2736 | J39: 182949.55 | K39: 2018-10-08 | L39: 49 | M39: INE676A01019
A40: AGLSL | B40: EQ | C40: 68.5 | D40: 68.95 | E40: 65.5 | F40: 66.6 | G40: 66.5 | H40: 70.65 | I40: 2346 | J40: 157219.3 | K40: 2018-10-08 | L40: 28 | M40: INE517U01013
A41: AGRITECH | B41: EQ | C41: 60.55 | D41: 62 | E41: 56.5 | F41: 58.25 | G41: 58.4 | H41: 63.05 | I41: 11073 | J41: 656812.15 | K41: 2018-10-08 | L41: 299 | M41: INE449G01018
A42: AHLEAST | B42: EQ | C42: 259 | D42: 259 | E42: 235 | F42: 237 | G42: 237 | H42: 244.2 | I42: 1569 | J42: 370631.9 | K42: 2018-10-08 | L42: 46 | M42: INE926K01017
A43: AHLUCONT | B43: EQ | C43: 269.6 | D43: 285 | E43: 268.5 | F43: 281.1 | G43: 280 | H43: 272.15 | I43: 1896 | J43: 525041.5 | K43: 2018-10-08 | L43: 165 | M43: INE758C01029
A44: AHLWEST | B44: EQ | C44: 270.05 | D44: 280 | E44: 257.05 | F44: 279.8 | G44: 280 | H44: 283.05 | I44: 487 | J44: 130128.8 | K44: 2018-10-08 | L44: 34 | M44: INE915K01010
A45: AIAENG | B45: EQ | C45: 1697.95 | D45: 1697.95 | E45: 1564.25 | F45: 1584.65 | G45: 1576 | H45: 1697.95 | I45: 80335 | J45: 129935447.4 | K45: 2018-10-08 | L45: 11217 | M45: INE212H01026
A46: AICHAMP | B46: BE | C46: 12.45 | D46: 12.45 | E46: 12.45 | F46: 12.45 | G46: 12.45 | H46: 13.1 | I46: 2872 | J46: 35756.4 | K46: 2018-10-08 | L46: 10 | M46: INE768E01024
A47: AIFL | B47: EQ | C47: 189.4 | D47: 189.4 | E47: 189.4 | F47: 189.4 | G47: 189.4 | H47: 199.35 | I47: 267 | J47: 50569.8 | K47: 2018-10-08 | L47: 17 | M47: INE428O01016
A48: AIONJSW | B48: BE | C48: 43.35 | D48: 43.35 | E48: 43.35 | F48: 43.35 | G48: 43.35 | H48: 41.3 | I48: 15896 | J48: 689091.6 | K48: 2018-10-08 | L48: 133 | M48: INE743C01021
A49: AJANTPHARM | B49: EQ | C49: 1020 | D49: 1048 | E49: 980 | F49: 1001 | G49: 992 | H49: 1019.5 | I49: 316073 | J49: 319481375.8 | K49: 2018-10-08 | L49: 11717 | M49: INE031B01049
A50: AJMERA | B50: EQ | C50: 156.05 | D50: 156.05 | E50: 145.45 | F50: 146.4 | G50: 146.2 | H50: 156.35 | I50: 40727 | J50: 6116237.5 | K50: 2018-10-08 | L50: 1388 | M50: INE298G01027
A51: AKSHARCHEM | B51: EQ | C51: 451.05 | D51: 484.9 | E51: 424 | F51: 460.25 | G51: 461.8 | H51: 453.45 | I51: 13154 | J51: 6112623.6 | K51: 2018-10-08 | L51: 3154 | M51: INE542B01011
A52: AKSHOPTFBR | B52: EQ | C52: 23.5 | D52: 24.2 | E52: 22.6 | F52: 23.1 | G52: 23.15 | H52: 23.35 | I52: 2062455 | J52: 47937621.45 | K52: 2018-10-08 | L52: 3736 | M52: INE523B01011
A53: AKZOINDIA | B53: EQ | C53: 1567.2 | D53: 1610 | E53: 1531.2 | F53: 1593.4 | G53: 1600 | H53: 1561.85 | I53: 19762 | J53: 30672234.85 | K53: 2018-10-08 | L53: 2290 | M53: INE133A01011
A54: ALANKIT | B54: EQ | C54: 17.9 | D54: 19.1 | E54: 17.9 | F54: 18.55 | G54: 18.6 | H54: 18.6 | I54: 798793 | J54: 14928662.5 | K54: 2018-10-08 | L54: 911 | M54: INE914E01040
A55: ALBERTDAVD | B55: EQ | C55: 589.4 | D55: 589.4 | E55: 541.1 | F55: 546.95 | G55: 549 | H55: 568.8 | I55: 10726 | J55: 6021485.85 | K55: 2018-10-08 | L55: 762 | M55: INE155C01010
A56: ALBK | B56: EQ | C56: 35.3 | D56: 35.5 | E56: 33.55 | F56: 34.05 | G56: 33.8 | H56: 35.35 | I56: 4417889 | J56: 152472133.1 | K56: 2018-10-08 | L56: 9882 | M56: INE428A01015
A57: ALCHEM | B57: BE | C57: 4.7 | D57: 4.75 | E57: 4.6 | F57: 4.75 | G57: 4.75 | H57: 4.55 | I57: 3055 | J57: 14377.85 | K57: 2018-10-08 | L57: 15 | M57: INE964B01033
A58: ALEMBICLTD | B58: EQ | C58: 41.8 | D58: 41.9 | E58: 40.05 | F58: 40.85 | G58: 40.75 | H58: 41.9 | I58: 366159 | J58: 14937412.5 | K58: 2018-10-08 | L58: 2429 | M58: INE426A01027
A59: ALICON | B59: EQ | C59: 614.5 | D59: 620 | E59: 585.7 | F59: 595.65 | G59: 594 | H59: 614.1 | I59: 7200 | J59: 4349812 | K59: 2018-10-08 | L59: 269 | M59: INE062D01024
A60: ALKALI | B60: EQ | C60: 54.05 | D60: 55 | E60: 53 | F60: 53.9 | G60: 54.2 | H60: 55.25 | I60: 6004 | J60: 324077.5 | K60: 2018-10-08 | L60: 101 | M60: INE773I01017
A61: ALKEM | B61: EQ | C61: 2038.9 | D61: 2044.95 | E61: 1959.1 | F61: 1968.6 | G61: 1977.5 | H61: 2038.9 | I61: 96070 | J61: 192182834.7 | K61: 2018-10-08 | L61: 5769 | M61: INE540L01014
A62: ALKYLAMINE | B62: EQ | C62: 545.2 | D62: 561.95 | E62: 545 | F62: 547.7 | G62: 552 | H62: 560 | I62: 7600 | J62: 4147303.55 | K62: 2018-10-08 | L62: 243 | M62: INE150B01021
A63: ALLCARGO | B63: EQ | C63: 95.4 | D63: 98.7 | E63: 94.05 | F63: 96.25 | G63: 96.2 | H63: 96.35 | I63: 424342 | J63: 41112189.45 | K63: 2018-10-08 | L63: 2781 | M63: INE418H01029
A64: ALLSEC | B64: EQ | C64: 230.6 | D64: 240.55 | E64: 208.3 | F64: 214.3 | G64: 215.4 | H64: 234.05 | I64: 28951 | J64: 6450027.9 | K64: 2018-10-08 | L64: 2304 | M64: INE835G01018
A65: ALMONDZ | B65: BE | C65: 25.7 | D65: 26.9 | E65: 25.65 | F65: 26.9 | G65: 26.9 | H65: 26.95 | I65: 2090 | J65: 54569.7 | K65: 2018-10-08 | L65: 16 | M65: INE326B01027
A66: ALOKTEXT | B66: BE | C66: 3.9 | D66: 3.9 | E66: 3.6 | F66: 3.8 | G66: 3.8 | H66: 3.75 | I66: 2212655 | J66: 8399811.15 | K66: 2018-10-08 | L66: 1408 | M66: INE270A01011
A67: ALPA | B67: EQ | C67: 27.4 | D67: 27.4 | E67: 24.65 | F67: 25 | G67: 24.9 | H67: 25 | I67: 10996 | J67: 279721.65 | K67: 2018-10-08 | L67: 122 | M67: INE385I01010
A68: ALPHAGEO | B68: EQ | C68: 523 | D68: 529.95 | E68: 438.55 | F68: 466.85 | G68: 470 | H68: 521.85 | I68: 31881 | J68: 15278870.95 | K68: 2018-10-08 | L68: 3381 | M68: INE137C01018
A69: ALPSINDUS | B69: BE | C69: 2.65 | D69: 2.8 | E69: 2.65 | F69: 2.8 | G69: 2.8 | H69: 2.75 | I69: 1163 | J69: 3233.75 | K69: 2018-10-08 | L69: 10 | M69: INE093B01015
A70: AMARAJABAT | B70: EQ | C70: 715.1 | D70: 738.5 | E70: 704.05 | F70: 729.45 | G70: 726.1 | H70: 719.35 | I70: 845880 | J70: 611958839.9 | K70: 2018-10-08 | L70: 19843 | M70: INE885A01032
A71: AMBER | B71: EQ | C71: 897.65 | D71: 908.35 | E71: 877.9 | F71: 885.95 | G71: 886 | H71: 897.65 | I71: 5795 | J71: 5131735.5 | K71: 2018-10-08 | L71: 826 | M71: INE371P01015
A72: AMBIKCO | B72: EQ | C72: 1129 | D72: 1136.75 | E72: 1085 | F72: 1094.75 | G72: 1100 | H72: 1122.5 | I72: 7728 | J72: 8529845.65 | K72: 2018-10-08 | L72: 592 | M72: INE540G01014
A73: AMBUJACEM | B73: EQ | C73: 206.45 | D73: 210.65 | E73: 202.4 | F73: 208.1 | G73: 207.55 | H73: 208.45 | I73: 2483769 | J73: 511005568 | K73: 2018-10-08 | L73: 43204 | M73: INE079A01024
A74: AMDIND | B74: EQ | C74: 19 | D74: 19.5 | E74: 18.5 | F74: 19.35 | G74: 18.65 | H74: 19 | I74: 1470 | J74: 27616.75 | K74: 2018-10-08 | L74: 20 | M74: INE005I01014
A75: AMJLAND | B75: EQ | C75: 19 | D75: 21.4 | E75: 18.6 | F75: 18.95 | G75: 18.95 | H75: 18.7 | I75: 26862 | J75: 531223.55 | K75: 2018-10-08 | L75: 170 | M75: INE606A01024
A76: AMRUTANJAN | B76: EQ | C76: 250.05 | D76: 259.65 | E76: 247.5 | F76: 249.55 | G76: 250 | H76: 251.95 | I76: 20046 | J76: 5021328.5 | K76: 2018-10-08 | L76: 610 | M76: INE098F01031
A77: ANANTRAJ | B77: EQ | C77: 36.45 | D77: 37.55 | E77: 32.8 | F77: 34.1 | G77: 34 | H77: 36.5 | I77: 999486 | J77: 35048556.8 | K77: 2018-10-08 | L77: 5059 | M77: INE242C01024
A78: ANDHRABANK | B78: EQ | C78: 26.9 | D78: 27.1 | E78: 26.15 | F78: 26.6 | G78: 26.5 | H78: 26.85 | I78: 1554819 | J78: 41585599.85 | K78: 2018-10-08 | L78: 3833 | M78: INE434A01013
A79: ANDHRACEMT | B79: EQ | C79: 5.95 | D79: 6.1 | E79: 5.9 | F79: 5.95 | G79: 6 | H79: 5.95 | I79: 70408 | J79: 420281.85 | K79: 2018-10-08 | L79: 160 | M79: INE666E01012
A80: ANDHRSUGAR | B80: EQ | C80: 326 | D80: 332.65 | E80: 316 | F80: 319.8 | G80: 320 | H80: 330.05 | I80: 42469 | J80: 13741817.2 | K80: 2018-10-08 | L80: 1705 | M80: INE715B01013
A81: ANGIND | B81: BE | C81: 2.15 | D81: 2.15 | E81: 2.15 | F81: 2.15 | G81: 2.15 | H81: 2.25 | I81: 4194 | J81: 9017.1 | K81: 2018-10-08 | L81: 12 | M81: INE017D01010
A82: ANIKINDS | B82: EQ | C82: 25 | D82: 26.4 | E82: 23.4 | F82: 24 | G82: 24 | H82: 25.45 | I82: 1706 | J82: 41654.45 | K82: 2018-10-08 | L82: 32 | M82: INE087B01017
A83: ANKITMETAL | B83: BE | C83: 0.5 | D83: 0.5 | E83: 0.5 | F83: 0.5 | G83: 0.5 | H83: 0.5 | I83: 1201 | J83: 600.5 | K83: 2018-10-08 | L83: 5 | M83: INE106I01010
A84: ANSALAPI | B84: EQ | C84: 11 | D84: 11.1 | E84: 10.1 | F84: 10.3 | G84: 10.25 | H84: 11.1 | I84: 107022 | J84: 1127125.05 | K84: 2018-10-08 | L84: 296 | M84: INE436A01026
A85: ANSALHSG | B85: EQ | C85: 10.5 | D85: 10.65 | E85: 9.5 | F85: 9.95 | G85: 10.05 | H85: 10.75 | I85: 47871 | J85: 485169.45 | K85: 2018-10-08 | L85: 236 | M85: INE880B01015
A86: ANTGRAPHIC | B86: BE | C86: 0.45 | D86: 0.5 | E86: 0.45 | F86: 0.5 | G86: 0.5 | H86: 0.5 | I86: 49512 | J86: 24216.2 | K86: 2018-10-08 | L86: 28 | M86: INE414B01021
A87: APARINDS | B87: EQ | C87: 562.3 | D87: 578.05 | E87: 552.75 | F87: 568.45 | G87: 578.05 | H87: 562.25 | I87: 6949 | J87: 3914736.4 | K87: 2018-10-08 | L87: 371 | M87: INE372A01015
A88: APCL | B88: EQ | C88: 124 | D88: 124 | E88: 105 | F88: 109.05 | G88: 107.05 | H88: 116.1 | I88: 6307 | J88: 687382.4 | K88: 2018-10-08 | L88: 203 | M88: INE071F01012
A89: APCOTEXIND | B89: EQ | C89: 523.05 | D89: 543.8 | E89: 511 | F89: 518.7 | G89: 522 | H89: 533.6 | I89: 5295 | J89: 2764086.8 | K89: 2018-10-08 | L89: 385 | M89: INE116A01024
A90: APEX | B90: EQ | C90: 357 | D90: 374.8 | E90: 345.55 | F90: 364.55 | G90: 364 | H90: 357.35 | I90: 93844 | J90: 34137658.2 | K90: 2018-10-08 | L90: 4006 | M90: INE346W01013
A91: APLAPOLLO | B91: EQ | C91: 1260 | D91: 1280 | E91: 1207.5 | F91: 1222.15 | G91: 1225 | H91: 1271.55 | I91: 85649 | J91: 106464429 | K91: 2018-10-08 | L91: 4272 | M91: INE702C01019
A92: APLLTD | B92: EQ | C92: 594 | D92: 598.9 | E92: 533.7 | F92: 554.35 | G92: 566.75 | H92: 594.85 | I92: 159275 | J92: 91781819.35 | K92: 2018-10-08 | L92: 8650 | M92: INE901L01018
A93: APOLLO | B93: EQ | C93: 114 | D93: 116 | E93: 105 | F93: 109 | G93: 110 | H93: 115.2 | I93: 25288 | J93: 2798379.35 | K93: 2018-10-08 | L93: 1139 | M93: INE713T01010
A94: APOLLOHOSP | B94: EQ | C94: 1048.4 | D94: 1092.3 | E94: 1037.9 | F94: 1081.9 | G94: 1074.8 | H94: 1057.2 | I94: 371858 | J94: 396510272.4 | K94: 2018-10-08 | L94: 15542 | M94: INE437A01024
A95: APOLLOTYRE | B95: EQ | C95: 195.9 | D95: 207.45 | E95: 193.9 | F95: 205.25 | G95: 205.15 | H95: 198 | I95: 3261159 | J95: 659580199.4 | K95: 2018-10-08 | L95: 47877 | M95: INE438A01022
A96: APOLSINHOT | B96: EQ | C96: 1054 | D96: 1288 | E96: 1011.25 | F96: 1150 | G96: 1150 | H96: 1104.65 | I96: 1779 | J96: 1992189.75 | K96: 2018-10-08 | L96: 167 | M96: INE451F01016
A97: APTECHT | B97: EQ | C97: 142.6 | D97: 142.6 | E97: 120 | F97: 126.15 | G97: 125.8 | H97: 142.6 | I97: 226769 | J97: 29435118.9 | K97: 2018-10-08 | L97: 5156 | M97: INE266F01018
A98: ARCHIDPLY | B98: EQ | C98: 41.5 | D98: 41.5 | E98: 37 | F98: 39.35 | G98: 39.4 | H98: 39.8 | I98: 14017 | J98: 563590.1 | K98: 2018-10-08 | L98: 189 | M98: INE877I01016
A99: ARCHIES | B99: EQ | C99: 25.15 | D99: 25.75 | E99: 24 | F99: 24.9 | G99: 25.25 | H99: 25.1 | I99: 65430 | J99: 1638247.7 | K99: 2018-10-08 | L99: 342 | M99: INE731A01020
A100: ARCOTECH | B100: BE | C100: 8.15 | D100: 8.15 | E100: 8.15 | F100: 8.15 | G100: 8.15 | H100: 8.55 | I100: 44629 | J100: 363726.35 | K100: 2018-10-08 | L100: 83 | M100: INE574I01035
A101: ARIES | B101: EQ | C101: 89.25 | D101: 93.75 | E101: 88.6 | F101: 91.85 | G101: 93 | H101: 91.2 | I101: 21323 | J101: 1946338.05 | K101: 2018-10-08 | L101: 502 | M101: INE298I01015
A102: ARIHANT | B102: EQ | C102: 28.3 | D102: 34.25 | E102: 28.05 | F102: 31.3 | G102: 31.3 | H102: 29.9 | I102: 451 | J102: 14484.25 | K102: 2018-10-08 | L102: 24 | M102: INE413D01011
A103: ARIHANTSUP | B103: EQ | C103: 52.2 | D103: 54 | E103: 47.05 | F103: 50.65 | G103: 51 | H103: 52.2 | I103: 39980 | J103: 2054770 | K103: 2018-10-08 | L103: 587 | M103: INE643K01018
A104: ARMANFIN | B104: EQ | C104: 354.15 | D104: 354.15 | E104: 290 | F104: 296.3 | G104: 297 | H104: 320.45 | I104: 4694 | J104: 1444829.8 | K104: 2018-10-08 | L104: 133 | M104: INE109C01017
A105: AROGRANITE | B105: EQ | C105: 51.05 | D105: 53.7 | E105: 50.05 | F105: 50.3 | G105: 50.05 | H105: 51.95 | I105: 14221 | J105: 726648.45 | K105: 2018-10-08 | L105: 168 | M105: INE210C01013
A106: ARROWGREEN | B106: EQ | C106: 103.7 | D106: 104.1 | E106: 101 | F106: 104.1 | G106: 104.1 | H106: 99.15 | I106: 8362 | J106: 864882.55 | K106: 2018-10-08 | L106: 143 | M106: INE570D01018
A107: ARROWTEX | B107: EQ | C107: 25.7 | D107: 27 | E107: 25.7 | F107: 26.4 | G107: 26.4 | H107: 26.2 | I107: 2501 | J107: 65381.55 | K107: 2018-10-08 | L107: 34 | M107: INE933J01015
A108: ARSHIYA | B108: EQ | C108: 33 | D108: 38.4 | E108: 28.95 | F108: 30.8 | G108: 30 | H108: 33.35 | I108: 279634 | J108: 9079098.65 | K108: 2018-10-08 | L108: 893 | M108: INE968D01022
A109: ARSSINFRA | B109: EQ | C109: 23.3 | D109: 23.3 | E109: 19.6 | F109: 21.85 | G109: 21.2 | H109: 21.3 | I109: 7771 | J109: 169477.8 | K109: 2018-10-08 | L109: 57 | M109: INE267I01010
A110: ARVIND | B110: EQ | C110: 311.2 | D110: 313.8 | E110: 294.75 | F110: 300.75 | G110: 300.5 | H110: 313.8 | I110: 2259305 | J110: 686639255.6 | K110: 2018-10-08 | L110: 41419 | M110: INE034A01011
A111: ARVSMART | B111: EQ | C111: 105 | D111: 118 | E111: 102.6 | F111: 108.1 | G111: 106 | H111: 109.2 | I111: 45137 | J111: 4889817.45 | K111: 2018-10-08 | L111: 1332 | M111: INE034S01021
A112: ASAHIINDIA | B112: EQ | C112: 295.95 | D112: 305 | E112: 290 | F112: 300.05 | G112: 305 | H112: 295.2 | I112: 12671 | J112: 3761609.5 | K112: 2018-10-08 | L112: 540 | M112: INE439A01020
A113: ASAHISONG | B113: EQ | C113: 238.25 | D113: 239 | E113: 231.35 | F113: 233.6 | G113: 232 | H113: 233.65 | I113: 3057 | J113: 719309.55 | K113: 2018-10-08 | L113: 174 | M113: INE228I01012
A114: ASAL | B114: EQ | C114: 42.15 | D114: 45 | E114: 41.4 | F114: 42.9 | G114: 43 | H114: 43.85 | I114: 8807 | J114: 381085.95 | K114: 2018-10-08 | L114: 215 | M114: INE900C01027
A115: ASHAPURMIN | B115: EQ | C115: 26.75 | D115: 28.7 | E115: 26.5 | F115: 28.45 | G115: 28.3 | H115: 26.75 | I115: 107466 | J115: 2958494.85 | K115: 2018-10-08 | L115: 575 | M115: INE348A01023
A116: ASHIANA | B116: EQ | C116: 120.05 | D116: 123.3 | E116: 115.5 | F116: 118.35 | G116: 118.8 | H116: 120.55 | I116: 30536 | J116: 3613657.2 | K116: 2018-10-08 | L116: 881 | M116: INE365D01021
A117: ASHIMASYN | B117: EQ | C117: 14.5 | D117: 15 | E117: 13.5 | F117: 14.2 | G117: 14.8 | H117: 14.5 | I117: 328773 | J117: 4638614.15 | K117: 2018-10-08 | L117: 1045 | M117: INE440A01010
A118: ASHOKA | B118: EQ | C118: 104 | D118: 106 | E118: 96.6 | F118: 97.55 | G118: 97.8 | H118: 103.5 | I118: 360905 | J118: 35703302.8 | K118: 2018-10-08 | L118: 3432 | M118: INE442H01029
A119: ASHOKLEY | B119: EQ | C119: 107.75 | D119: 111.9 | E119: 104.1 | F119: 109.15 | G119: 109.5 | H119: 107.75 | I119: 28067992 | J119: 3041320319 | K119: 2018-10-08 | L119: 139232 | M119: INE208A01029
A120: ASIANHOTNR | B120: EQ | C120: 175 | D120: 183 | E120: 170 | F120: 179.4 | G120: 179.45 | H120: 176.7 | I120: 1312 | J120: 231324.65 | K120: 2018-10-08 | L120: 18 | M120: INE363A01022
A121: ASIANPAINT | B121: EQ | C121: 1210 | D121: 1254 | E121: 1201.1 | F121: 1247.8 | G121: 1243.55 | H121: 1209.5 | I121: 1050759 | J121: 1296013644 | K121: 2018-10-08 | L121: 57672 | M121: INE021A01026
A122: ASIANTILES | B122: EQ | C122: 170.45 | D122: 175 | E122: 161.65 | F122: 164.1 | G122: 163.6 | H122: 172.15 | I122: 57143 | J122: 9650984.75 | K122: 2018-10-08 | L122: 2113 | M122: INE022I01019
A123: ASPINWALL | B123: EQ | C123: 180 | D123: 180 | E123: 166.3 | F123: 169.6 | G123: 166.3 | H123: 182.9 | I123: 3088 | J123: 536283.95 | K123: 2018-10-08 | L123: 93 | M123: INE991I01015
A124: ASSAMCO | B124: BE | C124: 2.7 | D124: 2.7 | E124: 2.65 | F124: 2.65 | G124: 2.65 | H124: 2.75 | I124: 28901 | J124: 76617.65 | K124: 2018-10-08 | L124: 53 | M124: INE442A01024
A125: ASTEC | B125: EQ | C125: 539.95 | D125: 541.75 | E125: 515.25 | F125: 528.05 | G125: 534 | H125: 535.3 | I125: 26252 | J125: 13764349.85 | K125: 2018-10-08 | L125: 1084 | M125: INE563J01010
A126: ASTERDM | B126: EQ | C126: 160.1 | D126: 164.8 | E126: 155.05 | F126: 158.15 | G126: 158 | H126: 160.6 | I126: 131555 | J126: 20830724.55 | K126: 2018-10-08 | L126: 1754 | M126: INE914M01019
A127: ASTRAL | B127: EQ | C127: 828.2 | D127: 837.4 | E127: 816 | F127: 828.3 | G127: 830 | H127: 842.2 | I127: 60242 | J127: 49916634.75 | K127: 2018-10-08 | L127: 7309 | M127: INE006I01046
A128: ASTRAMICRO | B128: EQ | C128: 85 | D128: 85.5 | E128: 75 | F128: 78.4 | G128: 78.55 | H128: 86.1 | I128: 299461 | J128: 23965737.05 | K128: 2018-10-08 | L128: 3649 | M128: INE386C01029
A129: ASTRAZEN | B129: EQ | C129: 1515 | D129: 1608.9 | E129: 1505 | F129: 1558.2 | G129: 1560 | H129: 1538.3 | I129: 23570 | J129: 36787801.25 | K129: 2018-10-08 | L129: 2461 | M129: INE203A01020
A130: ASTRON | B130: EQ | C130: 117 | D130: 118.9 | E130: 112.05 | F130: 113.15 | G130: 113 | H130: 116.65 | I130: 58535 | J130: 6766327.05 | K130: 2018-10-08 | L130: 1160 | M130: INE646X01014
A131: ATFL | B131: EQ | C131: 520.55 | D131: 529.65 | E131: 481.9 | F131: 488.55 | G131: 482.05 | H131: 525.6 | I131: 12616 | J131: 6394951.35 | K131: 2018-10-08 | L131: 861 | M131: INE209A01019
A132: ATLANTA | B132: EQ | C132: 22 | D132: 23.75 | E132: 21.85 | F132: 21.85 | G132: 21.85 | H132: 22.95 | I132: 39848 | J132: 884278.35 | K132: 2018-10-08 | L132: 424 | M132: INE285H01022
A133: ATUL | B133: EQ | C133: 2920 | D133: 3020 | E133: 2915 | F133: 3006.8 | G133: 3010 | H133: 3033.35 | I133: 21457 | J133: 64128832.8 | K133: 2018-10-08 | L133: 2343 | M133: INE100A01010
A134: ATULAUTO | B134: EQ | C134: 290.2 | D134: 297.55 | E134: 270 | F134: 273.25 | G134: 271.45 | H134: 289.65 | I134: 15914 | J134: 4468990.5 | K134: 2018-10-08 | L134: 1004 | M134: INE951D01028
A135: AUBANK | B135: EQ | C135: 543.35 | D135: 579.2 | E135: 526.2 | F135: 564.15 | G135: 562 | H135: 550.7 | I135: 502455 | J135: 276649994.6 | K135: 2018-10-08 | L135: 36167 | M135: INE949L01017
A136: AURIONPRO | B136: EQ | C136: 140.15 | D136: 151.75 | E136: 140.15 | F136: 143.85 | G136: 143 | H136: 139.8 | I136: 9710 | J136: 1416766.05 | K136: 2018-10-08 | L136: 419 | M136: INE132H01018
A137: AUROPHARMA | B137: EQ | C137: 739.75 | D137: 745.9 | E137: 719.05 | F137: 736.4 | G137: 735 | H137: 744.25 | I137: 2565348 | J137: 1884357899 | K137: 2018-10-08 | L137: 67495 | M137: INE406A01037
A138: AUSOMENT | B138: EQ | C138: 53.5 | D138: 56.5 | E138: 53 | F138: 55 | G138: 55 | H138: 53.5 | I138: 3455 | J138: 192084.8 | K138: 2018-10-08 | L138: 181 | M138: INE218C01016
A139: AUTOAXLES | B139: EQ | C139: 1185 | D139: 1216.25 | E139: 1157 | F139: 1185.15 | G139: 1199 | H139: 1186.5 | I139: 16496 | J139: 19685442.55 | K139: 2018-10-08 | L139: 1388 | M139: INE449A01011
A140: AUTOIND | B140: EQ | C140: 58 | D140: 61.25 | E140: 57.1 | F140: 60.2 | G140: 60.15 | H140: 59 | I140: 13997 | J140: 838655.15 | K140: 2018-10-08 | L140: 402 | M140: INE718H01014
A141: AUTOLITIND | B141: EQ | C141: 42.7 | D141: 42.7 | E141: 40.15 | F141: 40.8 | G141: 40.15 | H141: 40.7 | I141: 10974 | J141: 450257.8 | K141: 2018-10-08 | L141: 118 | M141: INE448A01013
A142: AVADHSUGAR | B142: EQ | C142: 395.5 | D142: 406.9 | E142: 380.2 | F142: 388.95 | G142: 388.5 | H142: 393.65 | I142: 78354 | J142: 30849847.25 | K142: 2018-10-08 | L142: 3416 | M142: INE349W01017
A143: AVANTIFEED | B143: EQ | C143: 370 | D143: 384.7 | E143: 365 | F143: 375.75 | G143: 378.7 | H143: 365 | I143: 546260 | J143: 205491123.1 | K143: 2018-10-08 | L143: 17772 | M143: INE871C01038
A144: AVTNPL | B144: EQ | C144: 26.25 | D144: 26.75 | E144: 26 | F144: 26.2 | G144: 26 | H144: 26.1 | I144: 57954 | J144: 1516063.2 | K144: 2018-10-08 | L144: 259 | M144: INE488D01021
A145: AXISBANK | B145: EQ | C145: 570 | D145: 574.5 | E145: 546.1 | F145: 556.55 | G145: 556.25 | H145: 568.5 | I145: 12918017 | J145: 7242602081 | K145: 2018-10-08 | L145: 169358 | M145: INE238A01034
A146: AXISCADES | B146: EQ | C146: 70 | D146: 70.8 | E146: 61.95 | F146: 69.1 | G146: 68.5 | H146: 70.7 | I146: 60222 | J146: 4113917.7 | K146: 2018-10-08 | L146: 1546 | M146: INE555B01013
A147: AXISGOLD | B147: EQ | C147: 2797 | D147: 2797 | E147: 2737 | F147: 2749.1 | G147: 2755 | H147: 2750.85 | I147: 184 | J147: 505197.85 | K147: 2018-10-08 | L147: 43 | M147: INF846K01347
A148: AXISNIFTY | B148: EQ | C148: 1054.47 | D148: 1057.62 | E148: 1034.96 | F148: 1051.13 | G148: 1051.13 | H148: 1056.14 | I148: 67 | J148: 70678.16 | K148: 2018-10-08 | L148: 7 | M148: INF846K01ZL0
A149: AYMSYNTEX | B149: EQ | C149: 32.05 | D149: 32.05 | E149: 27.2 | F149: 29.9 | G149: 30.1 | H149: 31.5 | I149: 66691 | J149: 2021144.1 | K149: 2018-10-08 | L149: 406 | M149: INE193B01039
A150: BAFNAPHARM | B150: EQ | C150: 10.3 | D150: 11.15 | E150: 10.3 | F150: 10.85 | G150: 10.95 | H150: 11.2 | I150: 9336 | J150: 99539.55 | K150: 2018-10-08 | L150: 99 | M150: INE878I01014
A151: BAGFILMS | B151: BE | C151: 4.4 | D151: 4.4 | E151: 4.2 | F151: 4.2 | G151: 4.2 | H151: 4.4 | I151: 56018 | J151: 237149.4 | K151: 2018-10-08 | L151: 210 | M151: INE116D01028
A152: BAJAJ-AUTO | B152: EQ | C152: 2526.05 | D152: 2604.1 | E152: 2501.25 | F152: 2584.1 | G152: 2569.95 | H152: 2543.05 | I152: 667297 | J152: 1700755010 | K152: 2018-10-08 | L152: 49787 | M152: INE917I01010
A153: BAJAJCORP | B153: EQ | C153: 394.4 | D153: 394.4 | E153: 379.05 | F153: 388.2 | G153: 383.55 | H153: 396.8 | I153: 36587 | J153: 14224025.7 | K153: 2018-10-08 | L153: 1336 | M153: INE933K01021
A154: BAJAJELEC | B154: EQ | C154: 483.35 | D154: 486.2 | E154: 472.85 | F154: 477.55 | G154: 476.2 | H154: 488.75 | I154: 194561 | J154: 93246998.8 | K154: 2018-10-08 | L154: 11345 | M154: INE193E01025
A155: BAJAJFINSV | B155: EQ | C155: 5350 | D155: 5500 | E155: 5230.4 | F155: 5395.55 | G155: 5379.95 | H155: 5375.65 | I155: 271315 | J155: 1453329975 | K155: 2018-10-08 | L155: 33193 | M155: INE918I01018
A156: BAJAJHIND | B156: EQ | C156: 8.9 | D156: 9.15 | E156: 8.35 | F156: 8.65 | G156: 8.7 | H156: 8.75 | I156: 3739713 | J156: 32765342.1 | K156: 2018-10-08 | L156: 4765 | M156: INE306A01021
A157: BAJAJHLDNG | B157: EQ | C157: 2738 | D157: 2738 | E157: 2465.05 | F157: 2520.05 | G157: 2518 | H157: 2703.05 | I157: 112609 | J157: 285351480.2 | K157: 2018-10-08 | L157: 7738 | M157: INE118A01012
A158: BAJFINANCE | B158: EQ | C158: 1992 | D158: 2090 | E158: 1912.2 | F158: 1974.85 | G158: 1962 | H158: 2023.3 | I158: 5966669 | J158: 1.196799756e+10 | K158: 2018-10-08 | L158: 241495 | M158: INE296A01024
A159: BALAJITELE | B159: EQ | C159: 104.95 | D159: 106.8 | E159: 104.95 | F159: 105.9 | G159: 106.4 | H159: 105.1 | I159: 55360 | J159: 5822090.4 | K159: 2018-10-08 | L159: 293 | M159: INE794B01026
A160: BALAMINES | B160: EQ | C160: 436.05 | D160: 461.75 | E160: 427.05 | F160: 442 | G160: 446.5 | H160: 447.05 | I160: 19548 | J160: 8622016.05 | K160: 2018-10-08 | L160: 998 | M160: INE050E01027
A161: BALKRISHNA | B161: EQ | C161: 47.5 | D161: 48.15 | E161: 44 | F161: 44.8 | G161: 45.45 | H161: 48.5 | I161: 16419 | J161: 758461.35 | K161: 2018-10-08 | L161: 274 | M161: INE875R01011
A162: BALKRISIND | B162: EQ | C162: 995.2 | D162: 1035.1 | E162: 968.1 | F162: 981.4 | G162: 970 | H162: 1002.35 | I162: 1053671 | J162: 1042288875 | K162: 2018-10-08 | L162: 39026 | M162: INE787D01026
A163: BALLARPUR | B163: EQ | C163: 6.55 | D163: 6.8 | E163: 6.3 | F163: 6.5 | G163: 6.6 | H163: 6.55 | I163: 343204 | J163: 2264958.2 | K163: 2018-10-08 | L163: 593 | M163: INE294A01037
A164: BALMLAWRIE | B164: EQ | C164: 181.35 | D164: 183.45 | E164: 177.5 | F164: 180.4 | G164: 179 | H164: 182.35 | I164: 53492 | J164: 9603000.6 | K164: 2018-10-08 | L164: 1684 | M164: INE164A01016
A165: BALPHARMA | B165: EQ | C165: 77.7 | D165: 77.7 | E165: 72 | F165: 75.05 | G165: 74.8 | H165: 77.65 | I165: 18948 | J165: 1437147.5 | K165: 2018-10-08 | L165: 511 | M165: INE083D01012
A166: BALRAMCHIN | B166: EQ | C166: 76 | D166: 79 | E166: 74 | F166: 78.05 | G166: 78.9 | H166: 75.85 | I166: 5360210 | J166: 410699951.8 | K166: 2018-10-08 | L166: 22940 | M166: INE119A01028
A167: BANARBEADS | B167: EQ | C167: 48.4 | D167: 50.9 | E167: 48.3 | F167: 48.3 | G167: 48.3 | H167: 49 | I167: 2030 | J167: 99780.25 | K167: 2018-10-08 | L167: 26 | M167: INE655B01011
A168: BANARISUG | B168: EQ | C168: 1460 | D168: 1500 | E168: 1430 | F168: 1440.75 | G168: 1442 | H168: 1456.35 | I168: 548 | J168: 797852.2 | K168: 2018-10-08 | L168: 98 | M168: INE459A01010
A169: BANCOINDIA | B169: EQ | C169: 180 | D169: 183.5 | E169: 170.55 | F169: 178.85 | G169: 181.45 | H169: 180.25 | I169: 47885 | J169: 8606775.9 | K169: 2018-10-08 | L169: 877 | M169: INE213C01025
A170: BANDHANBNK | B170: EQ | C170: 464 | D170: 489.6 | E170: 456.3 | F170: 471.2 | G170: 471.95 | H170: 458.8 | I170: 1795572 | J170: 851634971.9 | K170: 2018-10-08 | L170: 54149 | M170: INE545U01014
A171: BANG | B171: EQ | C171: 48.75 | D171: 49.7 | E171: 47.05 | F171: 49.25 | G171: 49.35 | H171: 49.7 | I171: 11276 | J171: 551989.6 | K171: 2018-10-08 | L171: 146 | M171: INE863I01016
A172: BANKBARODA | B172: EQ | C172: 100 | D172: 100.5 | E172: 95.3 | F172: 97.5 | G172: 97.2 | H172: 99.1 | I172: 28957630 | J172: 2857401938 | K172: 2018-10-08 | L172: 179663 | M172: INE028A01039
A173: BANKBEES | B173: EQ | C173: 2455.5 | D173: 2524 | E173: 2450 | F173: 2517.24 | G173: 2512.88 | H173: 2505.61 | I173: 6087 | J173: 15220235.73 | K173: 2018-10-08 | L173: 439 | M173: INF732E01078
A174: BANKINDIA | B174: EQ | C174: 76.6 | D174: 77.5 | E174: 74 | F174: 76 | G174: 75.9 | H174: 76.8 | I174: 7324522 | J174: 556678029.3 | K174: 2018-10-08 | L174: 21465 | M174: INE084A01016
A175: BANSWRAS | B175: EQ | C175: 63.05 | D175: 65.95 | E175: 61.35 | F175: 64.75 | G175: 64.1 | H175: 63.8 | I175: 4767 | J175: 308956.2 | K175: 2018-10-08 | L175: 76 | M175: INE629D01012
A176: BARTRONICS | B176: EQ | C176: 7.3 | D176: 7.7 | E176: 6.8 | F176: 7 | G176: 6.85 | H176: 7.3 | I176: 36656 | J176: 262001.55 | K176: 2018-10-08 | L176: 187 | M176: INE855F01034
A177: BASF | B177: EQ | C177: 1667 | D177: 1681 | E177: 1600 | F177: 1613.2 | G177: 1600 | H177: 1663.95 | I177: 7009 | J177: 11356239.45 | K177: 2018-10-08 | L177: 992 | M177: INE373A01013
A178: BASML | B178: EQ | C178: 190.55 | D178: 198 | E178: 190 | F178: 191.15 | G178: 198 | H178: 190 | I178: 6477 | J178: 1231671.15 | K178: 2018-10-08 | L178: 39 | M178: INE186H01014
A179: BATAINDIA | B179: EQ | C179: 862 | D179: 898.9 | E179: 844.05 | F179: 893.8 | G179: 894 | H179: 860.3 | I179: 1683421 | J179: 1476352275 | K179: 2018-10-08 | L179: 39904 | M179: INE176A01028
A180: BAYERCROP | B180: EQ | C180: 4220 | D180: 4310.05 | E180: 4105.05 | F180: 4272.4 | G180: 4308.95 | H180: 4218.1 | I180: 4418 | J180: 18626562.1 | K180: 2018-10-08 | L180: 1766 | M180: INE462A01022
A181: BBL | B181: EQ | C181: 1109.45 | D181: 1129.9 | E181: 1045 | F181: 1073.45 | G181: 1055 | H181: 1105.35 | I181: 7570 | J181: 8231986.6 | K181: 2018-10-08 | L181: 948 | M181: INE464A01028
A182: BBTC | B182: EQ | C182: 1182 | D182: 1244.7 | E182: 1160.4 | F182: 1214.85 | G182: 1222 | H182: 1182.4 | I182: 325603 | J182: 391874507.9 | K182: 2018-10-08 | L182: 17884 | M182: INE050A01025
A183: BCG | B183: EQ | C183: 3.85 | D183: 3.9 | E183: 3.4 | F183: 3.55 | G183: 3.6 | H183: 3.45 | I183: 465146 | J183: 1700799.9 | K183: 2018-10-08 | L183: 409 | M183: INE425B01027
A184: BDL | B184: EQ | C184: 275 | D184: 277.95 | E184: 266.4 | F184: 274.45 | G184: 273 | H184: 276.1 | I184: 19326 | J184: 5290555.45 | K184: 2018-10-08 | L184: 1180 | M184: INE171Z01018
A185: BEARDSELL | B185: EQ | C185: 26.05 | D185: 26.6 | E185: 23.65 | F185: 26.2 | G185: 26.5 | H185: 26.35 | I185: 2994 | J185: 74560 | K185: 2018-10-08 | L185: 74 | M185: INE520H01022
A186: BEDMUTHA | B186: BE | C186: 20 | D186: 21.9 | E186: 20 | F186: 20.95 | G186: 21.6 | H186: 20.9 | I186: 15305 | J186: 324649.4 | K186: 2018-10-08 | L186: 39 | M186: INE844K01012
A187: BEL | B187: EQ | C187: 79 | D187: 79.75 | E187: 75.2 | F187: 77.15 | G187: 76.85 | H187: 80.6 | I187: 9976249 | J187: 774012237.2 | K187: 2018-10-08 | L187: 60167 | M187: INE263A01024
A188: BEML | B188: EQ | C188: 564.85 | D188: 574.95 | E188: 548 | F188: 560.65 | G188: 555.3 | H188: 575.9 | I188: 1131691 | J188: 637424910.4 | K188: 2018-10-08 | L188: 25774 | M188: INE258A01016
A189: BEPL | B189: EQ | C189: 124.9 | D189: 130 | E189: 122 | F189: 128.1 | G189: 127.75 | H189: 124.4 | I189: 712723 | J189: 90839625.8 | K189: 2018-10-08 | L189: 8063 | M189: INE922A01025
A190: BERGEPAINT | B190: EQ | C190: 268 | D190: 279.2 | E190: 265.1 | F190: 275.35 | G190: 272.25 | H190: 267.9 | I190: 807183 | J190: 221492356.1 | K190: 2018-10-08 | L190: 23386 | M190: INE463A01038
A191: BFINVEST | B191: EQ | C191: 240 | D191: 247 | E191: 216.2 | F191: 225.05 | G191: 224 | H191: 243.4 | I191: 227151 | J191: 53369169.95 | K191: 2018-10-08 | L191: 4101 | M191: INE878K01010
A192: BFUTILITIE | B192: EQ | C192: 203.2 | D192: 207.95 | E192: 192 | F192: 196.3 | G192: 194.25 | H192: 204.1 | I192: 267715 | J192: 53540874.65 | K192: 2018-10-08 | L192: 6474 | M192: INE243D01012
A193: BGLOBAL | B193: BE | C193: 2.45 | D193: 2.45 | E193: 2.35 | F193: 2.45 | G193: 2.45 | H193: 2.45 | I193: 1250 | J193: 2992.6 | K193: 2018-10-08 | L193: 7 | M193: INE224M01013
A194: BGRENERGY | B194: EQ | C194: 54 | D194: 55 | E194: 51.65 | F194: 52.7 | G194: 52.1 | H194: 54.9 | I194: 57162 | J194: 3008160 | K194: 2018-10-08 | L194: 746 | M194: INE661I01014
A195: BHAGERIA | B195: EQ | C195: 228.15 | D195: 245 | E195: 207.95 | F195: 223.85 | G195: 235 | H195: 230 | I195: 28936 | J195: 6371953.3 | K195: 2018-10-08 | L195: 945 | M195: INE354C01027
A196: BHAGYANGR | B196: BE | C196: 29 | D196: 29.5 | E196: 27.55 | F196: 27.7 | G196: 27.55 | H196: 29 | I196: 18037 | J196: 518424.7 | K196: 2018-10-08 | L196: 88 | M196: INE458B01036
A197: BHAGYAPROP | B197: EQ | C197: 21.3 | D197: 24.5 | E197: 20.75 | F197: 22.05 | G197: 22.05 | H197: 21.95 | I197: 1161 | J197: 25862.9 | K197: 2018-10-08 | L197: 13 | M197: INE363W01018
A198: BHANDARI | B198: EQ | C198: 1.8 | D198: 2 | E198: 1.75 | F198: 1.8 | G198: 1.85 | H198: 1.9 | I198: 349352 | J198: 647536.1 | K198: 2018-10-08 | L198: 212 | M198: INE474E01029
A199: BHARATFIN | B199: EQ | C199: 990 | D199: 1002.9 | E199: 975 | F199: 988.4 | G199: 993 | H199: 997.7 | I199: 1244305 | J199: 1228996430 | K199: 2018-10-08 | L199: 24837 | M199: INE180K01011
A200: BHARATFORG | B200: EQ | C200: 575 | D200: 581.7 | E200: 559.6 | F200: 566.1 | G200: 568.95 | H200: 576.95 | I200: 2234070 | J200: 1271248094 | K200: 2018-10-08 | L200: 56267 | M200: INE465A01025
... 1436 more rows
